{"text_format":"1","workbook":"xlsx","n_sheets":4,"sheets":["_control","OmföringNy","Öresdiffar","Bilaga"],"not_rendered":{"charts":0,"images":1,"macros":1,"external_links":0,"defined_names":18,"comments":1,"pivot_tables":0},"unopened":[],"bounds":{"document_bytes":16777216,"sheet_cells":100000,"rows_first":2000,"rows_last":500,"rows_between":2000,"halvings":0,"cell_chars":16384,"cell_head_chars":4096},"cells_cut":0,"cells_raw":0,"read":"whole","date_system":"1900"}

{"sheet":"_control","index":0,"n_rows":23,"n_cols":6,"rows_kept":23,"cut":false,"hidden":true,"merged":[]}
["*","Control Worksheet (NB any row with a '*' as the first character in column A is ignored)"]
[]
[]
["*","Global Parameters (setdefault will be used unless parameter of same name is passed in from Agresso)"]
["*","Parameter","Value"]
["set","client","A1","<<<<<<<< Företag där bokföring ska göras",null,"A1"]
["set","language","SE","<<<<<<<< Språk",null,"UE"]
["*set","user_id"]
["set","interface","BX","<<<<<<<< Försystem (hämtas från omföring)"]
["set","voucher_type","BX","<<<<<<<< Verifikationstyp"]
["set","trans_type","GL","<<<<<<<< Transaktionstyp"]
["set","voucher_date",{"$f":"datum","v":"2024-09-27T11:49:32.680"},"<<<<<<<< Verifikationsdatum (hämtas från omföring)"]
["set","period",{"$f":"period","v":202409},"<<<<<<<< Bokföringsperiod (hämtas från omföring)"]
["set","batch_id",{"$f":"buntnr","v":""},"<<<<<<<< Buntnummer (anvid+dag+klockslag) hämtas från omföring"]
["set","batch_id2",{"$f":"anv&TEXT(C23,\"ÅÅMMDDttmm\")","v":"<user_id>2409271149"},"<<<<<<<< Skapande av Buntnummer (anvid+dag+klockslag)"]
["set","variant_number",{"$f":"IF(AND(ROUND(OmföringNy!I8=0,2),OmföringNy!I9=\"OK \"),77,\"Kontroller är inte ok\")","v":77},"<<<<<<<< Rapportvariant för GL07"]
["set","currency",{"$f":"valuta","v":"SEK"},"<<<<<<<< Valuta"]
[]
["*","Worksheet Directory"]
["*","Sheet Name","Template Name","Local Parameters"]
[]
[]
["*","Tid",{"$f":"NOW()","v":45562.492739351852}]

{"sheet":"OmföringNy","index":1,"n_rows":66669,"n_cols":46,"rows_kept":4500,"cut":true,"hidden":false,"merged":[[8,2,8,4],[1,1,1,5],[7,1,7,4],[10,6,10,7],[5,6,5,7],[4,6,4,7],[9,6,9,7],[8,6,8,7],[7,6,7,7],[6,6,6,7]],"bounds":{"rows_first":2000,"rows_last":500,"rows_between":2000,"halvings":0}}
["update_columns","account","dim_1","dim_2","dim_3","dim_4","dim_5","dim_6","dim_7","description",null,"currency","amount","cur_amount"]
[]
[]
[]
[null,null,null,null,null,null,"Verifikationsdatum",null,{"$f":"NOW()","v":"2024-09-27T11:49:32.680"},"<==== Dagens datum (Erhålls automatiskt)"]
[null,null,null,null,null,null,"Period",null,202409,"<==== Ange period, ÅÅÅÅMM, ex 201901"]
[null,"Bokföring huvudbok KI",null,null,null,null,"Valuta",null,"SEK",null,null,null,null,null,null,"Inst","Inst","Inst","Inst","Inst","Inst","Inst","Inst","Inst","Inst","Inst","Inst","Inst","Inst","Inst","Inst","Inst","Inst","Inst","Inst","Inst","Inst","Inst","Inst","Inst","Inst","Inst","Inst"]
[null,null,null,null,null,null,"Kontrollsumma 1 (Total)",null,{"$f":"IF(AND(SUM(ROUND(K15:K30001,2))<0.005,SUM(ROUND(K15:K30001,2))>-0.005),0,SUM(ROUND(K15:K30001,2)))","v":0},"<==== Fältet ska vara grönt/visa 0,00"]
[null,null,null,null,null,null,"Kontroll 2 (Inst/proj) ",null,{"$f":"IF(COUNTIF(O:O,\"Kombination INST/Proj felaktig\")<>0,\"Kontrollera rad \"&MATCH(\"Kombination INST/Proj felaktig\",O1:O666669,0),\"OK \")","v":"OK "},"<==== Fältet ska vara grönt/visa OK",null,null,null,null,null,"CMB","IMM","LIME","MEB","INCF","KIB","Komparativ Medicin","ETV","KIDS","NVS","BioNut","LABMED","MedH","CLINTEC","MMK","MedS","KBH","OnkPat","CNS","PHS","Lau Center","DENTMED","SÖS","Utbildning och lärande","Eliminering","Universitetsförvaltning","Gemensamma resurser","Investeringar & Hyror","Kapitalförvaltning","Universitetsledning","Universitetsstyrelser"]
[null,null,null,null,null,null,"Buntnummer",null,{"$f":"IF(batch=\"<batch_id2>\",\"\",batch)","v":""},"<==== Erhålls automatiskt efter bokföring"]
["preparameter","<batch_id2>",null,null,null,null,"AnvändarID UBW",null,{"$f":"IF(anv=\"<user_id>\",\"\",anv)","v":""},"<==== Erhålls automatiskt efter bokföring"]
["preparameter","<user_id>",null,null,null,null,null,null,{"$f":"_xlfn.IFS(I8<>0,\"Öresdifferens. Verifikationen summerar ej till 0 eftersom inläsningen till UBW avrundar till två decimaler. Avrunda innan du klistrar in i mallen och se till att det går i noll\",Öresdiffar!M14<>\"\",\"Verifikationen går i noll men det finns öresdiffar på otillåtna konton! Rätta dessa innan inläsning. Tryck på länk till höger för att se vilka.\",TRUE,\"\")","v":""},null,null,{"$f":"IF(Öresdiffar!M14<>\"\",\"Länk\",\"\")","v":""}]
[]
[null,"Konto","Inst","Dnr","Projekt","Fin","Resurs","Mpt","Verks","Text","Belopp","Valuta"]
[{"$f":"IF(AND(K15<>0,$I$8=0,$I$9=\"OK \"),\"update_data\",\"\")","v":""},null,null,null,null,null,null,null,null,null,null,{"$f":"UPPER(IF(K15<>0,valuta,\"\"))","v":""},{"$f":"ROUND(K15,2)","v":0},{"$f":"ROUND(K15,2)","v":0},{"$f":"IF(AND(C15=\"\",K15<>0),\"Kombination INST/Proj felaktig\",IF(OR(C15=LEFT(E15,2),E15=\"\"),\"\",\"Kombination INST/Proj felaktig\"))","v":""}]
[{"$f":"IF(AND(K16<>0,$I$8=0,$I$9=\"OK \"),\"update_data\",\"\")","v":""},null,null,null,null,null,null,null,null,null,null,"",{"$f":"ROUND(K16,2)","v":0},{"$f":"ROUND(K16,2)","v":0},{"$f":"IF(AND(C16=\"\",K16<>0),\"Kombination INST/Proj felaktig\",IF(OR(C16=LEFT(E16,2),E16=\"\"),\"\",\"Kombination INST/Proj felaktig\"))","v":""}]
["",null,null,null,null,null,null,null,null,null,null,"",0,0,""]
["",null,null,null,null,null,null,null,null,null,null,"",0,0,""]
["",null,null,null,null,null,null,null,null,null,null,"",0,0,""]
["",null,null,null,null,null,null,null,null,null,null,"",0,0,""]
["",null,null,null,null,null,null,null,null,null,null,"",0,0,""]
["",null,null,null,null,null,null,null,null,null,null,"",0,0,""]
["",null,null,null,null,null,null,null,null,null,null,"",0,0,""]
["",null,null,null,null,null,null,null,null,null,null,"",0,0,""]
["",null,null,null,null,null,null,null,null,null,null,"",0,0,""]
["",null,null,null,null,null,null,null,null,null,null,"",0,0,""]
["",null,null,null,null,null,null,null,null,null,null,"",0,0,""]
["",null,null,null,null,null,null,null,null,null,null,"",0,0,""]
["",null,null,null,null,null,null,null,null,null,null,"",0,0,""]
["",null,null,null,null,null,null,null,null,null,null,"",0,0,""]
["",null,null,null,null,null,null,null,null,null,null,"",0,0,""]
["",null,null,null,null,null,null,null,null,null,null,"",0,0,""]
["",null,null,null,null,null,null,null,null,null,null,"",0,0,""]
["",null,null,null,null,null,null,null,null,null,null,"",0,0,""]
["",null,null,null,null,null,null,null,null,null,null,"",0,0,""]
["",null,null,null,null,null,null,null,null,null,null,"",0,0,""]
["",null,null,null,null,null,null,null,null,null,null,"",0,0,""]
["",null,null,null,null,null,null,null,null,null,null,"",0,0,""]
["",null,null,null,null,null,null,null,null,null,null,"",0,0,""]
["",null,null,null,null,null,null,null,null,null,null,"",0,0,""]
["",null,null,null,null,null,null,null,null,null,null,"",0,0,""]
["",null,null,null,null,null,null,null,null,null,null,"",0,0,""]
["",null,null,null,null,null,null,null,null,null,null,"",0,0,""]
["",null,null,null,null,null,null,null,null,null,null,"",0,0,""]
["",null,null,null,null,null,null,null,null,null,null,"",0,0,""]
["",null,null,null,null,null,null,null,null,null,null,"",0,0,""]
["",null,null,null,null,null,null,null,null,null,null,"",0,0,""]
["",null,null,null,null,null,null,null,null,null,null,"",0,0,""]
["",null,null,null,null,null,null,null,null,null,null,"",0,0,""]
["",null,null,null,null,null,null,null,null,null,null,"",0,0,""]
["",null,null,null,null,null,null,null,null,null,null,"",0,0,""]
["",null,null,null,null,null,null,null,null,null,null,"",0,0,""]
["",null,null,null,null,null,null,null,null,null,null,"",0,0,""]
["",null,null,null,null,null,null,null,null,null,null,"",0,0,""]
["",null,null,null,null,null,null,null,null,null,null,{"$f":"UPPER(IF(K55<>0,valuta,\"\"))","v":""},0,0,""]
["",null,null,null,null,null,null,null,null,null,null,"",0,0,""]
["",null,null,null,null,null,null,null,null,null,null,"",0,0,""]
["",null,null,null,null,null,null,null,null,null,null,"",0,0,""]
["",null,null,null,null,null,null,null,null,null,null,"",0,0,""]
["",null,null,null,null,null,null,null,null,null,null,"",0,0,""]
["",null,null,null,null,null,null,null,null,null,null,"",0,0,""]
["",null,null,null,null,null,null,null,null,null,null,"",0,0,""]
["",null,null,null,null,null,null,null,null,null,null,"",0,0,""]
["",null,null,null,null,null,null,null,null,null,null,"",0,0,""]
["",null,null,null,null,null,null,null,null,null,null,"",0,0,""]
["",null,null,null,null,null,null,null,null,null,null,"",0,0,""]
["",null,null,null,null,null,null,null,null,null,null,"",0,0,""]
["",null,null,null,null,null,null,null,null,null,null,"",0,0,""]
["",null,null,null,null,null,null,null,null,null,null,"",0,0,""]
["",null,null,null,null,null,null,null,null,null,null,"",0,0,""]
["",null,null,null,null,null,null,null,null,null,null,"",0,0,""]
["",null,null,null,null,null,null,null,null,null,null,"",0,0,""]
["",null,null,null,null,null,null,null,null,null,null,"",0,0,""]
["",null,null,null,null,null,null,null,null,null,null,"",0,0,""]
["",null,null,null,null,null,null,null,null,null,null,"",0,0,""]
["",null,null,null,null,null,null,null,null,null,null,"",0,0,""]
["",null,null,null,null,null,null,null,null,null,null,"",0,0,""]
["",null,null,null,null,null,null,null,null,null,null,"",0,0,""]
["",null,null,null,null,null,null,null,null,null,null,"",0,0,""]
[{"$f":"IF(AND(K80<>0,$I$8=0,$I$9=\"OK \"),\"update_data\",\"\")","v":""},null,null,null,null,null,null,null,null,null,null,"",{"$f":"ROUND(K80,2)","v":0},{"$f":"ROUND(K80,2)","v":0},{"$f":"IF(AND(C80=\"\",K80<>0),\"Kombination INST/Proj felaktig\",IF(OR(C80=LEFT(E80,2),E80=\"\"),\"\",\"Kombination INST/Proj felaktig\"))","v":""}]
["",null,null,null,null,null,null,null,null,null,null,"",0,0,""]
["",null,null,null,null,null,null,null,null,null,null,"",0,0,""]
["",null,null,null,null,null,null,null,null,null,null,"",0,0,""]
["",null,null,null,null,null,null,null,null,null,null,"",0,0,""]
["",null,null,null,null,null,null,null,null,null,null,"",0,0,""]
["",null,null,null,null,null,null,null,null,null,null,"",0,0,""]
["",null,null,null,null,null,null,null,null,null,null,"",0,0,""]
["",null,null,null,null,null,null,null,null,null,null,"",0,0,""]
["",null,null,null,null,null,null,null,null,null,null,"",0,0,""]
["",null,null,null,null,null,null,null,null,null,null,"",0,0,""]
["",null,null,null,null,null,null,null,null,null,null,"",0,0,""]
["",null,null,null,null,null,null,null,null,null,null,"",0,0,""]
["",null,null,null,null,null,null,null,null,null,null,"",0,0,""]
["",null,null,null,null,null,null,null,null,null,null,"",0,0,""]
["",null,null,null,null,null,null,null,null,null,null,"",0,0,""]
["",null,null,null,null,null,null,null,null,null,null,"",0,0,""]
["",null,null,null,null,null,null,null,null,null,null,"",0,0,""]
["",null,null,null,null,null,null,null,null,null,null,"",0,0,""]
["",null,null,null,null,null,null,null,null,null,null,"",0,0,""]
["",null,null,null,null,null,null,null,null,null,null,"",0,0,""]
["",null,null,null,null,null,null,null,null,null,null,"",0,0,""]
["",null,null,null,null,null,null,null,null,null,null,"",0,0,""]
["",null,null,null,null,null,null,null,null,null,null,"",0,0,""]
["",null,null,null,null,null,null,null,null,null,null,"",0,0,""]
["",null,null,null,null,null,null,null,null,null,null,"",0,0,""]
["",null,null,null,null,null,null,null,null,null,null,"",0,0,""]
["",null,null,null,null,null,null,null,null,null,null,"",0,0,""]
["",null,null,null,null,null,null,null,null,null,null,"",0,0,""]
["",null,null,null,null,null,null,null,null,null,null,"",0,0,""]
["",null,null,null,null,null,null,null,null,null,null,"",0,0,""]
["",null,null,null,null,null,null,null,null,null,null,"",0,0,""]
["",null,null,null,null,null,null,null,null,null,null,"",0,0,""]
["",null,null,null,null,null,null,null,null,null,null,"",0,0,""]
["",null,null,null,null,null,null,null,null,null,null,"",0,0,""]
["",null,null,null,null,null,null,null,null,null,null,"",0,0,""]
["",null,null,null,null,null,null,null,null,null,null,"",0,0,""]
["",null,null,null,null,null,null,null,null,null,null,"",0,0,""]
["",null,null,null,null,null,null,null,null,null,null,"",0,0,""]
["",null,null,null,null,null,null,null,null,null,null,{"$f":"UPPER(IF(K119<>0,valuta,\"\"))","v":""},0,0,""]
["",null,null,null,null,null,null,null,null,null,null,"",0,0,""]
["",null,null,null,null,null,null,null,null,null,null,"",0,0,""]
["",null,null,null,null,null,null,null,null,null,null,"",0,0,""]
["",null,null,null,null,null,null,null,null,null,null,"",0,0,""]
["",null,null,null,null,null,null,null,null,null,null,"",0,0,""]
["",null,null,null,null,null,null,null,null,null,null,"",0,0,""]
["",null,null,null,null,null,null,null,null,null,null,"",0,0,""]
["",null,null,null,null,null,null,null,null,null,null,"",0,0,""]
["",null,null,null,null,null,null,null,null,null,null,"",0,0,""]
["",null,null,null,null,null,null,null,null,null,null,"",0,0,""]
["",null,null,null,null,null,null,null,null,null,null,"",0,0,""]
["",null,null,null,null,null,null,null,null,null,null,"",0,0,""]
["",null,null,null,null,null,null,null,null,null,null,"",0,0,""]
["",null,null,null,null,null,null,null,null,null,null,"",0,0,""]
["",null,null,null,null,null,null,null,null,null,null,"",0,0,""]
["",null,null,null,null,null,null,null,null,null,null,"",0,0,""]
["",null,null,null,null,null,null,null,null,null,null,"",0,0,""]
["",null,null,null,null,null,null,null,null,null,null,"",0,0,""]
["",null,null,null,null,null,null,null,null,null,null,"",0,0,""]
["",null,null,null,null,null,null,null,null,null,null,"",0,0,""]
["",null,null,null,null,null,null,null,null,null,null,"",0,0,""]
["",null,null,null,null,null,null,null,null,null,null,"",0,0,""]
["",null,null,null,null,null,null,null,null,null,null,"",0,0,""]
["",null,null,null,null,null,null,null,null,null,null,"",0,0,""]
[{"$f":"IF(AND(K144<>0,$I$8=0,$I$9=\"OK \"),\"update_data\",\"\")","v":""},null,null,null,null,null,null,null,null,null,null,"",{"$f":"ROUND(K144,2)","v":0},{"$f":"ROUND(K144,2)","v":0},{"$f":"IF(AND(C144=\"\",K144<>0),\"Kombination INST/Proj felaktig\",IF(OR(C144=LEFT(E144,2),E144=\"\"),\"\",\"Kombination INST/Proj felaktig\"))","v":""}]
["",null,null,null,null,null,null,null,null,null,null,"",0,0,""]
["",null,null,null,null,null,null,null,null,null,null,"",0,0,""]
["",null,null,null,null,null,null,null,null,null,null,"",0,0,""]
["",null,null,null,null,null,null,null,null,null,null,"",0,0,""]
["",null,null,null,null,null,null,null,null,null,null,"",0,0,""]
["",null,null,null,null,null,null,null,null,null,null,"",0,0,""]
["",null,null,null,null,null,null,null,null,null,null,"",0,0,""]
["",null,null,null,null,null,null,null,null,null,null,"",0,0,""]
["",null,null,null,null,null,null,null,null,null,null,"",0,0,""]
["",null,null,null,null,null,null,null,null,null,null,"",0,0,""]
["",null,null,null,null,null,null,null,null,null,null,"",0,0,""]
["",null,null,null,null,null,null,null,null,null,null,"",0,0,""]
["",null,null,null,null,null,null,null,null,null,null,"",0,0,""]
["",null,null,null,null,null,null,null,null,null,null,"",0,0,""]
["",null,null,null,null,null,null,null,null,null,null,"",0,0,""]
["",null,null,null,null,null,null,null,null,null,null,"",0,0,""]
["",null,null,null,null,null,null,null,null,null,null,"",0,0,""]
["",null,null,null,null,null,null,null,null,null,null,"",0,0,""]
["",null,null,null,null,null,null,null,null,null,null,"",0,0,""]
["",null,null,null,null,null,null,null,null,null,null,"",0,0,""]
["",null,null,null,null,null,null,null,null,null,null,"",0,0,""]
["",null,null,null,null,null,null,null,null,null,null,"",0,0,""]
["",null,null,null,null,null,null,null,null,null,null,"",0,0,""]
["",null,null,null,null,null,null,null,null,null,null,"",0,0,""]
["",null,null,null,null,null,null,null,null,null,null,"",0,0,""]
["",null,null,null,null,null,null,null,null,null,null,"",0,0,""]
["",null,null,null,null,null,null,null,null,null,null,"",0,0,""]
["",null,null,null,null,null,null,null,null,null,null,"",0,0,""]
["",null,null,null,null,null,null,null,null,null,null,"",0,0,""]
["",null,null,null,null,null,null,null,null,null,null,"",0,0,""]
["",null,null,null,null,null,null,null,null,null,null,"",0,0,""]
["",null,null,null,null,null,null,null,null,null,null,"",0,0,""]
["",null,null,null,null,null,null,null,null,null,null,"",0,0,""]
["",null,null,null,null,null,null,null,null,null,null,"",0,0,""]
["",null,null,null,null,null,null,null,null,null,null,"",0,0,""]
["",null,null,null,null,null,null,null,null,null,null,"",0,0,""]
["",null,null,null,null,null,null,null,null,null,null,"",0,0,""]
["",null,null,null,null,null,null,null,null,null,null,"",0,0,""]
["",null,null,null,null,null,null,null,null,null,null,{"$f":"UPPER(IF(K183<>0,valuta,\"\"))","v":""},0,0,""]
["",null,null,null,null,null,null,null,null,null,null,"",0,0,""]
["",null,null,null,null,null,null,null,null,null,null,"",0,0,""]
["",null,null,null,null,null,null,null,null,null,null,"",0,0,""]
["",null,null,null,null,null,null,null,null,null,null,"",0,0,""]
["",null,null,null,null,null,null,null,null,null,null,"",0,0,""]
["",null,null,null,null,null,null,null,null,null,null,"",0,0,""]
["",null,null,null,null,null,null,null,null,null,null,"",0,0,""]
["",null,null,null,null,null,null,null,null,null,null,"",0,0,""]
["",null,null,null,null,null,null,null,null,null,null,"",0,0,""]
["",null,null,null,null,null,null,null,null,null,null,"",0,0,""]
["",null,null,null,null,null,null,null,null,null,null,"",0,0,""]
["",null,null,null,null,null,null,null,null,null,null,"",0,0,""]
["",null,null,null,null,null,null,null,null,null,null,"",0,0,""]
["",null,null,null,null,null,null,null,null,null,null,"",0,0,""]
["",null,null,null,null,null,null,null,null,null,null,"",0,0,""]
["",null,null,null,null,null,null,null,null,null,null,"",0,0,""]
["",null,null,null,null,null,null,null,null,null,null,"",0,0,""]
["",null,null,null,null,null,null,null,null,null,null,"",0,0,""]
["",null,null,null,null,null,null,null,null,null,null,"",0,0,""]
["",null,null,null,null,null,null,null,null,null,null,"",0,0,""]
["",null,null,null,null,null,null,null,null,null,null,"",0,0,""]
["",null,null,null,null,null,null,null,null,null,null,"",0,0,""]
["",null,null,null,null,null,null,null,null,null,null,"",0,0,""]
["",null,null,null,null,null,null,null,null,null,null,"",0,0,""]
[{"$f":"IF(AND(K208<>0,$I$8=0,$I$9=\"OK \"),\"update_data\",\"\")","v":""},null,null,null,null,null,null,null,null,null,null,"",{"$f":"ROUND(K208,2)","v":0},{"$f":"ROUND(K208,2)","v":0},{"$f":"IF(AND(C208=\"\",K208<>0),\"Kombination INST/Proj felaktig\",IF(OR(C208=LEFT(E208,2),E208=\"\"),\"\",\"Kombination INST/Proj felaktig\"))","v":""}]
["",null,null,null,null,null,null,null,null,null,null,"",0,0,""]
["",null,null,null,null,null,null,null,null,null,null,"",0,0,""]
["",null,null,null,null,null,null,null,null,null,null,"",0,0,""]
["",null,null,null,null,null,null,null,null,null,null,"",0,0,""]
["",null,null,null,null,null,null,null,null,null,null,"",0,0,""]
["",null,null,null,null,null,null,null,null,null,null,"",0,0,""]
["",null,null,null,null,null,null,null,null,null,null,"",0,0,""]
["",null,null,null,null,null,null,null,null,null,null,"",0,0,""]
["",null,null,null,null,null,null,null,null,null,null,"",0,0,""]
["",null,null,null,null,null,null,null,null,null,null,"",0,0,""]
["",null,null,null,null,null,null,null,null,null,null,"",0,0,""]
["",null,null,null,null,null,null,null,null,null,null,"",0,0,""]
["",null,null,null,null,null,null,null,null,null,null,"",0,0,""]
["",null,null,null,null,null,null,null,null,null,null,"",0,0,""]
["",null,null,null,null,null,null,null,null,null,null,"",0,0,""]
["",null,null,null,null,null,null,null,null,null,null,"",0,0,""]
["",null,null,null,null,null,null,null,null,null,null,"",0,0,""]
["",null,null,null,null,null,null,null,null,null,null,"",0,0,""]
["",null,null,null,null,null,null,null,null,null,null,"",0,0,""]
["",null,null,null,null,null,null,null,null,null,null,"",0,0,""]
["",null,null,null,null,null,null,null,null,null,null,"",0,0,""]
["",null,null,null,null,null,null,null,null,null,null,"",0,0,""]
["",null,null,null,null,null,null,null,null,null,null,"",0,0,""]
["",null,null,null,null,null,null,null,null,null,null,"",0,0,""]
["",null,null,null,null,null,null,null,null,null,null,"",0,0,""]
["",null,null,null,null,null,null,null,null,null,null,"",0,0,""]
["",null,null,null,null,null,null,null,null,null,null,"",0,0,""]
["",null,null,null,null,null,null,null,null,null,null,"",0,0,""]
["",null,null,null,null,null,null,null,null,null,null,"",0,0,""]
["",null,null,null,null,null,null,null,null,null,null,"",0,0,""]
["",null,null,null,null,null,null,null,null,null,null,"",0,0,""]
["",null,null,null,null,null,null,null,null,null,null,"",0,0,""]
["",null,null,null,null,null,null,null,null,null,null,"",0,0,""]
["",null,null,null,null,null,null,null,null,null,null,"",0,0,""]
["",null,null,null,null,null,null,null,null,null,null,"",0,0,""]
["",null,null,null,null,null,null,null,null,null,null,"",0,0,""]
["",null,null,null,null,null,null,null,null,null,null,"",0,0,""]
["",null,null,null,null,null,null,null,null,null,null,"",0,0,""]
["",null,null,null,null,null,null,null,null,null,null,{"$f":"UPPER(IF(K247<>0,valuta,\"\"))","v":""},0,0,""]
["",null,null,null,null,null,null,null,null,null,null,"",0,0,""]
["",null,null,null,null,null,null,null,null,null,null,"",0,0,""]
["",null,null,null,null,null,null,null,null,null,null,"",0,0,""]
["",null,null,null,null,null,null,null,null,null,null,"",0,0,""]
["",null,null,null,null,null,null,null,null,null,null,"",0,0,""]
["",null,null,null,null,null,null,null,null,null,null,"",0,0,""]
["",null,null,null,null,null,null,null,null,null,null,"",0,0,""]
["",null,null,null,null,null,null,null,null,null,null,"",0,0,""]
["",null,null,null,null,null,null,null,null,null,null,"",0,0,""]
["",null,null,null,null,null,null,null,null,null,null,"",0,0,""]
["",null,null,null,null,null,null,null,null,null,null,"",0,0,""]
["",null,null,null,null,null,null,null,null,null,null,"",0,0,""]
["",null,null,null,null,null,null,null,null,null,null,"",0,0,""]
["",null,null,null,null,null,null,null,null,null,null,"",0,0,""]
["",null,null,null,null,null,null,null,null,null,null,"",0,0,""]
["",null,null,null,null,null,null,null,null,null,null,"",0,0,""]
["",null,null,null,null,null,null,null,null,null,null,"",0,0,""]
["",null,null,null,null,null,null,null,null,null,null,"",0,0,""]
["",null,null,null,null,null,null,null,null,null,null,"",0,0,""]
["",null,null,null,null,null,null,null,null,null,null,"",0,0,""]
["",null,null,null,null,null,null,null,null,null,null,"",0,0,""]
["",null,null,null,null,null,null,null,null,null,null,"",0,0,""]
["",null,null,null,null,null,null,null,null,null,null,"",0,0,""]
["",null,null,null,null,null,null,null,null,null,null,"",0,0,""]
[{"$f":"IF(AND(K272<>0,$I$8=0,$I$9=\"OK \"),\"update_data\",\"\")","v":""},null,null,null,null,null,null,null,null,null,null,"",{"$f":"ROUND(K272,2)","v":0},{"$f":"ROUND(K272,2)","v":0},{"$f":"IF(AND(C272=\"\",K272<>0),\"Kombination INST/Proj felaktig\",IF(OR(C272=LEFT(E272,2),E272=\"\"),\"\",\"Kombination INST/Proj felaktig\"))","v":""}]
["",null,null,null,null,null,null,null,null,null,null,"",0,0,""]
["",null,null,null,null,null,null,null,null,null,null,"",0,0,""]
["",null,null,null,null,null,null,null,null,null,null,"",0,0,""]
["",null,null,null,null,null,null,null,null,null,null,"",0,0,""]
["",null,null,null,null,null,null,null,null,null,null,"",0,0,""]
["",null,null,null,null,null,null,null,null,null,null,"",0,0,""]
["",null,null,null,null,null,null,null,null,null,null,"",0,0,""]
["",null,null,null,null,null,null,null,null,null,null,"",0,0,""]
["",null,null,null,null,null,null,null,null,null,null,"",0,0,""]
["",null,null,null,null,null,null,null,null,null,null,"",0,0,""]
["",null,null,null,null,null,null,null,null,null,null,"",0,0,""]
["",null,null,null,null,null,null,null,null,null,null,"",0,0,""]
["",null,null,null,null,null,null,null,null,null,null,"",0,0,""]
["",null,null,null,null,null,null,null,null,null,null,"",0,0,""]
["",null,null,null,null,null,null,null,null,null,null,"",0,0,""]
["",null,null,null,null,null,null,null,null,null,null,"",0,0,""]
["",null,null,null,null,null,null,null,null,null,null,"",0,0,""]
["",null,null,null,null,null,null,null,null,null,null,"",0,0,""]
["",null,null,null,null,null,null,null,null,null,null,"",0,0,""]
["",null,null,null,null,null,null,null,null,null,null,"",0,0,""]
["",null,null,null,null,null,null,null,null,null,null,"",0,0,""]
["",null,null,null,null,null,null,null,null,null,null,"",0,0,""]
["",null,null,null,null,null,null,null,null,null,null,"",0,0,""]
["",null,null,null,null,null,null,null,null,null,null,"",0,0,""]
["",null,null,null,null,null,null,null,null,null,null,"",0,0,""]
["",null,null,null,null,null,null,null,null,null,null,"",0,0,""]
["",null,null,null,null,null,null,null,null,null,null,"",0,0,""]
["",null,null,null,null,null,null,null,null,null,null,"",0,0,""]
["",null,null,null,null,null,null,null,null,null,null,"",0,0,""]
["",null,null,null,null,null,null,null,null,null,null,"",0,0,""]
["",null,null,null,null,null,null,null,null,null,null,"",0,0,""]
["",null,null,null,null,null,null,null,null,null,null,"",0,0,""]
["",null,null,null,null,null,null,null,null,null,null,"",0,0,""]
["",null,null,null,null,null,null,null,null,null,null,"",0,0,""]
["",null,null,null,null,null,null,null,null,null,null,"",0,0,""]
["",null,null,null,null,null,null,null,null,null,null,"",0,0,""]
["",null,null,null,null,null,null,null,null,null,null,"",0,0,""]
["",null,null,null,null,null,null,null,null,null,null,"",0,0,""]
["",null,null,null,null,null,null,null,null,null,null,{"$f":"UPPER(IF(K311<>0,valuta,\"\"))","v":""},0,0,""]
["",null,null,null,null,null,null,null,null,null,null,"",0,0,""]
["",null,null,null,null,null,null,null,null,null,null,"",0,0,""]
["",null,null,null,null,null,null,null,null,null,null,"",0,0,""]
["",null,null,null,null,null,null,null,null,null,null,"",0,0,""]
["",null,null,null,null,null,null,null,null,null,null,"",0,0,""]
["",null,null,null,null,null,null,null,null,null,null,"",0,0,""]
["",null,null,null,null,null,null,null,null,null,null,"",0,0,""]
["",null,null,null,null,null,null,null,null,null,null,"",0,0,""]
["",null,null,null,null,null,null,null,null,null,null,"",0,0,""]
["",null,null,null,null,null,null,null,null,null,null,"",0,0,""]
["",null,null,null,null,null,null,null,null,null,null,"",0,0,""]
["",null,null,null,null,null,null,null,null,null,null,"",0,0,""]
["",null,null,null,null,null,null,null,null,null,null,"",0,0,""]
["",null,null,null,null,null,null,null,null,null,null,"",0,0,""]
["",null,null,null,null,null,null,null,null,null,null,"",0,0,""]
["",null,null,null,null,null,null,null,null,null,null,"",0,0,""]
["",null,null,null,null,null,null,null,null,null,null,"",0,0,""]
["",null,null,null,null,null,null,null,null,null,null,"",0,0,""]
["",null,null,null,null,null,null,null,null,null,null,"",0,0,""]
["",null,null,null,null,null,null,null,null,null,null,"",0,0,""]
["",null,null,null,null,null,null,null,null,null,null,"",0,0,""]
["",null,null,null,null,null,null,null,null,null,null,"",0,0,""]
["",null,null,null,null,null,null,null,null,null,null,"",0,0,""]
["",null,null,null,null,null,null,null,null,null,null,"",0,0,""]
[{"$f":"IF(AND(K336<>0,$I$8=0,$I$9=\"OK \"),\"update_data\",\"\")","v":""},null,null,null,null,null,null,null,null,null,null,"",{"$f":"ROUND(K336,2)","v":0},{"$f":"ROUND(K336,2)","v":0},{"$f":"IF(AND(C336=\"\",K336<>0),\"Kombination INST/Proj felaktig\",IF(OR(C336=LEFT(E336,2),E336=\"\"),\"\",\"Kombination INST/Proj felaktig\"))","v":""}]
["",null,null,null,null,null,null,null,null,null,null,"",0,0,""]
["",null,null,null,null,null,null,null,null,null,null,"",0,0,""]
["",null,null,null,null,null,null,null,null,null,null,"",0,0,""]
["",null,null,null,null,null,null,null,null,null,null,"",0,0,""]
["",null,null,null,null,null,null,null,null,null,null,"",0,0,""]
["",null,null,null,null,null,null,null,null,null,null,"",0,0,""]
["",null,null,null,null,null,null,null,null,null,null,"",0,0,""]
["",null,null,null,null,null,null,null,null,null,null,"",0,0,""]
["",null,null,null,null,null,null,null,null,null,null,"",0,0,""]
["",null,null,null,null,null,null,null,null,null,null,"",0,0,""]
["",null,null,null,null,null,null,null,null,null,null,"",0,0,""]
["",null,null,null,null,null,null,null,null,null,null,"",0,0,""]
["",null,null,null,null,null,null,null,null,null,null,"",0,0,""]
["",null,null,null,null,null,null,null,null,null,null,"",0,0,""]
["",null,null,null,null,null,null,null,null,null,null,"",0,0,""]
["",null,null,null,null,null,null,null,null,null,null,"",0,0,""]
["",null,null,null,null,null,null,null,null,null,null,"",0,0,""]
["",null,null,null,null,null,null,null,null,null,null,"",0,0,""]
["",null,null,null,null,null,null,null,null,null,null,"",0,0,""]
["",null,null,null,null,null,null,null,null,null,null,"",0,0,""]
["",null,null,null,null,null,null,null,null,null,null,"",0,0,""]
["",null,null,null,null,null,null,null,null,null,null,"",0,0,""]
["",null,null,null,null,null,null,null,null,null,null,"",0,0,""]
["",null,null,null,null,null,null,null,null,null,null,"",0,0,""]
["",null,null,null,null,null,null,null,null,null,null,"",0,0,""]
["",null,null,null,null,null,null,null,null,null,null,"",0,0,""]
["",null,null,null,null,null,null,null,null,null,null,"",0,0,""]
["",null,null,null,null,null,null,null,null,null,null,"",0,0,""]
["",null,null,null,null,null,null,null,null,null,null,"",0,0,""]
["",null,null,null,null,null,null,null,null,null,null,"",0,0,""]
["",null,null,null,null,null,null,null,null,null,null,"",0,0,""]
["",null,null,null,null,null,null,null,null,null,null,"",0,0,""]
["",null,null,null,null,null,null,null,null,null,null,"",0,0,""]
["",null,null,null,null,null,null,null,null,null,null,"",0,0,""]
["",null,null,null,null,null,null,null,null,null,null,"",0,0,""]
["",null,null,null,null,null,null,null,null,null,null,"",0,0,""]
["",null,null,null,null,null,null,null,null,null,null,"",0,0,""]
["",null,null,null,null,null,null,null,null,null,null,"",0,0,""]
["",null,null,null,null,null,null,null,null,null,null,{"$f":"UPPER(IF(K375<>0,valuta,\"\"))","v":""},0,0,""]
["",null,null,null,null,null,null,null,null,null,null,"",0,0,""]
["",null,null,null,null,null,null,null,null,null,null,"",0,0,""]
["",null,null,null,null,null,null,null,null,null,null,"",0,0,""]
["",null,null,null,null,null,null,null,null,null,null,"",0,0,""]
["",null,null,null,null,null,null,null,null,null,null,"",0,0,""]
["",null,null,null,null,null,null,null,null,null,null,"",0,0,""]
["",null,null,null,null,null,null,null,null,null,null,"",0,0,""]
["",null,null,null,null,null,null,null,null,null,null,"",0,0,""]
["",null,null,null,null,null,null,null,null,null,null,"",0,0,""]
["",null,null,null,null,null,null,null,null,null,null,"",0,0,""]
["",null,null,null,null,null,null,null,null,null,null,"",0,0,""]
["",null,null,null,null,null,null,null,null,null,null,"",0,0,""]
["",null,null,null,null,null,null,null,null,null,null,"",0,0,""]
["",null,null,null,null,null,null,null,null,null,null,"",0,0,""]
["",null,null,null,null,null,null,null,null,null,null,"",0,0,""]
["",null,null,null,null,null,null,null,null,null,null,"",0,0,""]
["",null,null,null,null,null,null,null,null,null,null,"",0,0,""]
["",null,null,null,null,null,null,null,null,null,null,"",0,0,""]
["",null,null,null,null,null,null,null,null,null,null,"",0,0,""]
["",null,null,null,null,null,null,null,null,null,null,"",0,0,""]
["",null,null,null,null,null,null,null,null,null,null,"",0,0,""]
["",null,null,null,null,null,null,null,null,null,null,"",0,0,""]
["",null,null,null,null,null,null,null,null,null,null,"",0,0,""]
["",null,null,null,null,null,null,null,null,null,null,"",0,0,""]
[{"$f":"IF(AND(K400<>0,$I$8=0,$I$9=\"OK \"),\"update_data\",\"\")","v":""},null,null,null,null,null,null,null,null,null,null,"",{"$f":"ROUND(K400,2)","v":0},{"$f":"ROUND(K400,2)","v":0},{"$f":"IF(AND(C400=\"\",K400<>0),\"Kombination INST/Proj felaktig\",IF(OR(C400=LEFT(E400,2),E400=\"\"),\"\",\"Kombination INST/Proj felaktig\"))","v":""}]
["",null,null,null,null,null,null,null,null,null,null,"",0,0,""]
["",null,null,null,null,null,null,null,null,null,null,"",0,0,""]
["",null,null,null,null,null,null,null,null,null,null,"",0,0,""]
["",null,null,null,null,null,null,null,null,null,null,"",0,0,""]
["",null,null,null,null,null,null,null,null,null,null,"",0,0,""]
["",null,null,null,null,null,null,null,null,null,null,"",0,0,""]
["",null,null,null,null,null,null,null,null,null,null,"",0,0,""]
["",null,null,null,null,null,null,null,null,null,null,"",0,0,""]
["",null,null,null,null,null,null,null,null,null,null,"",0,0,""]
["",null,null,null,null,null,null,null,null,null,null,"",0,0,""]
["",null,null,null,null,null,null,null,null,null,null,"",0,0,""]
["",null,null,null,null,null,null,null,null,null,null,"",0,0,""]
["",null,null,null,null,null,null,null,null,null,null,"",0,0,""]
["",null,null,null,null,null,null,null,null,null,null,"",0,0,""]
["",null,null,null,null,null,null,null,null,null,null,"",0,0,""]
["",null,null,null,null,null,null,null,null,null,null,"",0,0,""]
["",null,null,null,null,null,null,null,null,null,null,"",0,0,""]
["",null,null,null,null,null,null,null,null,null,null,"",0,0,""]
["",null,null,null,null,null,null,null,null,null,null,"",0,0,""]
["",null,null,null,null,null,null,null,null,null,null,"",0,0,""]
["",null,null,null,null,null,null,null,null,null,null,"",0,0,""]
["",null,null,null,null,null,null,null,null,null,null,"",0,0,""]
["",null,null,null,null,null,null,null,null,null,null,"",0,0,""]
["",null,null,null,null,null,null,null,null,null,null,"",0,0,""]
["",null,null,null,null,null,null,null,null,null,null,"",0,0,""]
["",null,null,null,null,null,null,null,null,null,null,"",0,0,""]
["",null,null,null,null,null,null,null,null,null,null,"",0,0,""]
["",null,null,null,null,null,null,null,null,null,null,"",0,0,""]
["",null,null,null,null,null,null,null,null,null,null,"",0,0,""]
["",null,null,null,null,null,null,null,null,null,null,"",0,0,""]
["",null,null,null,null,null,null,null,null,null,null,"",0,0,""]
["",null,null,null,null,null,null,null,null,null,null,"",0,0,""]
["",null,null,null,null,null,null,null,null,null,null,"",0,0,""]
["",null,null,null,null,null,null,null,null,null,null,"",0,0,""]
["",null,null,null,null,null,null,null,null,null,null,"",0,0,""]
["",null,null,null,null,null,null,null,null,null,null,"",0,0,""]
["",null,null,null,null,null,null,null,null,null,null,"",0,0,""]
["",null,null,null,null,null,null,null,null,null,null,"",0,0,""]
["",null,null,null,null,null,null,null,null,null,null,{"$f":"UPPER(IF(K439<>0,valuta,\"\"))","v":""},0,0,""]
["",null,null,null,null,null,null,null,null,null,null,"",0,0,""]
["",null,null,null,null,null,null,null,null,null,null,"",0,0,""]
["",null,null,null,null,null,null,null,null,null,null,"",0,0,""]
["",null,null,null,null,null,null,null,null,null,null,"",0,0,""]
["",null,null,null,null,null,null,null,null,null,null,"",0,0,""]
["",null,null,null,null,null,null,null,null,null,null,"",0,0,""]
["",null,null,null,null,null,null,null,null,null,null,"",0,0,""]
["",null,null,null,null,null,null,null,null,null,null,"",0,0,""]
["",null,null,null,null,null,null,null,null,null,null,"",0,0,""]
["",null,null,null,null,null,null,null,null,null,null,"",0,0,""]
["",null,null,null,null,null,null,null,null,null,null,"",0,0,""]
["",null,null,null,null,null,null,null,null,null,null,"",0,0,""]
["",null,null,null,null,null,null,null,null,null,null,"",0,0,""]
["",null,null,null,null,null,null,null,null,null,null,"",0,0,""]
["",null,null,null,null,null,null,null,null,null,null,"",0,0,""]
["",null,null,null,null,null,null,null,null,null,null,"",0,0,""]
["",null,null,null,null,null,null,null,null,null,null,"",0,0,""]
["",null,null,null,null,null,null,null,null,null,null,"",0,0,""]
["",null,null,null,null,null,null,null,null,null,null,"",0,0,""]
["",null,null,null,null,null,null,null,null,null,null,"",0,0,""]
["",null,null,null,null,null,null,null,null,null,null,"",0,0,""]
["",null,null,null,null,null,null,null,null,null,null,"",0,0,""]
["",null,null,null,null,null,null,null,null,null,null,"",0,0,""]
["",null,null,null,null,null,null,null,null,null,null,"",0,0,""]
[{"$f":"IF(AND(K464<>0,$I$8=0,$I$9=\"OK \"),\"update_data\",\"\")","v":""},null,null,null,null,null,null,null,null,null,null,"",{"$f":"ROUND(K464,2)","v":0},{"$f":"ROUND(K464,2)","v":0},{"$f":"IF(AND(C464=\"\",K464<>0),\"Kombination INST/Proj felaktig\",IF(OR(C464=LEFT(E464,2),E464=\"\"),\"\",\"Kombination INST/Proj felaktig\"))","v":""}]
["",null,null,null,null,null,null,null,null,null,null,"",0,0,""]
["",null,null,null,null,null,null,null,null,null,null,"",0,0,""]
["",null,null,null,null,null,null,null,null,null,null,"",0,0,""]
["",null,null,null,null,null,null,null,null,null,null,"",0,0,""]
["",null,null,null,null,null,null,null,null,null,null,"",0,0,""]
["",null,null,null,null,null,null,null,null,null,null,"",0,0,""]
["",null,null,null,null,null,null,null,null,null,null,"",0,0,""]
["",null,null,null,null,null,null,null,null,null,null,"",0,0,""]
["",null,null,null,null,null,null,null,null,null,null,"",0,0,""]
["",null,null,null,null,null,null,null,null,null,null,"",0,0,""]
["",null,null,null,null,null,null,null,null,null,null,"",0,0,""]
["",null,null,null,null,null,null,null,null,null,null,"",0,0,""]
["",null,null,null,null,null,null,null,null,null,null,"",0,0,""]
["",null,null,null,null,null,null,null,null,null,null,"",0,0,""]
["",null,null,null,null,null,null,null,null,null,null,"",0,0,""]
["",null,null,null,null,null,null,null,null,null,null,"",0,0,""]
["",null,null,null,null,null,null,null,null,null,null,"",0,0,""]
["",null,null,null,null,null,null,null,null,null,null,"",0,0,""]
["",null,null,null,null,null,null,null,null,null,null,"",0,0,""]
["",null,null,null,null,null,null,null,null,null,null,"",0,0,""]
["",null,null,null,null,null,null,null,null,null,null,"",0,0,""]
["",null,null,null,null,null,null,null,null,null,null,"",0,0,""]
["",null,null,null,null,null,null,null,null,null,null,"",0,0,""]
["",null,null,null,null,null,null,null,null,null,null,"",0,0,""]
["",null,null,null,null,null,null,null,null,null,null,"",0,0,""]
["",null,null,null,null,null,null,null,null,null,null,"",0,0,""]
["",null,null,null,null,null,null,null,null,null,null,"",0,0,""]
["",null,null,null,null,null,null,null,null,null,null,"",0,0,""]
["",null,null,null,null,null,null,null,null,null,null,"",0,0,""]
["",null,null,null,null,null,null,null,null,null,null,"",0,0,""]
["",null,null,null,null,null,null,null,null,null,null,"",0,0,""]
["",null,null,null,null,null,null,null,null,null,null,"",0,0,""]
["",null,null,null,null,null,null,null,null,null,null,"",0,0,""]
["",null,null,null,null,null,null,null,null,null,null,"",0,0,""]
["",null,null,null,null,null,null,null,null,null,null,"",0,0,""]
["",null,null,null,null,null,null,null,null,null,null,"",0,0,""]
["",null,null,null,null,null,null,null,null,null,null,"",0,0,""]
["",null,null,null,null,null,null,null,null,null,null,"",0,0,""]
["",null,null,null,null,null,null,null,null,null,null,{"$f":"UPPER(IF(K503<>0,valuta,\"\"))","v":""},0,0,""]
["",null,null,null,null,null,null,null,null,null,null,"",0,0,""]
["",null,null,null,null,null,null,null,null,null,null,"",0,0,""]
["",null,null,null,null,null,null,null,null,null,null,"",0,0,""]
["",null,null,null,null,null,null,null,null,null,null,"",0,0,""]
["",null,null,null,null,null,null,null,null,null,null,"",0,0,""]
["",null,null,null,null,null,null,null,null,null,null,"",0,0,""]
["",null,null,null,null,null,null,null,null,null,null,"",0,0,""]
["",null,null,null,null,null,null,null,null,null,null,"",0,0,""]
["",null,null,null,null,null,null,null,null,null,null,"",0,0,""]
["",null,null,null,null,null,null,null,null,null,null,"",0,0,""]
["",null,null,null,null,null,null,null,null,null,null,"",0,0,""]
["",null,null,null,null,null,null,null,null,null,null,"",0,0,""]
["",null,null,null,null,null,null,null,null,null,null,"",0,0,""]
["",null,null,null,null,null,null,null,null,null,null,"",0,0,""]
["",null,null,null,null,null,null,null,null,null,null,"",0,0,""]
["",null,null,null,null,null,null,null,null,null,null,"",0,0,""]
["",null,null,null,null,null,null,null,null,null,null,"",0,0,""]
["",null,null,null,null,null,null,null,null,null,null,"",0,0,""]
["",null,null,null,null,null,null,null,null,null,null,"",0,0,""]
["",null,null,null,null,null,null,null,null,null,null,"",0,0,""]
["",null,null,null,null,null,null,null,null,null,null,"",0,0,""]
["",null,null,null,null,null,null,null,null,null,null,"",0,0,""]
["",null,null,null,null,null,null,null,null,null,null,"",0,0,""]
["",null,null,null,null,null,null,null,null,null,null,"",0,0,""]
[{"$f":"IF(AND(K528<>0,$I$8=0,$I$9=\"OK \"),\"update_data\",\"\")","v":""},null,null,null,null,null,null,null,null,null,null,"",{"$f":"ROUND(K528,2)","v":0},{"$f":"ROUND(K528,2)","v":0},{"$f":"IF(AND(C528=\"\",K528<>0),\"Kombination INST/Proj felaktig\",IF(OR(C528=LEFT(E528,2),E528=\"\"),\"\",\"Kombination INST/Proj felaktig\"))","v":""}]
["",null,null,null,null,null,null,null,null,null,null,"",0,0,""]
["",null,null,null,null,null,null,null,null,null,null,"",0,0,""]
["",null,null,null,null,null,null,null,null,null,null,"",0,0,""]
["",null,null,null,null,null,null,null,null,null,null,"",0,0,""]
["",null,null,null,null,null,null,null,null,null,null,"",0,0,""]
["",null,null,null,null,null,null,null,null,null,null,"",0,0,""]
["",null,null,null,null,null,null,null,null,null,null,"",0,0,""]
["",null,null,null,null,null,null,null,null,null,null,"",0,0,""]
["",null,null,null,null,null,null,null,null,null,null,"",0,0,""]
["",null,null,null,null,null,null,null,null,null,null,"",0,0,""]
["",null,null,null,null,null,null,null,null,null,null,"",0,0,""]
["",null,null,null,null,null,null,null,null,null,null,"",0,0,""]
["",null,null,null,null,null,null,null,null,null,null,"",0,0,""]
["",null,null,null,null,null,null,null,null,null,null,"",0,0,""]
["",null,null,null,null,null,null,null,null,null,null,"",0,0,""]
["",null,null,null,null,null,null,null,null,null,null,"",0,0,""]
["",null,null,null,null,null,null,null,null,null,null,"",0,0,""]
["",null,null,null,null,null,null,null,null,null,null,"",0,0,""]
["",null,null,null,null,null,null,null,null,null,null,"",0,0,""]
["",null,null,null,null,null,null,null,null,null,null,"",0,0,""]
["",null,null,null,null,null,null,null,null,null,null,"",0,0,""]
["",null,null,null,null,null,null,null,null,null,null,"",0,0,""]
["",null,null,null,null,null,null,null,null,null,null,"",0,0,""]
["",null,null,null,null,null,null,null,null,null,null,"",0,0,""]
["",null,null,null,null,null,null,null,null,null,null,"",0,0,""]
["",null,null,null,null,null,null,null,null,null,null,"",0,0,""]
["",null,null,null,null,null,null,null,null,null,null,"",0,0,""]
["",null,null,null,null,null,null,null,null,null,null,"",0,0,""]
["",null,null,null,null,null,null,null,null,null,null,"",0,0,""]
["",null,null,null,null,null,null,null,null,null,null,"",0,0,""]
["",null,null,null,null,null,null,null,null,null,null,"",0,0,""]
["",null,null,null,null,null,null,null,null,null,null,"",0,0,""]
["",null,null,null,null,null,null,null,null,null,null,"",0,0,""]
["",null,null,null,null,null,null,null,null,null,null,"",0,0,""]
["",null,null,null,null,null,null,null,null,null,null,"",0,0,""]
["",null,null,null,null,null,null,null,null,null,null,"",0,0,""]
["",null,null,null,null,null,null,null,null,null,null,"",0,0,""]
["",null,null,null,null,null,null,null,null,null,null,"",0,0,""]
["",null,null,null,null,null,null,null,null,null,null,{"$f":"UPPER(IF(K567<>0,valuta,\"\"))","v":""},0,0,""]
["",null,null,null,null,null,null,null,null,null,null,"",0,0,""]
["",null,null,null,null,null,null,null,null,null,null,"",0,0,""]
["",null,null,null,null,null,null,null,null,null,null,"",0,0,""]
["",null,null,null,null,null,null,null,null,null,null,"",0,0,""]
["",null,null,null,null,null,null,null,null,null,null,"",0,0,""]
["",null,null,null,null,null,null,null,null,null,null,"",0,0,""]
["",null,null,null,null,null,null,null,null,null,null,"",0,0,""]
["",null,null,null,null,null,null,null,null,null,null,"",0,0,""]
["",null,null,null,null,null,null,null,null,null,null,"",0,0,""]
["",null,null,null,null,null,null,null,null,null,null,"",0,0,""]
["",null,null,null,null,null,null,null,null,null,null,"",0,0,""]
["",null,null,null,null,null,null,null,null,null,null,"",0,0,""]
["",null,null,null,null,null,null,null,null,null,null,"",0,0,""]
["",null,null,null,null,null,null,null,null,null,null,"",0,0,""]
["",null,null,null,null,null,null,null,null,null,null,"",0,0,""]
["",null,null,null,null,null,null,null,null,null,null,"",0,0,""]
["",null,null,null,null,null,null,null,null,null,null,"",0,0,""]
["",null,null,null,null,null,null,null,null,null,null,"",0,0,""]
["",null,null,null,null,null,null,null,null,null,null,"",0,0,""]
["",null,null,null,null,null,null,null,null,null,null,"",0,0,""]
["",null,null,null,null,null,null,null,null,null,null,"",0,0,""]
["",null,null,null,null,null,null,null,null,null,null,"",0,0,""]
["",null,null,null,null,null,null,null,null,null,null,"",0,0,""]
["",null,null,null,null,null,null,null,null,null,null,"",0,0,""]
[{"$f":"IF(AND(K592<>0,$I$8=0,$I$9=\"OK \"),\"update_data\",\"\")","v":""},null,null,null,null,null,null,null,null,null,null,"",{"$f":"ROUND(K592,2)","v":0},{"$f":"ROUND(K592,2)","v":0},{"$f":"IF(AND(C592=\"\",K592<>0),\"Kombination INST/Proj felaktig\",IF(OR(C592=LEFT(E592,2),E592=\"\"),\"\",\"Kombination INST/Proj felaktig\"))","v":""}]
["",null,null,null,null,null,null,null,null,null,null,"",0,0,""]
["",null,null,null,null,null,null,null,null,null,null,"",0,0,""]
["",null,null,null,null,null,null,null,null,null,null,"",0,0,""]
["",null,null,null,null,null,null,null,null,null,null,"",0,0,""]
["",null,null,null,null,null,null,null,null,null,null,"",0,0,""]
["",null,null,null,null,null,null,null,null,null,null,"",0,0,""]
["",null,null,null,null,null,null,null,null,null,null,"",0,0,""]
["",null,null,null,null,null,null,null,null,null,null,"",0,0,""]
["",null,null,null,null,null,null,null,null,null,null,"",0,0,""]
["",null,null,null,null,null,null,null,null,null,null,"",0,0,""]
["",null,null,null,null,null,null,null,null,null,null,"",0,0,""]
["",null,null,null,null,null,null,null,null,null,null,"",0,0,""]
["",null,null,null,null,null,null,null,null,null,null,"",0,0,""]
["",null,null,null,null,null,null,null,null,null,null,"",0,0,""]
["",null,null,null,null,null,null,null,null,null,null,"",0,0,""]
["",null,null,null,null,null,null,null,null,null,null,"",0,0,""]
["",null,null,null,null,null,null,null,null,null,null,"",0,0,""]
["",null,null,null,null,null,null,null,null,null,null,"",0,0,""]
["",null,null,null,null,null,null,null,null,null,null,"",0,0,""]
["",null,null,null,null,null,null,null,null,null,null,"",0,0,""]
["",null,null,null,null,null,null,null,null,null,null,"",0,0,""]
["",null,null,null,null,null,null,null,null,null,null,"",0,0,""]
["",null,null,null,null,null,null,null,null,null,null,"",0,0,""]
["",null,null,null,null,null,null,null,null,null,null,"",0,0,""]
["",null,null,null,null,null,null,null,null,null,null,"",0,0,""]
["",null,null,null,null,null,null,null,null,null,null,"",0,0,""]
["",null,null,null,null,null,null,null,null,null,null,"",0,0,""]
["",null,null,null,null,null,null,null,null,null,null,"",0,0,""]
["",null,null,null,null,null,null,null,null,null,null,"",0,0,""]
["",null,null,null,null,null,null,null,null,null,null,"",0,0,""]
["",null,null,null,null,null,null,null,null,null,null,"",0,0,""]
["",null,null,null,null,null,null,null,null,null,null,"",0,0,""]
["",null,null,null,null,null,null,null,null,null,null,"",0,0,""]
["",null,null,null,null,null,null,null,null,null,null,"",0,0,""]
["",null,null,null,null,null,null,null,null,null,null,"",0,0,""]
["",null,null,null,null,null,null,null,null,null,null,"",0,0,""]
["",null,null,null,null,null,null,null,null,null,null,"",0,0,""]
["",null,null,null,null,null,null,null,null,null,null,"",0,0,""]
["",null,null,null,null,null,null,null,null,null,null,{"$f":"UPPER(IF(K631<>0,valuta,\"\"))","v":""},0,0,""]
["",null,null,null,null,null,null,null,null,null,null,"",0,0,""]
["",null,null,null,null,null,null,null,null,null,null,"",0,0,""]
["",null,null,null,null,null,null,null,null,null,null,"",0,0,""]
["",null,null,null,null,null,null,null,null,null,null,"",0,0,""]
["",null,null,null,null,null,null,null,null,null,null,"",0,0,""]
["",null,null,null,null,null,null,null,null,null,null,"",0,0,""]
["",null,null,null,null,null,null,null,null,null,null,"",0,0,""]
["",null,null,null,null,null,null,null,null,null,null,"",0,0,""]
["",null,null,null,null,null,null,null,null,null,null,"",0,0,""]
["",null,null,null,null,null,null,null,null,null,null,"",0,0,""]
["",null,null,null,null,null,null,null,null,null,null,"",0,0,""]
["",null,null,null,null,null,null,null,null,null,null,"",0,0,""]
["",null,null,null,null,null,null,null,null,null,null,"",0,0,""]
["",null,null,null,null,null,null,null,null,null,null,"",0,0,""]
["",null,null,null,null,null,null,null,null,null,null,"",0,0,""]
["",null,null,null,null,null,null,null,null,null,null,"",0,0,""]
["",null,null,null,null,null,null,null,null,null,null,"",0,0,""]
["",null,null,null,null,null,null,null,null,null,null,"",0,0,""]
["",null,null,null,null,null,null,null,null,null,null,"",0,0,""]
["",null,null,null,null,null,null,null,null,null,null,"",0,0,""]
["",null,null,null,null,null,null,null,null,null,null,"",0,0,""]
["",null,null,null,null,null,null,null,null,null,null,"",0,0,""]
["",null,null,null,null,null,null,null,null,null,null,"",0,0,""]
["",null,null,null,null,null,null,null,null,null,null,"",0,0,""]
[{"$f":"IF(AND(K656<>0,$I$8=0,$I$9=\"OK \"),\"update_data\",\"\")","v":""},null,null,null,null,null,null,null,null,null,null,"",{"$f":"ROUND(K656,2)","v":0},{"$f":"ROUND(K656,2)","v":0},{"$f":"IF(AND(C656=\"\",K656<>0),\"Kombination INST/Proj felaktig\",IF(OR(C656=LEFT(E656,2),E656=\"\"),\"\",\"Kombination INST/Proj felaktig\"))","v":""}]
["",null,null,null,null,null,null,null,null,null,null,"",0,0,""]
["",null,null,null,null,null,null,null,null,null,null,"",0,0,""]
["",null,null,null,null,null,null,null,null,null,null,"",0,0,""]
["",null,null,null,null,null,null,null,null,null,null,"",0,0,""]
["",null,null,null,null,null,null,null,null,null,null,"",0,0,""]
["",null,null,null,null,null,null,null,null,null,null,"",0,0,""]
["",null,null,null,null,null,null,null,null,null,null,"",0,0,""]
["",null,null,null,null,null,null,null,null,null,null,"",0,0,""]
["",null,null,null,null,null,null,null,null,null,null,"",0,0,""]
["",null,null,null,null,null,null,null,null,null,null,"",0,0,""]
["",null,null,null,null,null,null,null,null,null,null,"",0,0,""]
["",null,null,null,null,null,null,null,null,null,null,"",0,0,""]
["",null,null,null,null,null,null,null,null,null,null,"",0,0,""]
["",null,null,null,null,null,null,null,null,null,null,"",0,0,""]
["",null,null,null,null,null,null,null,null,null,null,"",0,0,""]
["",null,null,null,null,null,null,null,null,null,null,"",0,0,""]
["",null,null,null,null,null,null,null,null,null,null,"",0,0,""]
["",null,null,null,null,null,null,null,null,null,null,"",0,0,""]
["",null,null,null,null,null,null,null,null,null,null,"",0,0,""]
["",null,null,null,null,null,null,null,null,null,null,"",0,0,""]
["",null,null,null,null,null,null,null,null,null,null,"",0,0,""]
["",null,null,null,null,null,null,null,null,null,null,"",0,0,""]
["",null,null,null,null,null,null,null,null,null,null,"",0,0,""]
["",null,null,null,null,null,null,null,null,null,null,"",0,0,""]
["",null,null,null,null,null,null,null,null,null,null,"",0,0,""]
["",null,null,null,null,null,null,null,null,null,null,"",0,0,""]
["",null,null,null,null,null,null,null,null,null,null,"",0,0,""]
["",null,null,null,null,null,null,null,null,null,null,"",0,0,""]
["",null,null,null,null,null,null,null,null,null,null,"",0,0,""]
["",null,null,null,null,null,null,null,null,null,null,"",0,0,""]
["",null,null,null,null,null,null,null,null,null,null,"",0,0,""]
["",null,null,null,null,null,null,null,null,null,null,"",0,0,""]
["",null,null,null,null,null,null,null,null,null,null,"",0,0,""]
["",null,null,null,null,null,null,null,null,null,null,"",0,0,""]
["",null,null,null,null,null,null,null,null,null,null,"",0,0,""]
["",null,null,null,null,null,null,null,null,null,null,"",0,0,""]
["",null,null,null,null,null,null,null,null,null,null,"",0,0,""]
["",null,null,null,null,null,null,null,null,null,null,"",0,0,""]
["",null,null,null,null,null,null,null,null,null,null,{"$f":"UPPER(IF(K695<>0,valuta,\"\"))","v":""},0,0,""]
["",null,null,null,null,null,null,null,null,null,null,"",0,0,""]
["",null,null,null,null,null,null,null,null,null,null,"",0,0,""]
["",null,null,null,null,null,null,null,null,null,null,"",0,0,""]
["",null,null,null,null,null,null,null,null,null,null,"",0,0,""]
["",null,null,null,null,null,null,null,null,null,null,"",0,0,""]
["",null,null,null,null,null,null,null,null,null,null,"",0,0,""]
["",null,null,null,null,null,null,null,null,null,null,"",0,0,""]
["",null,null,null,null,null,null,null,null,null,null,"",0,0,""]
["",null,null,null,null,null,null,null,null,null,null,"",0,0,""]
["",null,null,null,null,null,null,null,null,null,null,"",0,0,""]
["",null,null,null,null,null,null,null,null,null,null,"",0,0,""]
["",null,null,null,null,null,null,null,null,null,null,"",0,0,""]
["",null,null,null,null,null,null,null,null,null,null,"",0,0,""]
["",null,null,null,null,null,null,null,null,null,null,"",0,0,""]
["",null,null,null,null,null,null,null,null,null,null,"",0,0,""]
["",null,null,null,null,null,null,null,null,null,null,"",0,0,""]
["",null,null,null,null,null,null,null,null,null,null,"",0,0,""]
["",null,null,null,null,null,null,null,null,null,null,"",0,0,""]
["",null,null,null,null,null,null,null,null,null,null,"",0,0,""]
["",null,null,null,null,null,null,null,null,null,null,"",0,0,""]
["",null,null,null,null,null,null,null,null,null,null,"",0,0,""]
["",null,null,null,null,null,null,null,null,null,null,"",0,0,""]
["",null,null,null,null,null,null,null,null,null,null,"",0,0,""]
["",null,null,null,null,null,null,null,null,null,null,"",0,0,""]
[{"$f":"IF(AND(K720<>0,$I$8=0,$I$9=\"OK \"),\"update_data\",\"\")","v":""},null,null,null,null,null,null,null,null,null,null,"",{"$f":"ROUND(K720,2)","v":0},{"$f":"ROUND(K720,2)","v":0},{"$f":"IF(AND(C720=\"\",K720<>0),\"Kombination INST/Proj felaktig\",IF(OR(C720=LEFT(E720,2),E720=\"\"),\"\",\"Kombination INST/Proj felaktig\"))","v":""}]
["",null,null,null,null,null,null,null,null,null,null,"",0,0,""]
["",null,null,null,null,null,null,null,null,null,null,"",0,0,""]
["",null,null,null,null,null,null,null,null,null,null,"",0,0,""]
["",null,null,null,null,null,null,null,null,null,null,"",0,0,""]
["",null,null,null,null,null,null,null,null,null,null,"",0,0,""]
["",null,null,null,null,null,null,null,null,null,null,"",0,0,""]
["",null,null,null,null,null,null,null,null,null,null,"",0,0,""]
["",null,null,null,null,null,null,null,null,null,null,"",0,0,""]
["",null,null,null,null,null,null,null,null,null,null,"",0,0,""]
["",null,null,null,null,null,null,null,null,null,null,"",0,0,""]
["",null,null,null,null,null,null,null,null,null,null,"",0,0,""]
["",null,null,null,null,null,null,null,null,null,null,"",0,0,""]
["",null,null,null,null,null,null,null,null,null,null,"",0,0,""]
["",null,null,null,null,null,null,null,null,null,null,"",0,0,""]
["",null,null,null,null,null,null,null,null,null,null,"",0,0,""]
["",null,null,null,null,null,null,null,null,null,null,"",0,0,""]
["",null,null,null,null,null,null,null,null,null,null,"",0,0,""]
["",null,null,null,null,null,null,null,null,null,null,"",0,0,""]
["",null,null,null,null,null,null,null,null,null,null,"",0,0,""]
["",null,null,null,null,null,null,null,null,null,null,"",0,0,""]
["",null,null,null,null,null,null,null,null,null,null,"",0,0,""]
["",null,null,null,null,null,null,null,null,null,null,"",0,0,""]
["",null,null,null,null,null,null,null,null,null,null,"",0,0,""]
["",null,null,null,null,null,null,null,null,null,null,"",0,0,""]
["",null,null,null,null,null,null,null,null,null,null,"",0,0,""]
["",null,null,null,null,null,null,null,null,null,null,"",0,0,""]
["",null,null,null,null,null,null,null,null,null,null,"",0,0,""]
["",null,null,null,null,null,null,null,null,null,null,"",0,0,""]
["",null,null,null,null,null,null,null,null,null,null,"",0,0,""]
["",null,null,null,null,null,null,null,null,null,null,"",0,0,""]
["",null,null,null,null,null,null,null,null,null,null,"",0,0,""]
["",null,null,null,null,null,null,null,null,null,null,"",0,0,""]
["",null,null,null,null,null,null,null,null,null,null,"",0,0,""]
["",null,null,null,null,null,null,null,null,null,null,"",0,0,""]
["",null,null,null,null,null,null,null,null,null,null,"",0,0,""]
["",null,null,null,null,null,null,null,null,null,null,"",0,0,""]
["",null,null,null,null,null,null,null,null,null,null,"",0,0,""]
["",null,null,null,null,null,null,null,null,null,null,"",0,0,""]
["",null,null,null,null,null,null,null,null,null,null,{"$f":"UPPER(IF(K759<>0,valuta,\"\"))","v":""},0,0,""]
["",null,null,null,null,null,null,null,null,null,null,"",0,0,""]
["",null,null,null,null,null,null,null,null,null,null,"",0,0,""]
["",null,null,null,null,null,null,null,null,null,null,"",0,0,""]
["",null,null,null,null,null,null,null,null,null,null,"",0,0,""]
["",null,null,null,null,null,null,null,null,null,null,"",0,0,""]
["",null,null,null,null,null,null,null,null,null,null,"",0,0,""]
["",null,null,null,null,null,null,null,null,null,null,"",0,0,""]
["",null,null,null,null,null,null,null,null,null,null,"",0,0,""]
["",null,null,null,null,null,null,null,null,null,null,"",0,0,""]
["",null,null,null,null,null,null,null,null,null,null,"",0,0,""]
["",null,null,null,null,null,null,null,null,null,null,"",0,0,""]
["",null,null,null,null,null,null,null,null,null,null,"",0,0,""]
["",null,null,null,null,null,null,null,null,null,null,"",0,0,""]
["",null,null,null,null,null,null,null,null,null,null,"",0,0,""]
["",null,null,null,null,null,null,null,null,null,null,"",0,0,""]
["",null,null,null,null,null,null,null,null,null,null,"",0,0,""]
["",null,null,null,null,null,null,null,null,null,null,"",0,0,""]
["",null,null,null,null,null,null,null,null,null,null,"",0,0,""]
["",null,null,null,null,null,null,null,null,null,null,"",0,0,""]
["",null,null,null,null,null,null,null,null,null,null,"",0,0,""]
["",null,null,null,null,null,null,null,null,null,null,"",0,0,""]
["",null,null,null,null,null,null,null,null,null,null,"",0,0,""]
["",null,null,null,null,null,null,null,null,null,null,"",0,0,""]
["",null,null,null,null,null,null,null,null,null,null,"",0,0,""]
[{"$f":"IF(AND(K784<>0,$I$8=0,$I$9=\"OK \"),\"update_data\",\"\")","v":""},null,null,null,null,null,null,null,null,null,null,"",{"$f":"ROUND(K784,2)","v":0},{"$f":"ROUND(K784,2)","v":0},{"$f":"IF(AND(C784=\"\",K784<>0),\"Kombination INST/Proj felaktig\",IF(OR(C784=LEFT(E784,2),E784=\"\"),\"\",\"Kombination INST/Proj felaktig\"))","v":""}]
["",null,null,null,null,null,null,null,null,null,null,"",0,0,""]
["",null,null,null,null,null,null,null,null,null,null,"",0,0,""]
["",null,null,null,null,null,null,null,null,null,null,"",0,0,""]
["",null,null,null,null,null,null,null,null,null,null,"",0,0,""]
["",null,null,null,null,null,null,null,null,null,null,"",0,0,""]
["",null,null,null,null,null,null,null,null,null,null,"",0,0,""]
["",null,null,null,null,null,null,null,null,null,null,"",0,0,""]
["",null,null,null,null,null,null,null,null,null,null,"",0,0,""]
["",null,null,null,null,null,null,null,null,null,null,"",0,0,""]
["",null,null,null,null,null,null,null,null,null,null,"",0,0,""]
["",null,null,null,null,null,null,null,null,null,null,"",0,0,""]
["",null,null,null,null,null,null,null,null,null,null,"",0,0,""]
["",null,null,null,null,null,null,null,null,null,null,"",0,0,""]
["",null,null,null,null,null,null,null,null,null,null,"",0,0,""]
["",null,null,null,null,null,null,null,null,null,null,"",0,0,""]
["",null,null,null,null,null,null,null,null,null,null,"",0,0,""]
["",null,null,null,null,null,null,null,null,null,null,"",0,0,""]
["",null,null,null,null,null,null,null,null,null,null,"",0,0,""]
["",null,null,null,null,null,null,null,null,null,null,"",0,0,""]
["",null,null,null,null,null,null,null,null,null,null,"",0,0,""]
["",null,null,null,null,null,null,null,null,null,null,"",0,0,""]
["",null,null,null,null,null,null,null,null,null,null,"",0,0,""]
["",null,null,null,null,null,null,null,null,null,null,"",0,0,""]
["",null,null,null,null,null,null,null,null,null,null,"",0,0,""]
["",null,null,null,null,null,null,null,null,null,null,"",0,0,""]
["",null,null,null,null,null,null,null,null,null,null,"",0,0,""]
["",null,null,null,null,null,null,null,null,null,null,"",0,0,""]
["",null,null,null,null,null,null,null,null,null,null,"",0,0,""]
["",null,null,null,null,null,null,null,null,null,null,"",0,0,""]
["",null,null,null,null,null,null,null,null,null,null,"",0,0,""]
["",null,null,null,null,null,null,null,null,null,null,"",0,0,""]
["",null,null,null,null,null,null,null,null,null,null,"",0,0,""]
["",null,null,null,null,null,null,null,null,null,null,"",0,0,""]
["",null,null,null,null,null,null,null,null,null,null,"",0,0,""]
["",null,null,null,null,null,null,null,null,null,null,"",0,0,""]
["",null,null,null,null,null,null,null,null,null,null,"",0,0,""]
["",null,null,null,null,null,null,null,null,null,null,"",0,0,""]
["",null,null,null,null,null,null,null,null,null,null,"",0,0,""]
["",null,null,null,null,null,null,null,null,null,null,{"$f":"UPPER(IF(K823<>0,valuta,\"\"))","v":""},0,0,""]
["",null,null,null,null,null,null,null,null,null,null,"",0,0,""]
["",null,null,null,null,null,null,null,null,null,null,"",0,0,""]
["",null,null,null,null,null,null,null,null,null,null,"",0,0,""]
["",null,null,null,null,null,null,null,null,null,null,"",0,0,""]
["",null,null,null,null,null,null,null,null,null,null,"",0,0,""]
["",null,null,null,null,null,null,null,null,null,null,"",0,0,""]
["",null,null,null,null,null,null,null,null,null,null,"",0,0,""]
["",null,null,null,null,null,null,null,null,null,null,"",0,0,""]
["",null,null,null,null,null,null,null,null,null,null,"",0,0,""]
["",null,null,null,null,null,null,null,null,null,null,"",0,0,""]
["",null,null,null,null,null,null,null,null,null,null,"",0,0,""]
["",null,null,null,null,null,null,null,null,null,null,"",0,0,""]
["",null,null,null,null,null,null,null,null,null,null,"",0,0,""]
["",null,null,null,null,null,null,null,null,null,null,"",0,0,""]
["",null,null,null,null,null,null,null,null,null,null,"",0,0,""]
["",null,null,null,null,null,null,null,null,null,null,"",0,0,""]
["",null,null,null,null,null,null,null,null,null,null,"",0,0,""]
["",null,null,null,null,null,null,null,null,null,null,"",0,0,""]
["",null,null,null,null,null,null,null,null,null,null,"",0,0,""]
["",null,null,null,null,null,null,null,null,null,null,"",0,0,""]
["",null,null,null,null,null,null,null,null,null,null,"",0,0,""]
["",null,null,null,null,null,null,null,null,null,null,"",0,0,""]
["",null,null,null,null,null,null,null,null,null,null,"",0,0,""]
["",null,null,null,null,null,null,null,null,null,null,"",0,0,""]
[{"$f":"IF(AND(K848<>0,$I$8=0,$I$9=\"OK \"),\"update_data\",\"\")","v":""},null,null,null,null,null,null,null,null,null,null,"",{"$f":"ROUND(K848,2)","v":0},{"$f":"ROUND(K848,2)","v":0},{"$f":"IF(AND(C848=\"\",K848<>0),\"Kombination INST/Proj felaktig\",IF(OR(C848=LEFT(E848,2),E848=\"\"),\"\",\"Kombination INST/Proj felaktig\"))","v":""}]
["",null,null,null,null,null,null,null,null,null,null,"",0,0,""]
["",null,null,null,null,null,null,null,null,null,null,"",0,0,""]
["",null,null,null,null,null,null,null,null,null,null,"",0,0,""]
["",null,null,null,null,null,null,null,null,null,null,"",0,0,""]
["",null,null,null,null,null,null,null,null,null,null,"",0,0,""]
["",null,null,null,null,null,null,null,null,null,null,"",0,0,""]
["",null,null,null,null,null,null,null,null,null,null,"",0,0,""]
["",null,null,null,null,null,null,null,null,null,null,"",0,0,""]
["",null,null,null,null,null,null,null,null,null,null,"",0,0,""]
["",null,null,null,null,null,null,null,null,null,null,"",0,0,""]
["",null,null,null,null,null,null,null,null,null,null,"",0,0,""]
["",null,null,null,null,null,null,null,null,null,null,"",0,0,""]
["",null,null,null,null,null,null,null,null,null,null,"",0,0,""]
["",null,null,null,null,null,null,null,null,null,null,"",0,0,""]
["",null,null,null,null,null,null,null,null,null,null,"",0,0,""]
["",null,null,null,null,null,null,null,null,null,null,"",0,0,""]
["",null,null,null,null,null,null,null,null,null,null,"",0,0,""]
["",null,null,null,null,null,null,null,null,null,null,"",0,0,""]
["",null,null,null,null,null,null,null,null,null,null,"",0,0,""]
["",null,null,null,null,null,null,null,null,null,null,"",0,0,""]
["",null,null,null,null,null,null,null,null,null,null,"",0,0,""]
["",null,null,null,null,null,null,null,null,null,null,"",0,0,""]
["",null,null,null,null,null,null,null,null,null,null,"",0,0,""]
["",null,null,null,null,null,null,null,null,null,null,"",0,0,""]
["",null,null,null,null,null,null,null,null,null,null,"",0,0,""]
["",null,null,null,null,null,null,null,null,null,null,"",0,0,""]
["",null,null,null,null,null,null,null,null,null,null,"",0,0,""]
["",null,null,null,null,null,null,null,null,null,null,"",0,0,""]
["",null,null,null,null,null,null,null,null,null,null,"",0,0,""]
["",null,null,null,null,null,null,null,null,null,null,"",0,0,""]
["",null,null,null,null,null,null,null,null,null,null,"",0,0,""]
["",null,null,null,null,null,null,null,null,null,null,"",0,0,""]
["",null,null,null,null,null,null,null,null,null,null,"",0,0,""]
["",null,null,null,null,null,null,null,null,null,null,"",0,0,""]
["",null,null,null,null,null,null,null,null,null,null,"",0,0,""]
["",null,null,null,null,null,null,null,null,null,null,"",0,0,""]
["",null,null,null,null,null,null,null,null,null,null,"",0,0,""]
["",null,null,null,null,null,null,null,null,null,null,"",0,0,""]
["",null,null,null,null,null,null,null,null,null,null,{"$f":"UPPER(IF(K887<>0,valuta,\"\"))","v":""},0,0,""]
["",null,null,null,null,null,null,null,null,null,null,"",0,0,""]
["",null,null,null,null,null,null,null,null,null,null,"",0,0,""]
["",null,null,null,null,null,null,null,null,null,null,"",0,0,""]
["",null,null,null,null,null,null,null,null,null,null,"",0,0,""]
["",null,null,null,null,null,null,null,null,null,null,"",0,0,""]
["",null,null,null,null,null,null,null,null,null,null,"",0,0,""]
["",null,null,null,null,null,null,null,null,null,null,"",0,0,""]
["",null,null,null,null,null,null,null,null,null,null,"",0,0,""]
["",null,null,null,null,null,null,null,null,null,null,"",0,0,""]
["",null,null,null,null,null,null,null,null,null,null,"",0,0,""]
["",null,null,null,null,null,null,null,null,null,null,"",0,0,""]
["",null,null,null,null,null,null,null,null,null,null,"",0,0,""]
["",null,null,null,null,null,null,null,null,null,null,"",0,0,""]
["",null,null,null,null,null,null,null,null,null,null,"",0,0,""]
["",null,null,null,null,null,null,null,null,null,null,"",0,0,""]
["",null,null,null,null,null,null,null,null,null,null,"",0,0,""]
["",null,null,null,null,null,null,null,null,null,null,"",0,0,""]
["",null,null,null,null,null,null,null,null,null,null,"",0,0,""]
["",null,null,null,null,null,null,null,null,null,null,"",0,0,""]
["",null,null,null,null,null,null,null,null,null,null,"",0,0,""]
["",null,null,null,null,null,null,null,null,null,null,"",0,0,""]
["",null,null,null,null,null,null,null,null,null,null,"",0,0,""]
["",null,null,null,null,null,null,null,null,null,null,"",0,0,""]
["",null,null,null,null,null,null,null,null,null,null,"",0,0,""]
[{"$f":"IF(AND(K912<>0,$I$8=0,$I$9=\"OK \"),\"update_data\",\"\")","v":""},null,null,null,null,null,null,null,null,null,null,"",{"$f":"ROUND(K912,2)","v":0},{"$f":"ROUND(K912,2)","v":0},{"$f":"IF(AND(C912=\"\",K912<>0),\"Kombination INST/Proj felaktig\",IF(OR(C912=LEFT(E912,2),E912=\"\"),\"\",\"Kombination INST/Proj felaktig\"))","v":""}]
["",null,null,null,null,null,null,null,null,null,null,"",0,0,""]
["",null,null,null,null,null,null,null,null,null,null,"",0,0,""]
["",null,null,null,null,null,null,null,null,null,null,"",0,0,""]
["",null,null,null,null,null,null,null,null,null,null,"",0,0,""]
["",null,null,null,null,null,null,null,null,null,null,"",0,0,""]
["",null,null,null,null,null,null,null,null,null,null,"",0,0,""]
["",null,null,null,null,null,null,null,null,null,null,"",0,0,""]
["",null,null,null,null,null,null,null,null,null,null,"",0,0,""]
["",null,null,null,null,null,null,null,null,null,null,"",0,0,""]
["",null,null,null,null,null,null,null,null,null,null,"",0,0,""]
["",null,null,null,null,null,null,null,null,null,null,"",0,0,""]
["",null,null,null,null,null,null,null,null,null,null,"",0,0,""]
["",null,null,null,null,null,null,null,null,null,null,"",0,0,""]
["",null,null,null,null,null,null,null,null,null,null,"",0,0,""]
["",null,null,null,null,null,null,null,null,null,null,"",0,0,""]
["",null,null,null,null,null,null,null,null,null,null,"",0,0,""]
["",null,null,null,null,null,null,null,null,null,null,"",0,0,""]
["",null,null,null,null,null,null,null,null,null,null,"",0,0,""]
["",null,null,null,null,null,null,null,null,null,null,"",0,0,""]
["",null,null,null,null,null,null,null,null,null,null,"",0,0,""]
["",null,null,null,null,null,null,null,null,null,null,"",0,0,""]
["",null,null,null,null,null,null,null,null,null,null,"",0,0,""]
["",null,null,null,null,null,null,null,null,null,null,"",0,0,""]
["",null,null,null,null,null,null,null,null,null,null,"",0,0,""]
["",null,null,null,null,null,null,null,null,null,null,"",0,0,""]
["",null,null,null,null,null,null,null,null,null,null,"",0,0,""]
["",null,null,null,null,null,null,null,null,null,null,"",0,0,""]
["",null,null,null,null,null,null,null,null,null,null,"",0,0,""]
["",null,null,null,null,null,null,null,null,null,null,"",0,0,""]
["",null,null,null,null,null,null,null,null,null,null,"",0,0,""]
["",null,null,null,null,null,null,null,null,null,null,"",0,0,""]
["",null,null,null,null,null,null,null,null,null,null,"",0,0,""]
["",null,null,null,null,null,null,null,null,null,null,"",0,0,""]
["",null,null,null,null,null,null,null,null,null,null,"",0,0,""]
["",null,null,null,null,null,null,null,null,null,null,"",0,0,""]
["",null,null,null,null,null,null,null,null,null,null,"",0,0,""]
["",null,null,null,null,null,null,null,null,null,null,"",0,0,""]
["",null,null,null,null,null,null,null,null,null,null,"",0,0,""]
["",null,null,null,null,null,null,null,null,null,null,{"$f":"UPPER(IF(K951<>0,valuta,\"\"))","v":""},0,0,""]
["",null,null,null,null,null,null,null,null,null,null,"",0,0,""]
["",null,null,null,null,null,null,null,null,null,null,"",0,0,""]
["",null,null,null,null,null,null,null,null,null,null,"",0,0,""]
["",null,null,null,null,null,null,null,null,null,null,"",0,0,""]
["",null,null,null,null,null,null,null,null,null,null,"",0,0,""]
["",null,null,null,null,null,null,null,null,null,null,"",0,0,""]
["",null,null,null,null,null,null,null,null,null,null,"",0,0,""]
["",null,null,null,null,null,null,null,null,null,null,"",0,0,""]
["",null,null,null,null,null,null,null,null,null,null,"",0,0,""]
["",null,null,null,null,null,null,null,null,null,null,"",0,0,""]
["",null,null,null,null,null,null,null,null,null,null,"",0,0,""]
["",null,null,null,null,null,null,null,null,null,null,"",0,0,""]
["",null,null,null,null,null,null,null,null,null,null,"",0,0,""]
["",null,null,null,null,null,null,null,null,null,null,"",0,0,""]
["",null,null,null,null,null,null,null,null,null,null,"",0,0,""]
["",null,null,null,null,null,null,null,null,null,null,"",0,0,""]
["",null,null,null,null,null,null,null,null,null,null,"",0,0,""]
["",null,null,null,null,null,null,null,null,null,null,"",0,0,""]
["",null,null,null,null,null,null,null,null,null,null,"",0,0,""]
["",null,null,null,null,null,null,null,null,null,null,"",0,0,""]
["",null,null,null,null,null,null,null,null,null,null,"",0,0,""]
["",null,null,null,null,null,null,null,null,null,null,"",0,0,""]
["",null,null,null,null,null,null,null,null,null,null,"",0,0,""]
["",null,null,null,null,null,null,null,null,null,null,"",0,0,""]
[{"$f":"IF(AND(K976<>0,$I$8=0,$I$9=\"OK \"),\"update_data\",\"\")","v":""},null,null,null,null,null,null,null,null,null,null,"",{"$f":"ROUND(K976,2)","v":0},{"$f":"ROUND(K976,2)","v":0},{"$f":"IF(AND(C976=\"\",K976<>0),\"Kombination INST/Proj felaktig\",IF(OR(C976=LEFT(E976,2),E976=\"\"),\"\",\"Kombination INST/Proj felaktig\"))","v":""}]
["",null,null,null,null,null,null,null,null,null,null,"",0,0,""]
["",null,null,null,null,null,null,null,null,null,null,"",0,0,""]
["",null,null,null,null,null,null,null,null,null,null,"",0,0,""]
["",null,null,null,null,null,null,null,null,null,null,"",0,0,""]
["",null,null,null,null,null,null,null,null,null,null,"",0,0,""]
["",null,null,null,null,null,null,null,null,null,null,"",0,0,""]
["",null,null,null,null,null,null,null,null,null,null,"",0,0,""]
["",null,null,null,null,null,null,null,null,null,null,"",0,0,""]
["",null,null,null,null,null,null,null,null,null,null,"",0,0,""]
["",null,null,null,null,null,null,null,null,null,null,"",0,0,""]
["",null,null,null,null,null,null,null,null,null,null,"",0,0,""]
["",null,null,null,null,null,null,null,null,null,null,"",0,0,""]
["",null,null,null,null,null,null,null,null,null,null,"",0,0,""]
["",null,null,null,null,null,null,null,null,null,null,"",0,0,""]
["",null,null,null,null,null,null,null,null,null,null,"",0,0,""]
["",null,null,null,null,null,null,null,null,null,null,"",0,0,""]
["",null,null,null,null,null,null,null,null,null,null,"",0,0,""]
["",null,null,null,null,null,null,null,null,null,null,"",0,0,""]
["",null,null,null,null,null,null,null,null,null,null,"",0,0,""]
["",null,null,null,null,null,null,null,null,null,null,"",0,0,""]
["",null,null,null,null,null,null,null,null,null,null,"",0,0,""]
["",null,null,null,null,null,null,null,null,null,null,"",0,0,""]
["",null,null,null,null,null,null,null,null,null,null,"",0,0,""]
["",null,null,null,null,null,null,null,null,null,null,"",0,0,""]
["",null,null,null,null,null,null,null,null,null,null,"",0,0,""]
["",null,null,null,null,null,null,null,null,null,null,"",0,0,""]
["",null,null,null,null,null,null,null,null,null,null,"",0,0,""]
["",null,null,null,null,null,null,null,null,null,null,"",0,0,""]
["",null,null,null,null,null,null,null,null,null,null,"",0,0,""]
["",null,null,null,null,null,null,null,null,null,null,"",0,0,""]
["",null,null,null,null,null,null,null,null,null,null,"",0,0,""]
["",null,null,null,null,null,null,null,null,null,null,"",0,0,""]
["",null,null,null,null,null,null,null,null,null,null,"",0,0,""]
["",null,null,null,null,null,null,null,null,null,null,"",0,0,""]
["",null,null,null,null,null,null,null,null,null,null,"",0,0,""]
["",null,null,null,null,null,null,null,null,null,null,"",0,0,""]
["",null,null,null,null,null,null,null,null,null,null,"",0,0,""]
["",null,null,null,null,null,null,null,null,null,null,"",0,0,""]
["",null,null,null,null,null,null,null,null,null,null,{"$f":"UPPER(IF(K1015<>0,valuta,\"\"))","v":""},0,0,""]
["",null,null,null,null,null,null,null,null,null,null,"",0,0,""]
["",null,null,null,null,null,null,null,null,null,null,"",0,0,""]
["",null,null,null,null,null,null,null,null,null,null,"",0,0,""]
["",null,null,null,null,null,null,null,null,null,null,"",0,0,""]
["",null,null,null,null,null,null,null,null,null,null,"",0,0,""]
["",null,null,null,null,null,null,null,null,null,null,"",0,0,""]
["",null,null,null,null,null,null,null,null,null,null,"",0,0,""]
["",null,null,null,null,null,null,null,null,null,null,"",0,0,""]
["",null,null,null,null,null,null,null,null,null,null,"",0,0,""]
["",null,null,null,null,null,null,null,null,null,null,"",0,0,""]
["",null,null,null,null,null,null,null,null,null,null,"",0,0,""]
["",null,null,null,null,null,null,null,null,null,null,"",0,0,""]
["",null,null,null,null,null,null,null,null,null,null,"",0,0,""]
["",null,null,null,null,null,null,null,null,null,null,"",0,0,""]
["",null,null,null,null,null,null,null,null,null,null,"",0,0,""]
["",null,null,null,null,null,null,null,null,null,null,"",0,0,""]
["",null,null,null,null,null,null,null,null,null,null,"",0,0,""]
["",null,null,null,null,null,null,null,null,null,null,"",0,0,""]
["",null,null,null,null,null,null,null,null,null,null,"",0,0,""]
["",null,null,null,null,null,null,null,null,null,null,"",0,0,""]
["",null,null,null,null,null,null,null,null,null,null,"",0,0,""]
["",null,null,null,null,null,null,null,null,null,null,"",0,0,""]
["",null,null,null,null,null,null,null,null,null,null,"",0,0,""]
["",null,null,null,null,null,null,null,null,null,null,"",0,0,""]
[{"$f":"IF(AND(K1040<>0,$I$8=0,$I$9=\"OK \"),\"update_data\",\"\")","v":""},null,null,null,null,null,null,null,null,null,null,"",{"$f":"ROUND(K1040,2)","v":0},{"$f":"ROUND(K1040,2)","v":0},{"$f":"IF(AND(C1040=\"\",K1040<>0),\"Kombination INST/Proj felaktig\",IF(OR(C1040=LEFT(E1040,2),E1040=\"\"),\"\",\"Kombination INST/Proj felaktig\"))","v":""}]
["",null,null,null,null,null,null,null,null,null,null,"",0,0,""]
["",null,null,null,null,null,null,null,null,null,null,"",0,0,""]
["",null,null,null,null,null,null,null,null,null,null,"",0,0,""]
["",null,null,null,null,null,null,null,null,null,null,"",0,0,""]
["",null,null,null,null,null,null,null,null,null,null,"",0,0,""]
["",null,null,null,null,null,null,null,null,null,null,"",0,0,""]
["",null,null,null,null,null,null,null,null,null,null,"",0,0,""]
["",null,null,null,null,null,null,null,null,null,null,"",0,0,""]
["",null,null,null,null,null,null,null,null,null,null,"",0,0,""]
["",null,null,null,null,null,null,null,null,null,null,"",0,0,""]
["",null,null,null,null,null,null,null,null,null,null,"",0,0,""]
["",null,null,null,null,null,null,null,null,null,null,"",0,0,""]
["",null,null,null,null,null,null,null,null,null,null,"",0,0,""]
["",null,null,null,null,null,null,null,null,null,null,"",0,0,""]
["",null,null,null,null,null,null,null,null,null,null,"",0,0,""]
["",null,null,null,null,null,null,null,null,null,null,"",0,0,""]
["",null,null,null,null,null,null,null,null,null,null,"",0,0,""]
["",null,null,null,null,null,null,null,null,null,null,"",0,0,""]
["",null,null,null,null,null,null,null,null,null,null,"",0,0,""]
["",null,null,null,null,null,null,null,null,null,null,"",0,0,""]
["",null,null,null,null,null,null,null,null,null,null,"",0,0,""]
["",null,null,null,null,null,null,null,null,null,null,"",0,0,""]
["",null,null,null,null,null,null,null,null,null,null,"",0,0,""]
["",null,null,null,null,null,null,null,null,null,null,"",0,0,""]
["",null,null,null,null,null,null,null,null,null,null,"",0,0,""]
["",null,null,null,null,null,null,null,null,null,null,"",0,0,""]
["",null,null,null,null,null,null,null,null,null,null,"",0,0,""]
["",null,null,null,null,null,null,null,null,null,null,"",0,0,""]
["",null,null,null,null,null,null,null,null,null,null,"",0,0,""]
["",null,null,null,null,null,null,null,null,null,null,"",0,0,""]
["",null,null,null,null,null,null,null,null,null,null,"",0,0,""]
["",null,null,null,null,null,null,null,null,null,null,"",0,0,""]
["",null,null,null,null,null,null,null,null,null,null,"",0,0,""]
["",null,null,null,null,null,null,null,null,null,null,"",0,0,""]
["",null,null,null,null,null,null,null,null,null,null,"",0,0,""]
["",null,null,null,null,null,null,null,null,null,null,"",0,0,""]
["",null,null,null,null,null,null,null,null,null,null,"",0,0,""]
["",null,null,null,null,null,null,null,null,null,null,"",0,0,""]
["",null,null,null,null,null,null,null,null,null,null,{"$f":"UPPER(IF(K1079<>0,valuta,\"\"))","v":""},0,0,""]
["",null,null,null,null,null,null,null,null,null,null,"",0,0,""]
["",null,null,null,null,null,null,null,null,null,null,"",0,0,""]
["",null,null,null,null,null,null,null,null,null,null,"",0,0,""]
["",null,null,null,null,null,null,null,null,null,null,"",0,0,""]
["",null,null,null,null,null,null,null,null,null,null,"",0,0,""]
["",null,null,null,null,null,null,null,null,null,null,"",0,0,""]
["",null,null,null,null,null,null,null,null,null,null,"",0,0,""]
["",null,null,null,null,null,null,null,null,null,null,"",0,0,""]
["",null,null,null,null,null,null,null,null,null,null,"",0,0,""]
["",null,null,null,null,null,null,null,null,null,null,"",0,0,""]
["",null,null,null,null,null,null,null,null,null,null,"",0,0,""]
["",null,null,null,null,null,null,null,null,null,null,"",0,0,""]
["",null,null,null,null,null,null,null,null,null,null,"",0,0,""]
["",null,null,null,null,null,null,null,null,null,null,"",0,0,""]
["",null,null,null,null,null,null,null,null,null,null,"",0,0,""]
["",null,null,null,null,null,null,null,null,null,null,"",0,0,""]
["",null,null,null,null,null,null,null,null,null,null,"",0,0,""]
["",null,null,null,null,null,null,null,null,null,null,"",0,0,""]
["",null,null,null,null,null,null,null,null,null,null,"",0,0,""]
["",null,null,null,null,null,null,null,null,null,null,"",0,0,""]
["",null,null,null,null,null,null,null,null,null,null,"",0,0,""]
["",null,null,null,null,null,null,null,null,null,null,"",0,0,""]
["",null,null,null,null,null,null,null,null,null,null,"",0,0,""]
["",null,null,null,null,null,null,null,null,null,null,"",0,0,""]
[{"$f":"IF(AND(K1104<>0,$I$8=0,$I$9=\"OK \"),\"update_data\",\"\")","v":""},null,null,null,null,null,null,null,null,null,null,"",{"$f":"ROUND(K1104,2)","v":0},{"$f":"ROUND(K1104,2)","v":0},{"$f":"IF(AND(C1104=\"\",K1104<>0),\"Kombination INST/Proj felaktig\",IF(OR(C1104=LEFT(E1104,2),E1104=\"\"),\"\",\"Kombination INST/Proj felaktig\"))","v":""}]
["",null,null,null,null,null,null,null,null,null,null,"",0,0,""]
["",null,null,null,null,null,null,null,null,null,null,"",0,0,""]
["",null,null,null,null,null,null,null,null,null,null,"",0,0,""]
["",null,null,null,null,null,null,null,null,null,null,"",0,0,""]
["",null,null,null,null,null,null,null,null,null,null,"",0,0,""]
["",null,null,null,null,null,null,null,null,null,null,"",0,0,""]
["",null,null,null,null,null,null,null,null,null,null,"",0,0,""]
["",null,null,null,null,null,null,null,null,null,null,"",0,0,""]
["",null,null,null,null,null,null,null,null,null,null,"",0,0,""]
["",null,null,null,null,null,null,null,null,null,null,"",0,0,""]
["",null,null,null,null,null,null,null,null,null,null,"",0,0,""]
["",null,null,null,null,null,null,null,null,null,null,"",0,0,""]
["",null,null,null,null,null,null,null,null,null,null,"",0,0,""]
["",null,null,null,null,null,null,null,null,null,null,"",0,0,""]
["",null,null,null,null,null,null,null,null,null,null,"",0,0,""]
["",null,null,null,null,null,null,null,null,null,null,"",0,0,""]
["",null,null,null,null,null,null,null,null,null,null,"",0,0,""]
["",null,null,null,null,null,null,null,null,null,null,"",0,0,""]
["",null,null,null,null,null,null,null,null,null,null,"",0,0,""]
["",null,null,null,null,null,null,null,null,null,null,"",0,0,""]
["",null,null,null,null,null,null,null,null,null,null,"",0,0,""]
["",null,null,null,null,null,null,null,null,null,null,"",0,0,""]
["",null,null,null,null,null,null,null,null,null,null,"",0,0,""]
["",null,null,null,null,null,null,null,null,null,null,"",0,0,""]
["",null,null,null,null,null,null,null,null,null,null,"",0,0,""]
["",null,null,null,null,null,null,null,null,null,null,"",0,0,""]
["",null,null,null,null,null,null,null,null,null,null,"",0,0,""]
["",null,null,null,null,null,null,null,null,null,null,"",0,0,""]
["",null,null,null,null,null,null,null,null,null,null,"",0,0,""]
["",null,null,null,null,null,null,null,null,null,null,"",0,0,""]
["",null,null,null,null,null,null,null,null,null,null,"",0,0,""]
["",null,null,null,null,null,null,null,null,null,null,"",0,0,""]
["",null,null,null,null,null,null,null,null,null,null,"",0,0,""]
["",null,null,null,null,null,null,null,null,null,null,"",0,0,""]
["",null,null,null,null,null,null,null,null,null,null,"",0,0,""]
["",null,null,null,null,null,null,null,null,null,null,"",0,0,""]
["",null,null,null,null,null,null,null,null,null,null,"",0,0,""]
["",null,null,null,null,null,null,null,null,null,null,"",0,0,""]
["",null,null,null,null,null,null,null,null,null,null,{"$f":"UPPER(IF(K1143<>0,valuta,\"\"))","v":""},0,0,""]
["",null,null,null,null,null,null,null,null,null,null,"",0,0,""]
["",null,null,null,null,null,null,null,null,null,null,"",0,0,""]
["",null,null,null,null,null,null,null,null,null,null,"",0,0,""]
["",null,null,null,null,null,null,null,null,null,null,"",0,0,""]
["",null,null,null,null,null,null,null,null,null,null,"",0,0,""]
["",null,null,null,null,null,null,null,null,null,null,"",0,0,""]
["",null,null,null,null,null,null,null,null,null,null,"",0,0,""]
["",null,null,null,null,null,null,null,null,null,null,"",0,0,""]
["",null,null,null,null,null,null,null,null,null,null,"",0,0,""]
["",null,null,null,null,null,null,null,null,null,null,"",0,0,""]
["",null,null,null,null,null,null,null,null,null,null,"",0,0,""]
["",null,null,null,null,null,null,null,null,null,null,"",0,0,""]
["",null,null,null,null,null,null,null,null,null,null,"",0,0,""]
["",null,null,null,null,null,null,null,null,null,null,"",0,0,""]
["",null,null,null,null,null,null,null,null,null,null,"",0,0,""]
["",null,null,null,null,null,null,null,null,null,null,"",0,0,""]
["",null,null,null,null,null,null,null,null,null,null,"",0,0,""]
["",null,null,null,null,null,null,null,null,null,null,"",0,0,""]
["",null,null,null,null,null,null,null,null,null,null,"",0,0,""]
["",null,null,null,null,null,null,null,null,null,null,"",0,0,""]
["",null,null,null,null,null,null,null,null,null,null,"",0,0,""]
["",null,null,null,null,null,null,null,null,null,null,"",0,0,""]
["",null,null,null,null,null,null,null,null,null,null,"",0,0,""]
["",null,null,null,null,null,null,null,null,null,null,"",0,0,""]
[{"$f":"IF(AND(K1168<>0,$I$8=0,$I$9=\"OK \"),\"update_data\",\"\")","v":""},null,null,null,null,null,null,null,null,null,null,"",{"$f":"ROUND(K1168,2)","v":0},{"$f":"ROUND(K1168,2)","v":0},{"$f":"IF(AND(C1168=\"\",K1168<>0),\"Kombination INST/Proj felaktig\",IF(OR(C1168=LEFT(E1168,2),E1168=\"\"),\"\",\"Kombination INST/Proj felaktig\"))","v":""}]
["",null,null,null,null,null,null,null,null,null,null,"",0,0,""]
["",null,null,null,null,null,null,null,null,null,null,"",0,0,""]
["",null,null,null,null,null,null,null,null,null,null,"",0,0,""]
["",null,null,null,null,null,null,null,null,null,null,"",0,0,""]
["",null,null,null,null,null,null,null,null,null,null,"",0,0,""]
["",null,null,null,null,null,null,null,null,null,null,"",0,0,""]
["",null,null,null,null,null,null,null,null,null,null,"",0,0,""]
["",null,null,null,null,null,null,null,null,null,null,"",0,0,""]
["",null,null,null,null,null,null,null,null,null,null,"",0,0,""]
["",null,null,null,null,null,null,null,null,null,null,"",0,0,""]
["",null,null,null,null,null,null,null,null,null,null,"",0,0,""]
["",null,null,null,null,null,null,null,null,null,null,"",0,0,""]
["",null,null,null,null,null,null,null,null,null,null,"",0,0,""]
["",null,null,null,null,null,null,null,null,null,null,"",0,0,""]
["",null,null,null,null,null,null,null,null,null,null,"",0,0,""]
["",null,null,null,null,null,null,null,null,null,null,"",0,0,""]
["",null,null,null,null,null,null,null,null,null,null,"",0,0,""]
["",null,null,null,null,null,null,null,null,null,null,"",0,0,""]
["",null,null,null,null,null,null,null,null,null,null,"",0,0,""]
["",null,null,null,null,null,null,null,null,null,null,"",0,0,""]
["",null,null,null,null,null,null,null,null,null,null,"",0,0,""]
["",null,null,null,null,null,null,null,null,null,null,"",0,0,""]
["",null,null,null,null,null,null,null,null,null,null,"",0,0,""]
["",null,null,null,null,null,null,null,null,null,null,"",0,0,""]
["",null,null,null,null,null,null,null,null,null,null,"",0,0,""]
["",null,null,null,null,null,null,null,null,null,null,"",0,0,""]
["",null,null,null,null,null,null,null,null,null,null,"",0,0,""]
["",null,null,null,null,null,null,null,null,null,null,"",0,0,""]
["",null,null,null,null,null,null,null,null,null,null,"",0,0,""]
["",null,null,null,null,null,null,null,null,null,null,"",0,0,""]
["",null,null,null,null,null,null,null,null,null,null,"",0,0,""]
["",null,null,null,null,null,null,null,null,null,null,"",0,0,""]
["",null,null,null,null,null,null,null,null,null,null,"",0,0,""]
["",null,null,null,null,null,null,null,null,null,null,"",0,0,""]
["",null,null,null,null,null,null,null,null,null,null,"",0,0,""]
["",null,null,null,null,null,null,null,null,null,null,"",0,0,""]
["",null,null,null,null,null,null,null,null,null,null,"",0,0,""]
["",null,null,null,null,null,null,null,null,null,null,"",0,0,""]
["",null,null,null,null,null,null,null,null,null,null,{"$f":"UPPER(IF(K1207<>0,valuta,\"\"))","v":""},0,0,""]
["",null,null,null,null,null,null,null,null,null,null,"",0,0,""]
["",null,null,null,null,null,null,null,null,null,null,"",0,0,""]
["",null,null,null,null,null,null,null,null,null,null,"",0,0,""]
["",null,null,null,null,null,null,null,null,null,null,"",0,0,""]
["",null,null,null,null,null,null,null,null,null,null,"",0,0,""]
["",null,null,null,null,null,null,null,null,null,null,"",0,0,""]
["",null,null,null,null,null,null,null,null,null,null,"",0,0,""]
["",null,null,null,null,null,null,null,null,null,null,"",0,0,""]
["",null,null,null,null,null,null,null,null,null,null,"",0,0,""]
["",null,null,null,null,null,null,null,null,null,null,"",0,0,""]
["",null,null,null,null,null,null,null,null,null,null,"",0,0,""]
["",null,null,null,null,null,null,null,null,null,null,"",0,0,""]
["",null,null,null,null,null,null,null,null,null,null,"",0,0,""]
["",null,null,null,null,null,null,null,null,null,null,"",0,0,""]
["",null,null,null,null,null,null,null,null,null,null,"",0,0,""]
["",null,null,null,null,null,null,null,null,null,null,"",0,0,""]
["",null,null,null,null,null,null,null,null,null,null,"",0,0,""]
["",null,null,null,null,null,null,null,null,null,null,"",0,0,""]
["",null,null,null,null,null,null,null,null,null,null,"",0,0,""]
["",null,null,null,null,null,null,null,null,null,null,"",0,0,""]
["",null,null,null,null,null,null,null,null,null,null,"",0,0,""]
["",null,null,null,null,null,null,null,null,null,null,"",0,0,""]
["",null,null,null,null,null,null,null,null,null,null,"",0,0,""]
["",null,null,null,null,null,null,null,null,null,null,"",0,0,""]
[{"$f":"IF(AND(K1232<>0,$I$8=0,$I$9=\"OK \"),\"update_data\",\"\")","v":""},null,null,null,null,null,null,null,null,null,null,"",{"$f":"ROUND(K1232,2)","v":0},{"$f":"ROUND(K1232,2)","v":0},{"$f":"IF(AND(C1232=\"\",K1232<>0),\"Kombination INST/Proj felaktig\",IF(OR(C1232=LEFT(E1232,2),E1232=\"\"),\"\",\"Kombination INST/Proj felaktig\"))","v":""}]
["",null,null,null,null,null,null,null,null,null,null,"",0,0,""]
["",null,null,null,null,null,null,null,null,null,null,"",0,0,""]
["",null,null,null,null,null,null,null,null,null,null,"",0,0,""]
["",null,null,null,null,null,null,null,null,null,null,"",0,0,""]
["",null,null,null,null,null,null,null,null,null,null,"",0,0,""]
["",null,null,null,null,null,null,null,null,null,null,"",0,0,""]
["",null,null,null,null,null,null,null,null,null,null,"",0,0,""]
["",null,null,null,null,null,null,null,null,null,null,"",0,0,""]
["",null,null,null,null,null,null,null,null,null,null,"",0,0,""]
["",null,null,null,null,null,null,null,null,null,null,"",0,0,""]
["",null,null,null,null,null,null,null,null,null,null,"",0,0,""]
["",null,null,null,null,null,null,null,null,null,null,"",0,0,""]
["",null,null,null,null,null,null,null,null,null,null,"",0,0,""]
["",null,null,null,null,null,null,null,null,null,null,"",0,0,""]
["",null,null,null,null,null,null,null,null,null,null,"",0,0,""]
["",null,null,null,null,null,null,null,null,null,null,"",0,0,""]
["",null,null,null,null,null,null,null,null,null,null,"",0,0,""]
["",null,null,null,null,null,null,null,null,null,null,"",0,0,""]
["",null,null,null,null,null,null,null,null,null,null,"",0,0,""]
["",null,null,null,null,null,null,null,null,null,null,"",0,0,""]
["",null,null,null,null,null,null,null,null,null,null,"",0,0,""]
["",null,null,null,null,null,null,null,null,null,null,"",0,0,""]
["",null,null,null,null,null,null,null,null,null,null,"",0,0,""]
["",null,null,null,null,null,null,null,null,null,null,"",0,0,""]
["",null,null,null,null,null,null,null,null,null,null,"",0,0,""]
["",null,null,null,null,null,null,null,null,null,null,"",0,0,""]
["",null,null,null,null,null,null,null,null,null,null,"",0,0,""]
["",null,null,null,null,null,null,null,null,null,null,"",0,0,""]
["",null,null,null,null,null,null,null,null,null,null,"",0,0,""]
["",null,null,null,null,null,null,null,null,null,null,"",0,0,""]
["",null,null,null,null,null,null,null,null,null,null,"",0,0,""]
["",null,null,null,null,null,null,null,null,null,null,"",0,0,""]
["",null,null,null,null,null,null,null,null,null,null,"",0,0,""]
["",null,null,null,null,null,null,null,null,null,null,"",0,0,""]
["",null,null,null,null,null,null,null,null,null,null,"",0,0,""]
["",null,null,null,null,null,null,null,null,null,null,"",0,0,""]
["",null,null,null,null,null,null,null,null,null,null,"",0,0,""]
["",null,null,null,null,null,null,null,null,null,null,"",0,0,""]
["",null,null,null,null,null,null,null,null,null,null,{"$f":"UPPER(IF(K1271<>0,valuta,\"\"))","v":""},0,0,""]
["",null,null,null,null,null,null,null,null,null,null,"",0,0,""]
["",null,null,null,null,null,null,null,null,null,null,"",0,0,""]
["",null,null,null,null,null,null,null,null,null,null,"",0,0,""]
["",null,null,null,null,null,null,null,null,null,null,"",0,0,""]
["",null,null,null,null,null,null,null,null,null,null,"",0,0,""]
["",null,null,null,null,null,null,null,null,null,null,"",0,0,""]
["",null,null,null,null,null,null,null,null,null,null,"",0,0,""]
["",null,null,null,null,null,null,null,null,null,null,"",0,0,""]
["",null,null,null,null,null,null,null,null,null,null,"",0,0,""]
["",null,null,null,null,null,null,null,null,null,null,"",0,0,""]
["",null,null,null,null,null,null,null,null,null,null,"",0,0,""]
["",null,null,null,null,null,null,null,null,null,null,"",0,0,""]
["",null,null,null,null,null,null,null,null,null,null,"",0,0,""]
["",null,null,null,null,null,null,null,null,null,null,"",0,0,""]
["",null,null,null,null,null,null,null,null,null,null,"",0,0,""]
["",null,null,null,null,null,null,null,null,null,null,"",0,0,""]
["",null,null,null,null,null,null,null,null,null,null,"",0,0,""]
["",null,null,null,null,null,null,null,null,null,null,"",0,0,""]
["",null,null,null,null,null,null,null,null,null,null,"",0,0,""]
["",null,null,null,null,null,null,null,null,null,null,"",0,0,""]
["",null,null,null,null,null,null,null,null,null,null,"",0,0,""]
["",null,null,null,null,null,null,null,null,null,null,"",0,0,""]
["",null,null,null,null,null,null,null,null,null,null,"",0,0,""]
["",null,null,null,null,null,null,null,null,null,null,"",0,0,""]
[{"$f":"IF(AND(K1296<>0,$I$8=0,$I$9=\"OK \"),\"update_data\",\"\")","v":""},null,null,null,null,null,null,null,null,null,null,"",{"$f":"ROUND(K1296,2)","v":0},{"$f":"ROUND(K1296,2)","v":0},{"$f":"IF(AND(C1296=\"\",K1296<>0),\"Kombination INST/Proj felaktig\",IF(OR(C1296=LEFT(E1296,2),E1296=\"\"),\"\",\"Kombination INST/Proj felaktig\"))","v":""}]
["",null,null,null,null,null,null,null,null,null,null,"",0,0,""]
["",null,null,null,null,null,null,null,null,null,null,"",0,0,""]
["",null,null,null,null,null,null,null,null,null,null,"",0,0,""]
["",null,null,null,null,null,null,null,null,null,null,"",0,0,""]
["",null,null,null,null,null,null,null,null,null,null,"",0,0,""]
["",null,null,null,null,null,null,null,null,null,null,"",0,0,""]
["",null,null,null,null,null,null,null,null,null,null,"",0,0,""]
["",null,null,null,null,null,null,null,null,null,null,"",0,0,""]
["",null,null,null,null,null,null,null,null,null,null,"",0,0,""]
["",null,null,null,null,null,null,null,null,null,null,"",0,0,""]
["",null,null,null,null,null,null,null,null,null,null,"",0,0,""]
["",null,null,null,null,null,null,null,null,null,null,"",0,0,""]
["",null,null,null,null,null,null,null,null,null,null,"",0,0,""]
["",null,null,null,null,null,null,null,null,null,null,"",0,0,""]
["",null,null,null,null,null,null,null,null,null,null,"",0,0,""]
["",null,null,null,null,null,null,null,null,null,null,"",0,0,""]
["",null,null,null,null,null,null,null,null,null,null,"",0,0,""]
["",null,null,null,null,null,null,null,null,null,null,"",0,0,""]
["",null,null,null,null,null,null,null,null,null,null,"",0,0,""]
["",null,null,null,null,null,null,null,null,null,null,"",0,0,""]
["",null,null,null,null,null,null,null,null,null,null,"",0,0,""]
["",null,null,null,null,null,null,null,null,null,null,"",0,0,""]
["",null,null,null,null,null,null,null,null,null,null,"",0,0,""]
["",null,null,null,null,null,null,null,null,null,null,"",0,0,""]
["",null,null,null,null,null,null,null,null,null,null,"",0,0,""]
["",null,null,null,null,null,null,null,null,null,null,"",0,0,""]
["",null,null,null,null,null,null,null,null,null,null,"",0,0,""]
["",null,null,null,null,null,null,null,null,null,null,"",0,0,""]
["",null,null,null,null,null,null,null,null,null,null,"",0,0,""]
["",null,null,null,null,null,null,null,null,null,null,"",0,0,""]
["",null,null,null,null,null,null,null,null,null,null,"",0,0,""]
["",null,null,null,null,null,null,null,null,null,null,"",0,0,""]
["",null,null,null,null,null,null,null,null,null,null,"",0,0,""]
["",null,null,null,null,null,null,null,null,null,null,"",0,0,""]
["",null,null,null,null,null,null,null,null,null,null,"",0,0,""]
["",null,null,null,null,null,null,null,null,null,null,"",0,0,""]
["",null,null,null,null,null,null,null,null,null,null,"",0,0,""]
["",null,null,null,null,null,null,null,null,null,null,"",0,0,""]
["",null,null,null,null,null,null,null,null,null,null,{"$f":"UPPER(IF(K1335<>0,valuta,\"\"))","v":""},0,0,""]
["",null,null,null,null,null,null,null,null,null,null,"",0,0,""]
["",null,null,null,null,null,null,null,null,null,null,"",0,0,""]
["",null,null,null,null,null,null,null,null,null,null,"",0,0,""]
["",null,null,null,null,null,null,null,null,null,null,"",0,0,""]
["",null,null,null,null,null,null,null,null,null,null,"",0,0,""]
["",null,null,null,null,null,null,null,null,null,null,"",0,0,""]
["",null,null,null,null,null,null,null,null,null,null,"",0,0,""]
["",null,null,null,null,null,null,null,null,null,null,"",0,0,""]
["",null,null,null,null,null,null,null,null,null,null,"",0,0,""]
["",null,null,null,null,null,null,null,null,null,null,"",0,0,""]
["",null,null,null,null,null,null,null,null,null,null,"",0,0,""]
["",null,null,null,null,null,null,null,null,null,null,"",0,0,""]
["",null,null,null,null,null,null,null,null,null,null,"",0,0,""]
["",null,null,null,null,null,null,null,null,null,null,"",0,0,""]
["",null,null,null,null,null,null,null,null,null,null,"",0,0,""]
["",null,null,null,null,null,null,null,null,null,null,"",0,0,""]
["",null,null,null,null,null,null,null,null,null,null,"",0,0,""]
["",null,null,null,null,null,null,null,null,null,null,"",0,0,""]
["",null,null,null,null,null,null,null,null,null,null,"",0,0,""]
["",null,null,null,null,null,null,null,null,null,null,"",0,0,""]
["",null,null,null,null,null,null,null,null,null,null,"",0,0,""]
["",null,null,null,null,null,null,null,null,null,null,"",0,0,""]
["",null,null,null,null,null,null,null,null,null,null,"",0,0,""]
["",null,null,null,null,null,null,null,null,null,null,"",0,0,""]
[{"$f":"IF(AND(K1360<>0,$I$8=0,$I$9=\"OK \"),\"update_data\",\"\")","v":""},null,null,null,null,null,null,null,null,null,null,"",{"$f":"ROUND(K1360,2)","v":0},{"$f":"ROUND(K1360,2)","v":0},{"$f":"IF(AND(C1360=\"\",K1360<>0),\"Kombination INST/Proj felaktig\",IF(OR(C1360=LEFT(E1360,2),E1360=\"\"),\"\",\"Kombination INST/Proj felaktig\"))","v":""}]
["",null,null,null,null,null,null,null,null,null,null,"",0,0,""]
["",null,null,null,null,null,null,null,null,null,null,"",0,0,""]
["",null,null,null,null,null,null,null,null,null,null,"",0,0,""]
["",null,null,null,null,null,null,null,null,null,null,"",0,0,""]
["",null,null,null,null,null,null,null,null,null,null,"",0,0,""]
["",null,null,null,null,null,null,null,null,null,null,"",0,0,""]
["",null,null,null,null,null,null,null,null,null,null,"",0,0,""]
["",null,null,null,null,null,null,null,null,null,null,"",0,0,""]
["",null,null,null,null,null,null,null,null,null,null,"",0,0,""]
["",null,null,null,null,null,null,null,null,null,null,"",0,0,""]
["",null,null,null,null,null,null,null,null,null,null,"",0,0,""]
["",null,null,null,null,null,null,null,null,null,null,"",0,0,""]
["",null,null,null,null,null,null,null,null,null,null,"",0,0,""]
["",null,null,null,null,null,null,null,null,null,null,"",0,0,""]
["",null,null,null,null,null,null,null,null,null,null,"",0,0,""]
["",null,null,null,null,null,null,null,null,null,null,"",0,0,""]
["",null,null,null,null,null,null,null,null,null,null,"",0,0,""]
["",null,null,null,null,null,null,null,null,null,null,"",0,0,""]
["",null,null,null,null,null,null,null,null,null,null,"",0,0,""]
["",null,null,null,null,null,null,null,null,null,null,"",0,0,""]
["",null,null,null,null,null,null,null,null,null,null,"",0,0,""]
["",null,null,null,null,null,null,null,null,null,null,"",0,0,""]
["",null,null,null,null,null,null,null,null,null,null,"",0,0,""]
["",null,null,null,null,null,null,null,null,null,null,"",0,0,""]
["",null,null,null,null,null,null,null,null,null,null,"",0,0,""]
["",null,null,null,null,null,null,null,null,null,null,"",0,0,""]
["",null,null,null,null,null,null,null,null,null,null,"",0,0,""]
["",null,null,null,null,null,null,null,null,null,null,"",0,0,""]
["",null,null,null,null,null,null,null,null,null,null,"",0,0,""]
["",null,null,null,null,null,null,null,null,null,null,"",0,0,""]
["",null,null,null,null,null,null,null,null,null,null,"",0,0,""]
["",null,null,null,null,null,null,null,null,null,null,"",0,0,""]
["",null,null,null,null,null,null,null,null,null,null,"",0,0,""]
["",null,null,null,null,null,null,null,null,null,null,"",0,0,""]
["",null,null,null,null,null,null,null,null,null,null,"",0,0,""]
["",null,null,null,null,null,null,null,null,null,null,"",0,0,""]
["",null,null,null,null,null,null,null,null,null,null,"",0,0,""]
["",null,null,null,null,null,null,null,null,null,null,"",0,0,""]
["",null,null,null,null,null,null,null,null,null,null,{"$f":"UPPER(IF(K1399<>0,valuta,\"\"))","v":""},0,0,""]
["",null,null,null,null,null,null,null,null,null,null,"",0,0,""]
["",null,null,null,null,null,null,null,null,null,null,"",0,0,""]
["",null,null,null,null,null,null,null,null,null,null,"",0,0,""]
["",null,null,null,null,null,null,null,null,null,null,"",0,0,""]
["",null,null,null,null,null,null,null,null,null,null,"",0,0,""]
["",null,null,null,null,null,null,null,null,null,null,"",0,0,""]
["",null,null,null,null,null,null,null,null,null,null,"",0,0,""]
["",null,null,null,null,null,null,null,null,null,null,"",0,0,""]
["",null,null,null,null,null,null,null,null,null,null,"",0,0,""]
["",null,null,null,null,null,null,null,null,null,null,"",0,0,""]
["",null,null,null,null,null,null,null,null,null,null,"",0,0,""]
["",null,null,null,null,null,null,null,null,null,null,"",0,0,""]
["",null,null,null,null,null,null,null,null,null,null,"",0,0,""]
["",null,null,null,null,null,null,null,null,null,null,"",0,0,""]
["",null,null,null,null,null,null,null,null,null,null,"",0,0,""]
["",null,null,null,null,null,null,null,null,null,null,"",0,0,""]
["",null,null,null,null,null,null,null,null,null,null,"",0,0,""]
["",null,null,null,null,null,null,null,null,null,null,"",0,0,""]
["",null,null,null,null,null,null,null,null,null,null,"",0,0,""]
["",null,null,null,null,null,null,null,null,null,null,"",0,0,""]
["",null,null,null,null,null,null,null,null,null,null,"",0,0,""]
["",null,null,null,null,null,null,null,null,null,null,"",0,0,""]
["",null,null,null,null,null,null,null,null,null,null,"",0,0,""]
["",null,null,null,null,null,null,null,null,null,null,"",0,0,""]
[{"$f":"IF(AND(K1424<>0,$I$8=0,$I$9=\"OK \"),\"update_data\",\"\")","v":""},null,null,null,null,null,null,null,null,null,null,"",{"$f":"ROUND(K1424,2)","v":0},{"$f":"ROUND(K1424,2)","v":0},{"$f":"IF(AND(C1424=\"\",K1424<>0),\"Kombination INST/Proj felaktig\",IF(OR(C1424=LEFT(E1424,2),E1424=\"\"),\"\",\"Kombination INST/Proj felaktig\"))","v":""}]
["",null,null,null,null,null,null,null,null,null,null,"",0,0,""]
["",null,null,null,null,null,null,null,null,null,null,"",0,0,""]
["",null,null,null,null,null,null,null,null,null,null,"",0,0,""]
["",null,null,null,null,null,null,null,null,null,null,"",0,0,""]
["",null,null,null,null,null,null,null,null,null,null,"",0,0,""]
["",null,null,null,null,null,null,null,null,null,null,"",0,0,""]
["",null,null,null,null,null,null,null,null,null,null,"",0,0,""]
["",null,null,null,null,null,null,null,null,null,null,"",0,0,""]
["",null,null,null,null,null,null,null,null,null,null,"",0,0,""]
["",null,null,null,null,null,null,null,null,null,null,"",0,0,""]
["",null,null,null,null,null,null,null,null,null,null,"",0,0,""]
["",null,null,null,null,null,null,null,null,null,null,"",0,0,""]
["",null,null,null,null,null,null,null,null,null,null,"",0,0,""]
["",null,null,null,null,null,null,null,null,null,null,"",0,0,""]
["",null,null,null,null,null,null,null,null,null,null,"",0,0,""]
["",null,null,null,null,null,null,null,null,null,null,"",0,0,""]
["",null,null,null,null,null,null,null,null,null,null,"",0,0,""]
["",null,null,null,null,null,null,null,null,null,null,"",0,0,""]
["",null,null,null,null,null,null,null,null,null,null,"",0,0,""]
["",null,null,null,null,null,null,null,null,null,null,"",0,0,""]
["",null,null,null,null,null,null,null,null,null,null,"",0,0,""]
["",null,null,null,null,null,null,null,null,null,null,"",0,0,""]
["",null,null,null,null,null,null,null,null,null,null,"",0,0,""]
["",null,null,null,null,null,null,null,null,null,null,"",0,0,""]
["",null,null,null,null,null,null,null,null,null,null,"",0,0,""]
["",null,null,null,null,null,null,null,null,null,null,"",0,0,""]
["",null,null,null,null,null,null,null,null,null,null,"",0,0,""]
["",null,null,null,null,null,null,null,null,null,null,"",0,0,""]
["",null,null,null,null,null,null,null,null,null,null,"",0,0,""]
["",null,null,null,null,null,null,null,null,null,null,"",0,0,""]
["",null,null,null,null,null,null,null,null,null,null,"",0,0,""]
["",null,null,null,null,null,null,null,null,null,null,"",0,0,""]
["",null,null,null,null,null,null,null,null,null,null,"",0,0,""]
["",null,null,null,null,null,null,null,null,null,null,"",0,0,""]
["",null,null,null,null,null,null,null,null,null,null,"",0,0,""]
["",null,null,null,null,null,null,null,null,null,null,"",0,0,""]
["",null,null,null,null,null,null,null,null,null,null,"",0,0,""]
["",null,null,null,null,null,null,null,null,null,null,"",0,0,""]
["",null,null,null,null,null,null,null,null,null,null,{"$f":"UPPER(IF(K1463<>0,valuta,\"\"))","v":""},0,0,""]
["",null,null,null,null,null,null,null,null,null,null,"",0,0,""]
["",null,null,null,null,null,null,null,null,null,null,"",0,0,""]
["",null,null,null,null,null,null,null,null,null,null,"",0,0,""]
["",null,null,null,null,null,null,null,null,null,null,"",0,0,""]
["",null,null,null,null,null,null,null,null,null,null,"",0,0,""]
["",null,null,null,null,null,null,null,null,null,null,"",0,0,""]
["",null,null,null,null,null,null,null,null,null,null,"",0,0,""]
["",null,null,null,null,null,null,null,null,null,null,"",0,0,""]
["",null,null,null,null,null,null,null,null,null,null,"",0,0,""]
["",null,null,null,null,null,null,null,null,null,null,"",0,0,""]
["",null,null,null,null,null,null,null,null,null,null,"",0,0,""]
["",null,null,null,null,null,null,null,null,null,null,"",0,0,""]
["",null,null,null,null,null,null,null,null,null,null,"",0,0,""]
["",null,null,null,null,null,null,null,null,null,null,"",0,0,""]
["",null,null,null,null,null,null,null,null,null,null,"",0,0,""]
["",null,null,null,null,null,null,null,null,null,null,"",0,0,""]
["",null,null,null,null,null,null,null,null,null,null,"",0,0,""]
["",null,null,null,null,null,null,null,null,null,null,"",0,0,""]
["",null,null,null,null,null,null,null,null,null,null,"",0,0,""]
["",null,null,null,null,null,null,null,null,null,null,"",0,0,""]
["",null,null,null,null,null,null,null,null,null,null,"",0,0,""]
["",null,null,null,null,null,null,null,null,null,null,"",0,0,""]
["",null,null,null,null,null,null,null,null,null,null,"",0,0,""]
["",null,null,null,null,null,null,null,null,null,null,"",0,0,""]
[{"$f":"IF(AND(K1488<>0,$I$8=0,$I$9=\"OK \"),\"update_data\",\"\")","v":""},null,null,null,null,null,null,null,null,null,null,"",{"$f":"ROUND(K1488,2)","v":0},{"$f":"ROUND(K1488,2)","v":0},{"$f":"IF(AND(C1488=\"\",K1488<>0),\"Kombination INST/Proj felaktig\",IF(OR(C1488=LEFT(E1488,2),E1488=\"\"),\"\",\"Kombination INST/Proj felaktig\"))","v":""}]
["",null,null,null,null,null,null,null,null,null,null,"",0,0,""]
["",null,null,null,null,null,null,null,null,null,null,"",0,0,""]
["",null,null,null,null,null,null,null,null,null,null,"",0,0,""]
["",null,null,null,null,null,null,null,null,null,null,"",0,0,""]
["",null,null,null,null,null,null,null,null,null,null,"",0,0,""]
["",null,null,null,null,null,null,null,null,null,null,"",0,0,""]
["",null,null,null,null,null,null,null,null,null,null,"",0,0,""]
["",null,null,null,null,null,null,null,null,null,null,"",0,0,""]
["",null,null,null,null,null,null,null,null,null,null,"",0,0,""]
["",null,null,null,null,null,null,null,null,null,null,"",0,0,""]
["",null,null,null,null,null,null,null,null,null,null,"",0,0,""]
["",null,null,null,null,null,null,null,null,null,null,"",0,0,""]
["",null,null,null,null,null,null,null,null,null,null,"",0,0,""]
["",null,null,null,null,null,null,null,null,null,null,"",0,0,""]
["",null,null,null,null,null,null,null,null,null,null,"",0,0,""]
["",null,null,null,null,null,null,null,null,null,null,"",0,0,""]
["",null,null,null,null,null,null,null,null,null,null,"",0,0,""]
["",null,null,null,null,null,null,null,null,null,null,"",0,0,""]
["",null,null,null,null,null,null,null,null,null,null,"",0,0,""]
["",null,null,null,null,null,null,null,null,null,null,"",0,0,""]
["",null,null,null,null,null,null,null,null,null,null,"",0,0,""]
["",null,null,null,null,null,null,null,null,null,null,"",0,0,""]
["",null,null,null,null,null,null,null,null,null,null,"",0,0,""]
["",null,null,null,null,null,null,null,null,null,null,"",0,0,""]
["",null,null,null,null,null,null,null,null,null,null,"",0,0,""]
["",null,null,null,null,null,null,null,null,null,null,"",0,0,""]
["",null,null,null,null,null,null,null,null,null,null,"",0,0,""]
["",null,null,null,null,null,null,null,null,null,null,"",0,0,""]
["",null,null,null,null,null,null,null,null,null,null,"",0,0,""]
["",null,null,null,null,null,null,null,null,null,null,"",0,0,""]
["",null,null,null,null,null,null,null,null,null,null,"",0,0,""]
["",null,null,null,null,null,null,null,null,null,null,"",0,0,""]
["",null,null,null,null,null,null,null,null,null,null,"",0,0,""]
["",null,null,null,null,null,null,null,null,null,null,"",0,0,""]
["",null,null,null,null,null,null,null,null,null,null,"",0,0,""]
["",null,null,null,null,null,null,null,null,null,null,"",0,0,""]
["",null,null,null,null,null,null,null,null,null,null,"",0,0,""]
["",null,null,null,null,null,null,null,null,null,null,"",0,0,""]
["",null,null,null,null,null,null,null,null,null,null,{"$f":"UPPER(IF(K1527<>0,valuta,\"\"))","v":""},0,0,""]
["",null,null,null,null,null,null,null,null,null,null,"",0,0,""]
["",null,null,null,null,null,null,null,null,null,null,"",0,0,""]
["",null,null,null,null,null,null,null,null,null,null,"",0,0,""]
["",null,null,null,null,null,null,null,null,null,null,"",0,0,""]
["",null,null,null,null,null,null,null,null,null,null,"",0,0,""]
["",null,null,null,null,null,null,null,null,null,null,"",0,0,""]
["",null,null,null,null,null,null,null,null,null,null,"",0,0,""]
["",null,null,null,null,null,null,null,null,null,null,"",0,0,""]
["",null,null,null,null,null,null,null,null,null,null,"",0,0,""]
["",null,null,null,null,null,null,null,null,null,null,"",0,0,""]
["",null,null,null,null,null,null,null,null,null,null,"",0,0,""]
["",null,null,null,null,null,null,null,null,null,null,"",0,0,""]
["",null,null,null,null,null,null,null,null,null,null,"",0,0,""]
["",null,null,null,null,null,null,null,null,null,null,"",0,0,""]
["",null,null,null,null,null,null,null,null,null,null,"",0,0,""]
["",null,null,null,null,null,null,null,null,null,null,"",0,0,""]
["",null,null,null,null,null,null,null,null,null,null,"",0,0,""]
["",null,null,null,null,null,null,null,null,null,null,"",0,0,""]
["",null,null,null,null,null,null,null,null,null,null,"",0,0,""]
["",null,null,null,null,null,null,null,null,null,null,"",0,0,""]
["",null,null,null,null,null,null,null,null,null,null,"",0,0,""]
["",null,null,null,null,null,null,null,null,null,null,"",0,0,""]
["",null,null,null,null,null,null,null,null,null,null,"",0,0,""]
["",null,null,null,null,null,null,null,null,null,null,"",0,0,""]
[{"$f":"IF(AND(K1552<>0,$I$8=0,$I$9=\"OK \"),\"update_data\",\"\")","v":""},null,null,null,null,null,null,null,null,null,null,"",{"$f":"ROUND(K1552,2)","v":0},{"$f":"ROUND(K1552,2)","v":0},{"$f":"IF(AND(C1552=\"\",K1552<>0),\"Kombination INST/Proj felaktig\",IF(OR(C1552=LEFT(E1552,2),E1552=\"\"),\"\",\"Kombination INST/Proj felaktig\"))","v":""}]
["",null,null,null,null,null,null,null,null,null,null,"",0,0,""]
["",null,null,null,null,null,null,null,null,null,null,"",0,0,""]
["",null,null,null,null,null,null,null,null,null,null,"",0,0,""]
["",null,null,null,null,null,null,null,null,null,null,"",0,0,""]
["",null,null,null,null,null,null,null,null,null,null,"",0,0,""]
["",null,null,null,null,null,null,null,null,null,null,"",0,0,""]
["",null,null,null,null,null,null,null,null,null,null,"",0,0,""]
["",null,null,null,null,null,null,null,null,null,null,"",0,0,""]
["",null,null,null,null,null,null,null,null,null,null,"",0,0,""]
["",null,null,null,null,null,null,null,null,null,null,"",0,0,""]
["",null,null,null,null,null,null,null,null,null,null,"",0,0,""]
["",null,null,null,null,null,null,null,null,null,null,"",0,0,""]
["",null,null,null,null,null,null,null,null,null,null,"",0,0,""]
["",null,null,null,null,null,null,null,null,null,null,"",0,0,""]
["",null,null,null,null,null,null,null,null,null,null,"",0,0,""]
["",null,null,null,null,null,null,null,null,null,null,"",0,0,""]
["",null,null,null,null,null,null,null,null,null,null,"",0,0,""]
["",null,null,null,null,null,null,null,null,null,null,"",0,0,""]
["",null,null,null,null,null,null,null,null,null,null,"",0,0,""]
["",null,null,null,null,null,null,null,null,null,null,"",0,0,""]
["",null,null,null,null,null,null,null,null,null,null,"",0,0,""]
["",null,null,null,null,null,null,null,null,null,null,"",0,0,""]
["",null,null,null,null,null,null,null,null,null,null,"",0,0,""]
["",null,null,null,null,null,null,null,null,null,null,"",0,0,""]
["",null,null,null,null,null,null,null,null,null,null,"",0,0,""]
["",null,null,null,null,null,null,null,null,null,null,"",0,0,""]
["",null,null,null,null,null,null,null,null,null,null,"",0,0,""]
["",null,null,null,null,null,null,null,null,null,null,"",0,0,""]
["",null,null,null,null,null,null,null,null,null,null,"",0,0,""]
["",null,null,null,null,null,null,null,null,null,null,"",0,0,""]
["",null,null,null,null,null,null,null,null,null,null,"",0,0,""]
["",null,null,null,null,null,null,null,null,null,null,"",0,0,""]
["",null,null,null,null,null,null,null,null,null,null,"",0,0,""]
["",null,null,null,null,null,null,null,null,null,null,"",0,0,""]
["",null,null,null,null,null,null,null,null,null,null,"",0,0,""]
["",null,null,null,null,null,null,null,null,null,null,"",0,0,""]
["",null,null,null,null,null,null,null,null,null,null,"",0,0,""]
["",null,null,null,null,null,null,null,null,null,null,"",0,0,""]
["",null,null,null,null,null,null,null,null,null,null,{"$f":"UPPER(IF(K1591<>0,valuta,\"\"))","v":""},0,0,""]
["",null,null,null,null,null,null,null,null,null,null,"",0,0,""]
["",null,null,null,null,null,null,null,null,null,null,"",0,0,""]
["",null,null,null,null,null,null,null,null,null,null,"",0,0,""]
["",null,null,null,null,null,null,null,null,null,null,"",0,0,""]
["",null,null,null,null,null,null,null,null,null,null,"",0,0,""]
["",null,null,null,null,null,null,null,null,null,null,"",0,0,""]
["",null,null,null,null,null,null,null,null,null,null,"",0,0,""]
["",null,null,null,null,null,null,null,null,null,null,"",0,0,""]
["",null,null,null,null,null,null,null,null,null,null,"",0,0,""]
["",null,null,null,null,null,null,null,null,null,null,"",0,0,""]
["",null,null,null,null,null,null,null,null,null,null,"",0,0,""]
["",null,null,null,null,null,null,null,null,null,null,"",0,0,""]
["",null,null,null,null,null,null,null,null,null,null,"",0,0,""]
["",null,null,null,null,null,null,null,null,null,null,"",0,0,""]
["",null,null,null,null,null,null,null,null,null,null,"",0,0,""]
["",null,null,null,null,null,null,null,null,null,null,"",0,0,""]
["",null,null,null,null,null,null,null,null,null,null,"",0,0,""]
["",null,null,null,null,null,null,null,null,null,null,"",0,0,""]
["",null,null,null,null,null,null,null,null,null,null,"",0,0,""]
["",null,null,null,null,null,null,null,null,null,null,"",0,0,""]
["",null,null,null,null,null,null,null,null,null,null,"",0,0,""]
["",null,null,null,null,null,null,null,null,null,null,"",0,0,""]
["",null,null,null,null,null,null,null,null,null,null,"",0,0,""]
["",null,null,null,null,null,null,null,null,null,null,"",0,0,""]
[{"$f":"IF(AND(K1616<>0,$I$8=0,$I$9=\"OK \"),\"update_data\",\"\")","v":""},null,null,null,null,null,null,null,null,null,null,"",{"$f":"ROUND(K1616,2)","v":0},{"$f":"ROUND(K1616,2)","v":0},{"$f":"IF(AND(C1616=\"\",K1616<>0),\"Kombination INST/Proj felaktig\",IF(OR(C1616=LEFT(E1616,2),E1616=\"\"),\"\",\"Kombination INST/Proj felaktig\"))","v":""}]
["",null,null,null,null,null,null,null,null,null,null,"",0,0,""]
["",null,null,null,null,null,null,null,null,null,null,"",0,0,""]
["",null,null,null,null,null,null,null,null,null,null,"",0,0,""]
["",null,null,null,null,null,null,null,null,null,null,"",0,0,""]
["",null,null,null,null,null,null,null,null,null,null,"",0,0,""]
["",null,null,null,null,null,null,null,null,null,null,"",0,0,""]
["",null,null,null,null,null,null,null,null,null,null,"",0,0,""]
["",null,null,null,null,null,null,null,null,null,null,"",0,0,""]
["",null,null,null,null,null,null,null,null,null,null,"",0,0,""]
["",null,null,null,null,null,null,null,null,null,null,"",0,0,""]
["",null,null,null,null,null,null,null,null,null,null,"",0,0,""]
["",null,null,null,null,null,null,null,null,null,null,"",0,0,""]
["",null,null,null,null,null,null,null,null,null,null,"",0,0,""]
["",null,null,null,null,null,null,null,null,null,null,"",0,0,""]
["",null,null,null,null,null,null,null,null,null,null,"",0,0,""]
["",null,null,null,null,null,null,null,null,null,null,"",0,0,""]
["",null,null,null,null,null,null,null,null,null,null,"",0,0,""]
["",null,null,null,null,null,null,null,null,null,null,"",0,0,""]
["",null,null,null,null,null,null,null,null,null,null,"",0,0,""]
["",null,null,null,null,null,null,null,null,null,null,"",0,0,""]
["",null,null,null,null,null,null,null,null,null,null,"",0,0,""]
["",null,null,null,null,null,null,null,null,null,null,"",0,0,""]
["",null,null,null,null,null,null,null,null,null,null,"",0,0,""]
["",null,null,null,null,null,null,null,null,null,null,"",0,0,""]
["",null,null,null,null,null,null,null,null,null,null,"",0,0,""]
["",null,null,null,null,null,null,null,null,null,null,"",0,0,""]
["",null,null,null,null,null,null,null,null,null,null,"",0,0,""]
["",null,null,null,null,null,null,null,null,null,null,"",0,0,""]
["",null,null,null,null,null,null,null,null,null,null,"",0,0,""]
["",null,null,null,null,null,null,null,null,null,null,"",0,0,""]
["",null,null,null,null,null,null,null,null,null,null,"",0,0,""]
["",null,null,null,null,null,null,null,null,null,null,"",0,0,""]
["",null,null,null,null,null,null,null,null,null,null,"",0,0,""]
["",null,null,null,null,null,null,null,null,null,null,"",0,0,""]
["",null,null,null,null,null,null,null,null,null,null,"",0,0,""]
["",null,null,null,null,null,null,null,null,null,null,"",0,0,""]
["",null,null,null,null,null,null,null,null,null,null,"",0,0,""]
["",null,null,null,null,null,null,null,null,null,null,"",0,0,""]
["",null,null,null,null,null,null,null,null,null,null,{"$f":"UPPER(IF(K1655<>0,valuta,\"\"))","v":""},0,0,""]
["",null,null,null,null,null,null,null,null,null,null,"",0,0,""]
["",null,null,null,null,null,null,null,null,null,null,"",0,0,""]
["",null,null,null,null,null,null,null,null,null,null,"",0,0,""]
["",null,null,null,null,null,null,null,null,null,null,"",0,0,""]
["",null,null,null,null,null,null,null,null,null,null,"",0,0,""]
["",null,null,null,null,null,null,null,null,null,null,"",0,0,""]
["",null,null,null,null,null,null,null,null,null,null,"",0,0,""]
["",null,null,null,null,null,null,null,null,null,null,"",0,0,""]
["",null,null,null,null,null,null,null,null,null,null,"",0,0,""]
["",null,null,null,null,null,null,null,null,null,null,"",0,0,""]
["",null,null,null,null,null,null,null,null,null,null,"",0,0,""]
["",null,null,null,null,null,null,null,null,null,null,"",0,0,""]
["",null,null,null,null,null,null,null,null,null,null,"",0,0,""]
["",null,null,null,null,null,null,null,null,null,null,"",0,0,""]
["",null,null,null,null,null,null,null,null,null,null,"",0,0,""]
["",null,null,null,null,null,null,null,null,null,null,"",0,0,""]
["",null,null,null,null,null,null,null,null,null,null,"",0,0,""]
["",null,null,null,null,null,null,null,null,null,null,"",0,0,""]
["",null,null,null,null,null,null,null,null,null,null,"",0,0,""]
["",null,null,null,null,null,null,null,null,null,null,"",0,0,""]
["",null,null,null,null,null,null,null,null,null,null,"",0,0,""]
["",null,null,null,null,null,null,null,null,null,null,"",0,0,""]
["",null,null,null,null,null,null,null,null,null,null,"",0,0,""]
["",null,null,null,null,null,null,null,null,null,null,"",0,0,""]
[{"$f":"IF(AND(K1680<>0,$I$8=0,$I$9=\"OK \"),\"update_data\",\"\")","v":""},null,null,null,null,null,null,null,null,null,null,"",{"$f":"ROUND(K1680,2)","v":0},{"$f":"ROUND(K1680,2)","v":0},{"$f":"IF(AND(C1680=\"\",K1680<>0),\"Kombination INST/Proj felaktig\",IF(OR(C1680=LEFT(E1680,2),E1680=\"\"),\"\",\"Kombination INST/Proj felaktig\"))","v":""}]
["",null,null,null,null,null,null,null,null,null,null,"",0,0,""]
["",null,null,null,null,null,null,null,null,null,null,"",0,0,""]
["",null,null,null,null,null,null,null,null,null,null,"",0,0,""]
["",null,null,null,null,null,null,null,null,null,null,"",0,0,""]
["",null,null,null,null,null,null,null,null,null,null,"",0,0,""]
["",null,null,null,null,null,null,null,null,null,null,"",0,0,""]
["",null,null,null,null,null,null,null,null,null,null,"",0,0,""]
["",null,null,null,null,null,null,null,null,null,null,"",0,0,""]
["",null,null,null,null,null,null,null,null,null,null,"",0,0,""]
["",null,null,null,null,null,null,null,null,null,null,"",0,0,""]
["",null,null,null,null,null,null,null,null,null,null,"",0,0,""]
["",null,null,null,null,null,null,null,null,null,null,"",0,0,""]
["",null,null,null,null,null,null,null,null,null,null,"",0,0,""]
["",null,null,null,null,null,null,null,null,null,null,"",0,0,""]
["",null,null,null,null,null,null,null,null,null,null,"",0,0,""]
["",null,null,null,null,null,null,null,null,null,null,"",0,0,""]
["",null,null,null,null,null,null,null,null,null,null,"",0,0,""]
["",null,null,null,null,null,null,null,null,null,null,"",0,0,""]
["",null,null,null,null,null,null,null,null,null,null,"",0,0,""]
["",null,null,null,null,null,null,null,null,null,null,"",0,0,""]
["",null,null,null,null,null,null,null,null,null,null,"",0,0,""]
["",null,null,null,null,null,null,null,null,null,null,"",0,0,""]
["",null,null,null,null,null,null,null,null,null,null,"",0,0,""]
["",null,null,null,null,null,null,null,null,null,null,"",0,0,""]
["",null,null,null,null,null,null,null,null,null,null,"",0,0,""]
["",null,null,null,null,null,null,null,null,null,null,"",0,0,""]
["",null,null,null,null,null,null,null,null,null,null,"",0,0,""]
["",null,null,null,null,null,null,null,null,null,null,"",0,0,""]
["",null,null,null,null,null,null,null,null,null,null,"",0,0,""]
["",null,null,null,null,null,null,null,null,null,null,"",0,0,""]
["",null,null,null,null,null,null,null,null,null,null,"",0,0,""]
["",null,null,null,null,null,null,null,null,null,null,"",0,0,""]
["",null,null,null,null,null,null,null,null,null,null,"",0,0,""]
["",null,null,null,null,null,null,null,null,null,null,"",0,0,""]
["",null,null,null,null,null,null,null,null,null,null,"",0,0,""]
["",null,null,null,null,null,null,null,null,null,null,"",0,0,""]
["",null,null,null,null,null,null,null,null,null,null,"",0,0,""]
["",null,null,null,null,null,null,null,null,null,null,"",0,0,""]
["",null,null,null,null,null,null,null,null,null,null,{"$f":"UPPER(IF(K1719<>0,valuta,\"\"))","v":""},0,0,""]
["",null,null,null,null,null,null,null,null,null,null,"",0,0,""]
["",null,null,null,null,null,null,null,null,null,null,"",0,0,""]
["",null,null,null,null,null,null,null,null,null,null,"",0,0,""]
["",null,null,null,null,null,null,null,null,null,null,"",0,0,""]
["",null,null,null,null,null,null,null,null,null,null,"",0,0,""]
["",null,null,null,null,null,null,null,null,null,null,"",0,0,""]
["",null,null,null,null,null,null,null,null,null,null,"",0,0,""]
["",null,null,null,null,null,null,null,null,null,null,"",0,0,""]
["",null,null,null,null,null,null,null,null,null,null,"",0,0,""]
["",null,null,null,null,null,null,null,null,null,null,"",0,0,""]
["",null,null,null,null,null,null,null,null,null,null,"",0,0,""]
["",null,null,null,null,null,null,null,null,null,null,"",0,0,""]
["",null,null,null,null,null,null,null,null,null,null,"",0,0,""]
["",null,null,null,null,null,null,null,null,null,null,"",0,0,""]
["",null,null,null,null,null,null,null,null,null,null,"",0,0,""]
["",null,null,null,null,null,null,null,null,null,null,"",0,0,""]
["",null,null,null,null,null,null,null,null,null,null,"",0,0,""]
["",null,null,null,null,null,null,null,null,null,null,"",0,0,""]
["",null,null,null,null,null,null,null,null,null,null,"",0,0,""]
["",null,null,null,null,null,null,null,null,null,null,"",0,0,""]
["",null,null,null,null,null,null,null,null,null,null,"",0,0,""]
["",null,null,null,null,null,null,null,null,null,null,"",0,0,""]
["",null,null,null,null,null,null,null,null,null,null,"",0,0,""]
["",null,null,null,null,null,null,null,null,null,null,"",0,0,""]
[{"$f":"IF(AND(K1744<>0,$I$8=0,$I$9=\"OK \"),\"update_data\",\"\")","v":""},null,null,null,null,null,null,null,null,null,null,"",{"$f":"ROUND(K1744,2)","v":0},{"$f":"ROUND(K1744,2)","v":0},{"$f":"IF(AND(C1744=\"\",K1744<>0),\"Kombination INST/Proj felaktig\",IF(OR(C1744=LEFT(E1744,2),E1744=\"\"),\"\",\"Kombination INST/Proj felaktig\"))","v":""}]
["",null,null,null,null,null,null,null,null,null,null,"",0,0,""]
["",null,null,null,null,null,null,null,null,null,null,"",0,0,""]
["",null,null,null,null,null,null,null,null,null,null,"",0,0,""]
["",null,null,null,null,null,null,null,null,null,null,"",0,0,""]
["",null,null,null,null,null,null,null,null,null,null,"",0,0,""]
["",null,null,null,null,null,null,null,null,null,null,"",0,0,""]
["",null,null,null,null,null,null,null,null,null,null,"",0,0,""]
["",null,null,null,null,null,null,null,null,null,null,"",0,0,""]
["",null,null,null,null,null,null,null,null,null,null,"",0,0,""]
["",null,null,null,null,null,null,null,null,null,null,"",0,0,""]
["",null,null,null,null,null,null,null,null,null,null,"",0,0,""]
["",null,null,null,null,null,null,null,null,null,null,"",0,0,""]
["",null,null,null,null,null,null,null,null,null,null,"",0,0,""]
["",null,null,null,null,null,null,null,null,null,null,"",0,0,""]
["",null,null,null,null,null,null,null,null,null,null,"",0,0,""]
["",null,null,null,null,null,null,null,null,null,null,"",0,0,""]
["",null,null,null,null,null,null,null,null,null,null,"",0,0,""]
["",null,null,null,null,null,null,null,null,null,null,"",0,0,""]
["",null,null,null,null,null,null,null,null,null,null,"",0,0,""]
["",null,null,null,null,null,null,null,null,null,null,"",0,0,""]
["",null,null,null,null,null,null,null,null,null,null,"",0,0,""]
["",null,null,null,null,null,null,null,null,null,null,"",0,0,""]
["",null,null,null,null,null,null,null,null,null,null,"",0,0,""]
["",null,null,null,null,null,null,null,null,null,null,"",0,0,""]
["",null,null,null,null,null,null,null,null,null,null,"",0,0,""]
["",null,null,null,null,null,null,null,null,null,null,"",0,0,""]
["",null,null,null,null,null,null,null,null,null,null,"",0,0,""]
["",null,null,null,null,null,null,null,null,null,null,"",0,0,""]
["",null,null,null,null,null,null,null,null,null,null,"",0,0,""]
["",null,null,null,null,null,null,null,null,null,null,"",0,0,""]
["",null,null,null,null,null,null,null,null,null,null,"",0,0,""]
["",null,null,null,null,null,null,null,null,null,null,"",0,0,""]
["",null,null,null,null,null,null,null,null,null,null,"",0,0,""]
["",null,null,null,null,null,null,null,null,null,null,"",0,0,""]
["",null,null,null,null,null,null,null,null,null,null,"",0,0,""]
["",null,null,null,null,null,null,null,null,null,null,"",0,0,""]
["",null,null,null,null,null,null,null,null,null,null,"",0,0,""]
["",null,null,null,null,null,null,null,null,null,null,"",0,0,""]
["",null,null,null,null,null,null,null,null,null,null,{"$f":"UPPER(IF(K1783<>0,valuta,\"\"))","v":""},0,0,""]
["",null,null,null,null,null,null,null,null,null,null,"",0,0,""]
["",null,null,null,null,null,null,null,null,null,null,"",0,0,""]
["",null,null,null,null,null,null,null,null,null,null,"",0,0,""]
["",null,null,null,null,null,null,null,null,null,null,"",0,0,""]
["",null,null,null,null,null,null,null,null,null,null,"",0,0,""]
["",null,null,null,null,null,null,null,null,null,null,"",0,0,""]
["",null,null,null,null,null,null,null,null,null,null,"",0,0,""]
["",null,null,null,null,null,null,null,null,null,null,"",0,0,""]
["",null,null,null,null,null,null,null,null,null,null,"",0,0,""]
["",null,null,null,null,null,null,null,null,null,null,"",0,0,""]
["",null,null,null,null,null,null,null,null,null,null,"",0,0,""]
["",null,null,null,null,null,null,null,null,null,null,"",0,0,""]
["",null,null,null,null,null,null,null,null,null,null,"",0,0,""]
["",null,null,null,null,null,null,null,null,null,null,"",0,0,""]
["",null,null,null,null,null,null,null,null,null,null,"",0,0,""]
["",null,null,null,null,null,null,null,null,null,null,"",0,0,""]
["",null,null,null,null,null,null,null,null,null,null,"",0,0,""]
["",null,null,null,null,null,null,null,null,null,null,"",0,0,""]
["",null,null,null,null,null,null,null,null,null,null,"",0,0,""]
["",null,null,null,null,null,null,null,null,null,null,"",0,0,""]
["",null,null,null,null,null,null,null,null,null,null,"",0,0,""]
["",null,null,null,null,null,null,null,null,null,null,"",0,0,""]
["",null,null,null,null,null,null,null,null,null,null,"",0,0,""]
["",null,null,null,null,null,null,null,null,null,null,"",0,0,""]
[{"$f":"IF(AND(K1808<>0,$I$8=0,$I$9=\"OK \"),\"update_data\",\"\")","v":""},null,null,null,null,null,null,null,null,null,null,"",{"$f":"ROUND(K1808,2)","v":0},{"$f":"ROUND(K1808,2)","v":0},{"$f":"IF(AND(C1808=\"\",K1808<>0),\"Kombination INST/Proj felaktig\",IF(OR(C1808=LEFT(E1808,2),E1808=\"\"),\"\",\"Kombination INST/Proj felaktig\"))","v":""}]
["",null,null,null,null,null,null,null,null,null,null,"",0,0,""]
["",null,null,null,null,null,null,null,null,null,null,"",0,0,""]
["",null,null,null,null,null,null,null,null,null,null,"",0,0,""]
["",null,null,null,null,null,null,null,null,null,null,"",0,0,""]
["",null,null,null,null,null,null,null,null,null,null,"",0,0,""]
["",null,null,null,null,null,null,null,null,null,null,"",0,0,""]
["",null,null,null,null,null,null,null,null,null,null,"",0,0,""]
["",null,null,null,null,null,null,null,null,null,null,"",0,0,""]
["",null,null,null,null,null,null,null,null,null,null,"",0,0,""]
["",null,null,null,null,null,null,null,null,null,null,"",0,0,""]
["",null,null,null,null,null,null,null,null,null,null,"",0,0,""]
["",null,null,null,null,null,null,null,null,null,null,"",0,0,""]
["",null,null,null,null,null,null,null,null,null,null,"",0,0,""]
["",null,null,null,null,null,null,null,null,null,null,"",0,0,""]
["",null,null,null,null,null,null,null,null,null,null,"",0,0,""]
["",null,null,null,null,null,null,null,null,null,null,"",0,0,""]
["",null,null,null,null,null,null,null,null,null,null,"",0,0,""]
["",null,null,null,null,null,null,null,null,null,null,"",0,0,""]
["",null,null,null,null,null,null,null,null,null,null,"",0,0,""]
["",null,null,null,null,null,null,null,null,null,null,"",0,0,""]
["",null,null,null,null,null,null,null,null,null,null,"",0,0,""]
["",null,null,null,null,null,null,null,null,null,null,"",0,0,""]
["",null,null,null,null,null,null,null,null,null,null,"",0,0,""]
["",null,null,null,null,null,null,null,null,null,null,"",0,0,""]
["",null,null,null,null,null,null,null,null,null,null,"",0,0,""]
["",null,null,null,null,null,null,null,null,null,null,"",0,0,""]
["",null,null,null,null,null,null,null,null,null,null,"",0,0,""]
["",null,null,null,null,null,null,null,null,null,null,"",0,0,""]
["",null,null,null,null,null,null,null,null,null,null,"",0,0,""]
["",null,null,null,null,null,null,null,null,null,null,"",0,0,""]
["",null,null,null,null,null,null,null,null,null,null,"",0,0,""]
["",null,null,null,null,null,null,null,null,null,null,"",0,0,""]
["",null,null,null,null,null,null,null,null,null,null,"",0,0,""]
["",null,null,null,null,null,null,null,null,null,null,"",0,0,""]
["",null,null,null,null,null,null,null,null,null,null,"",0,0,""]
["",null,null,null,null,null,null,null,null,null,null,"",0,0,""]
["",null,null,null,null,null,null,null,null,null,null,"",0,0,""]
["",null,null,null,null,null,null,null,null,null,null,"",0,0,""]
["",null,null,null,null,null,null,null,null,null,null,{"$f":"UPPER(IF(K1847<>0,valuta,\"\"))","v":""},0,0,""]
["",null,null,null,null,null,null,null,null,null,null,"",0,0,""]
["",null,null,null,null,null,null,null,null,null,null,"",0,0,""]
["",null,null,null,null,null,null,null,null,null,null,"",0,0,""]
["",null,null,null,null,null,null,null,null,null,null,"",0,0,""]
["",null,null,null,null,null,null,null,null,null,null,"",0,0,""]
["",null,null,null,null,null,null,null,null,null,null,"",0,0,""]
["",null,null,null,null,null,null,null,null,null,null,"",0,0,""]
["",null,null,null,null,null,null,null,null,null,null,"",0,0,""]
["",null,null,null,null,null,null,null,null,null,null,"",0,0,""]
["",null,null,null,null,null,null,null,null,null,null,"",0,0,""]
["",null,null,null,null,null,null,null,null,null,null,"",0,0,""]
["",null,null,null,null,null,null,null,null,null,null,"",0,0,""]
["",null,null,null,null,null,null,null,null,null,null,"",0,0,""]
["",null,null,null,null,null,null,null,null,null,null,"",0,0,""]
["",null,null,null,null,null,null,null,null,null,null,"",0,0,""]
["",null,null,null,null,null,null,null,null,null,null,"",0,0,""]
["",null,null,null,null,null,null,null,null,null,null,"",0,0,""]
["",null,null,null,null,null,null,null,null,null,null,"",0,0,""]
["",null,null,null,null,null,null,null,null,null,null,"",0,0,""]
["",null,null,null,null,null,null,null,null,null,null,"",0,0,""]
["",null,null,null,null,null,null,null,null,null,null,"",0,0,""]
["",null,null,null,null,null,null,null,null,null,null,"",0,0,""]
["",null,null,null,null,null,null,null,null,null,null,"",0,0,""]
["",null,null,null,null,null,null,null,null,null,null,"",0,0,""]
[{"$f":"IF(AND(K1872<>0,$I$8=0,$I$9=\"OK \"),\"update_data\",\"\")","v":""},null,null,null,null,null,null,null,null,null,null,"",{"$f":"ROUND(K1872,2)","v":0},{"$f":"ROUND(K1872,2)","v":0},{"$f":"IF(AND(C1872=\"\",K1872<>0),\"Kombination INST/Proj felaktig\",IF(OR(C1872=LEFT(E1872,2),E1872=\"\"),\"\",\"Kombination INST/Proj felaktig\"))","v":""}]
["",null,null,null,null,null,null,null,null,null,null,"",0,0,""]
["",null,null,null,null,null,null,null,null,null,null,"",0,0,""]
["",null,null,null,null,null,null,null,null,null,null,"",0,0,""]
["",null,null,null,null,null,null,null,null,null,null,"",0,0,""]
["",null,null,null,null,null,null,null,null,null,null,"",0,0,""]
["",null,null,null,null,null,null,null,null,null,null,"",0,0,""]
["",null,null,null,null,null,null,null,null,null,null,"",0,0,""]
["",null,null,null,null,null,null,null,null,null,null,"",0,0,""]
["",null,null,null,null,null,null,null,null,null,null,"",0,0,""]
["",null,null,null,null,null,null,null,null,null,null,"",0,0,""]
["",null,null,null,null,null,null,null,null,null,null,"",0,0,""]
["",null,null,null,null,null,null,null,null,null,null,"",0,0,""]
["",null,null,null,null,null,null,null,null,null,null,"",0,0,""]
["",null,null,null,null,null,null,null,null,null,null,"",0,0,""]
["",null,null,null,null,null,null,null,null,null,null,"",0,0,""]
["",null,null,null,null,null,null,null,null,null,null,"",0,0,""]
["",null,null,null,null,null,null,null,null,null,null,"",0,0,""]
["",null,null,null,null,null,null,null,null,null,null,"",0,0,""]
["",null,null,null,null,null,null,null,null,null,null,"",0,0,""]
["",null,null,null,null,null,null,null,null,null,null,"",0,0,""]
["",null,null,null,null,null,null,null,null,null,null,"",0,0,""]
["",null,null,null,null,null,null,null,null,null,null,"",0,0,""]
["",null,null,null,null,null,null,null,null,null,null,"",0,0,""]
["",null,null,null,null,null,null,null,null,null,null,"",0,0,""]
["",null,null,null,null,null,null,null,null,null,null,"",0,0,""]
["",null,null,null,null,null,null,null,null,null,null,"",0,0,""]
["",null,null,null,null,null,null,null,null,null,null,"",0,0,""]
["",null,null,null,null,null,null,null,null,null,null,"",0,0,""]
["",null,null,null,null,null,null,null,null,null,null,"",0,0,""]
["",null,null,null,null,null,null,null,null,null,null,"",0,0,""]
["",null,null,null,null,null,null,null,null,null,null,"",0,0,""]
["",null,null,null,null,null,null,null,null,null,null,"",0,0,""]
["",null,null,null,null,null,null,null,null,null,null,"",0,0,""]
["",null,null,null,null,null,null,null,null,null,null,"",0,0,""]
["",null,null,null,null,null,null,null,null,null,null,"",0,0,""]
["",null,null,null,null,null,null,null,null,null,null,"",0,0,""]
["",null,null,null,null,null,null,null,null,null,null,"",0,0,""]
["",null,null,null,null,null,null,null,null,null,null,"",0,0,""]
["",null,null,null,null,null,null,null,null,null,null,{"$f":"UPPER(IF(K1911<>0,valuta,\"\"))","v":""},0,0,""]
["",null,null,null,null,null,null,null,null,null,null,"",0,0,""]
["",null,null,null,null,null,null,null,null,null,null,"",0,0,""]
["",null,null,null,null,null,null,null,null,null,null,"",0,0,""]
["",null,null,null,null,null,null,null,null,null,null,"",0,0,""]
["",null,null,null,null,null,null,null,null,null,null,"",0,0,""]
["",null,null,null,null,null,null,null,null,null,null,"",0,0,""]
["",null,null,null,null,null,null,null,null,null,null,"",0,0,""]
["",null,null,null,null,null,null,null,null,null,null,"",0,0,""]
["",null,null,null,null,null,null,null,null,null,null,"",0,0,""]
["",null,null,null,null,null,null,null,null,null,null,"",0,0,""]
["",null,null,null,null,null,null,null,null,null,null,"",0,0,""]
["",null,null,null,null,null,null,null,null,null,null,"",0,0,""]
["",null,null,null,null,null,null,null,null,null,null,"",0,0,""]
["",null,null,null,null,null,null,null,null,null,null,"",0,0,""]
["",null,null,null,null,null,null,null,null,null,null,"",0,0,""]
["",null,null,null,null,null,null,null,null,null,null,"",0,0,""]
["",null,null,null,null,null,null,null,null,null,null,"",0,0,""]
["",null,null,null,null,null,null,null,null,null,null,"",0,0,""]
["",null,null,null,null,null,null,null,null,null,null,"",0,0,""]
["",null,null,null,null,null,null,null,null,null,null,"",0,0,""]
["",null,null,null,null,null,null,null,null,null,null,"",0,0,""]
["",null,null,null,null,null,null,null,null,null,null,"",0,0,""]
["",null,null,null,null,null,null,null,null,null,null,"",0,0,""]
["",null,null,null,null,null,null,null,null,null,null,"",0,0,""]
[{"$f":"IF(AND(K1936<>0,$I$8=0,$I$9=\"OK \"),\"update_data\",\"\")","v":""},null,null,null,null,null,null,null,null,null,null,"",{"$f":"ROUND(K1936,2)","v":0},{"$f":"ROUND(K1936,2)","v":0},{"$f":"IF(AND(C1936=\"\",K1936<>0),\"Kombination INST/Proj felaktig\",IF(OR(C1936=LEFT(E1936,2),E1936=\"\"),\"\",\"Kombination INST/Proj felaktig\"))","v":""}]
["",null,null,null,null,null,null,null,null,null,null,"",0,0,""]
["",null,null,null,null,null,null,null,null,null,null,"",0,0,""]
["",null,null,null,null,null,null,null,null,null,null,"",0,0,""]
["",null,null,null,null,null,null,null,null,null,null,"",0,0,""]
["",null,null,null,null,null,null,null,null,null,null,"",0,0,""]
["",null,null,null,null,null,null,null,null,null,null,"",0,0,""]
["",null,null,null,null,null,null,null,null,null,null,"",0,0,""]
["",null,null,null,null,null,null,null,null,null,null,"",0,0,""]
["",null,null,null,null,null,null,null,null,null,null,"",0,0,""]
["",null,null,null,null,null,null,null,null,null,null,"",0,0,""]
["",null,null,null,null,null,null,null,null,null,null,"",0,0,""]
["",null,null,null,null,null,null,null,null,null,null,"",0,0,""]
["",null,null,null,null,null,null,null,null,null,null,"",0,0,""]
["",null,null,null,null,null,null,null,null,null,null,"",0,0,""]
["",null,null,null,null,null,null,null,null,null,null,"",0,0,""]
["",null,null,null,null,null,null,null,null,null,null,"",0,0,""]
["",null,null,null,null,null,null,null,null,null,null,"",0,0,""]
["",null,null,null,null,null,null,null,null,null,null,"",0,0,""]
["",null,null,null,null,null,null,null,null,null,null,"",0,0,""]
["",null,null,null,null,null,null,null,null,null,null,"",0,0,""]
["",null,null,null,null,null,null,null,null,null,null,"",0,0,""]
["",null,null,null,null,null,null,null,null,null,null,"",0,0,""]
["",null,null,null,null,null,null,null,null,null,null,"",0,0,""]
["",null,null,null,null,null,null,null,null,null,null,"",0,0,""]
["",null,null,null,null,null,null,null,null,null,null,"",0,0,""]
["",null,null,null,null,null,null,null,null,null,null,"",0,0,""]
["",null,null,null,null,null,null,null,null,null,null,"",0,0,""]
["",null,null,null,null,null,null,null,null,null,null,"",0,0,""]
["",null,null,null,null,null,null,null,null,null,null,"",0,0,""]
["",null,null,null,null,null,null,null,null,null,null,"",0,0,""]
["",null,null,null,null,null,null,null,null,null,null,"",0,0,""]
["",null,null,null,null,null,null,null,null,null,null,"",0,0,""]
["",null,null,null,null,null,null,null,null,null,null,"",0,0,""]
["",null,null,null,null,null,null,null,null,null,null,"",0,0,""]
["",null,null,null,null,null,null,null,null,null,null,"",0,0,""]
["",null,null,null,null,null,null,null,null,null,null,"",0,0,""]
["",null,null,null,null,null,null,null,null,null,null,"",0,0,""]
["",null,null,null,null,null,null,null,null,null,null,"",0,0,""]
["",null,null,null,null,null,null,null,null,null,null,{"$f":"UPPER(IF(K1975<>0,valuta,\"\"))","v":""},0,0,""]
["",null,null,null,null,null,null,null,null,null,null,"",0,0,""]
["",null,null,null,null,null,null,null,null,null,null,"",0,0,""]
["",null,null,null,null,null,null,null,null,null,null,"",0,0,""]
["",null,null,null,null,null,null,null,null,null,null,"",0,0,""]
["",null,null,null,null,null,null,null,null,null,null,"",0,0,""]
["",null,null,null,null,null,null,null,null,null,null,"",0,0,""]
["",null,null,null,null,null,null,null,null,null,null,"",0,0,""]
["",null,null,null,null,null,null,null,null,null,null,"",0,0,""]
["",null,null,null,null,null,null,null,null,null,null,"",0,0,""]
["",null,null,null,null,null,null,null,null,null,null,"",0,0,""]
["",null,null,null,null,null,null,null,null,null,null,"",0,0,""]
["",null,null,null,null,null,null,null,null,null,null,"",0,0,""]
["",null,null,null,null,null,null,null,null,null,null,"",0,0,""]
["",null,null,null,null,null,null,null,null,null,null,"",0,0,""]
["",null,null,null,null,null,null,null,null,null,null,"",0,0,""]
["",null,null,null,null,null,null,null,null,null,null,"",0,0,""]
["",null,null,null,null,null,null,null,null,null,null,"",0,0,""]
["",null,null,null,null,null,null,null,null,null,null,"",0,0,""]
["",null,null,null,null,null,null,null,null,null,null,"",0,0,""]
["",null,null,null,null,null,null,null,null,null,null,"",0,0,""]
["",null,null,null,null,null,null,null,null,null,null,"",0,0,""]
["",null,null,null,null,null,null,null,null,null,null,"",0,0,""]
["",null,null,null,null,null,null,null,null,null,null,"",0,0,""]
["",null,null,null,null,null,null,null,null,null,null,"",0,0,""]
[{"$f":"IF(AND(K2000<>0,$I$8=0,$I$9=\"OK \"),\"update_data\",\"\")","v":""},null,null,null,null,null,null,null,null,null,null,"",{"$f":"ROUND(K2000,2)","v":0},{"$f":"ROUND(K2000,2)","v":0},{"$f":"IF(AND(C2000=\"\",K2000<>0),\"Kombination INST/Proj felaktig\",IF(OR(C2000=LEFT(E2000,2),E2000=\"\"),\"\",\"Kombination INST/Proj felaktig\"))","v":""}]
["",null,null,null,null,null,null,null,null,null,null,"",0,0,""]
["",null,null,null,null,null,null,null,null,null,null,"",0,0,""]
["",null,null,null,null,null,null,null,null,null,null,"",0,0,""]
["",null,null,null,null,null,null,null,null,null,null,"",0,0,""]
["",null,null,null,null,null,null,null,null,null,null,"",0,0,""]
["",null,null,null,null,null,null,null,null,null,null,"",0,0,""]
["",null,null,null,null,null,null,null,null,null,null,"",0,0,""]
["",null,null,null,null,null,null,null,null,null,null,"",0,0,""]
["",null,null,null,null,null,null,null,null,null,null,"",0,0,""]
["",null,null,null,null,null,null,null,null,null,null,"",0,0,""]
["",null,null,null,null,null,null,null,null,null,null,"",0,0,""]
["",null,null,null,null,null,null,null,null,null,null,"",0,0,""]
["",null,null,null,null,null,null,null,null,null,null,"",0,0,""]
["",null,null,null,null,null,null,null,null,null,null,"",0,0,""]
["",null,null,null,null,null,null,null,null,null,null,"",0,0,""]
["",null,null,null,null,null,null,null,null,null,null,"",0,0,""]
["",null,null,null,null,null,null,null,null,null,null,"",0,0,""]
["",null,null,null,null,null,null,null,null,null,null,"",0,0,""]
["",null,null,null,null,null,null,null,null,null,null,"",0,0,""]
["",null,null,null,null,null,null,null,null,null,null,"",0,0,""]
["",null,null,null,null,null,null,null,null,null,null,"",0,0,""]
[{"$f":"IF(AND(K2704<>0,$I$8=0,$I$9=\"OK \"),\"update_data\",\"\")","v":""},null,null,null,null,null,null,null,null,null,null,"",{"$f":"ROUND(K2704,2)","v":0},{"$f":"ROUND(K2704,2)","v":0},{"$f":"IF(AND(C2704=\"\",K2704<>0),\"Kombination INST/Proj felaktig\",IF(OR(C2704=LEFT(E2704,2),E2704=\"\"),\"\",\"Kombination INST/Proj felaktig\"))","v":""}]
["",null,null,null,null,null,null,null,null,null,null,"",0,0,""]
["",null,null,null,null,null,null,null,null,null,null,"",0,0,""]
["",null,null,null,null,null,null,null,null,null,null,"",0,0,""]
["",null,null,null,null,null,null,null,null,null,null,"",0,0,""]
["",null,null,null,null,null,null,null,null,null,null,"",0,0,""]
["",null,null,null,null,null,null,null,null,null,null,{"$f":"UPPER(IF(K2871<>0,valuta,\"\"))","v":""},0,0,""]
["",null,null,null,null,null,null,null,null,null,null,"",0,0,""]
["",null,null,null,null,null,null,null,null,null,null,"",0,0,""]
["",null,null,null,null,null,null,null,null,null,null,"",0,0,""]
["",null,null,null,null,null,null,null,null,null,null,"",0,0,""]
["",null,null,null,null,null,null,null,null,null,null,"",0,0,""]
["",null,null,null,null,null,null,null,null,null,null,"",0,0,""]
["",null,null,null,null,null,null,null,null,null,null,"",0,0,""]
["",null,null,null,null,null,null,null,null,null,null,"",0,0,""]
["",null,null,null,null,null,null,null,null,null,null,"",0,0,""]
["",null,null,null,null,null,null,null,null,null,null,"",0,0,""]
["",null,null,null,null,null,null,null,null,null,null,"",0,0,""]
["",null,null,null,null,null,null,null,null,null,null,"",0,0,""]
["",null,null,null,null,null,null,null,null,null,null,"",0,0,""]
["",null,null,null,null,null,null,null,null,null,null,"",0,0,""]
["",null,null,null,null,null,null,null,null,null,null,"",0,0,""]
["",null,null,null,null,null,null,null,null,null,null,"",0,0,""]
["",null,null,null,null,null,null,null,null,null,null,"",0,0,""]
["",null,null,null,null,null,null,null,null,null,null,"",0,0,""]
["",null,null,null,null,null,null,null,null,null,null,"",0,0,""]
["",null,null,null,null,null,null,null,null,null,null,"",0,0,""]
["",null,null,null,null,null,null,null,null,null,null,"",0,0,""]
["",null,null,null,null,null,null,null,null,null,null,"",0,0,""]
["",null,null,null,null,null,null,null,null,null,null,"",0,0,""]
["",null,null,null,null,null,null,null,null,null,null,"",0,0,""]
["",null,null,null,null,null,null,null,null,null,null,"",0,0,""]
["",null,null,null,null,null,null,null,null,null,null,"",0,0,""]
["",null,null,null,null,null,null,null,null,null,null,"",0,0,""]
["",null,null,null,null,null,null,null,null,null,null,"",0,0,""]
["",null,null,null,null,null,null,null,null,null,null,"",0,0,""]
["",null,null,null,null,null,null,null,null,null,null,{"$f":"UPPER(IF(K3831<>0,valuta,\"\"))","v":""},0,0,""]
["",null,null,null,null,null,null,null,null,null,null,"",0,0,""]
["",null,null,null,null,null,null,null,null,null,null,"",0,0,""]
["",null,null,null,null,null,null,null,null,null,null,"",0,0,""]
["",null,null,null,null,null,null,null,null,null,null,"",0,0,""]
["",null,null,null,null,null,null,null,null,null,null,"",0,0,""]
["",null,null,null,null,null,null,null,null,null,null,"",0,0,""]
["",null,null,null,null,null,null,null,null,null,null,"",0,0,""]
["",null,null,null,null,null,null,null,null,null,null,"",0,0,""]
["",null,null,null,null,null,null,null,null,null,null,"",0,0,""]
["",null,null,null,null,null,null,null,null,null,null,"",0,0,""]
["",null,null,null,null,null,null,null,null,null,null,"",0,0,""]
["",null,null,null,null,null,null,null,null,null,null,"",0,0,""]
["",null,null,null,null,null,null,null,null,null,null,"",0,0,""]
["",null,null,null,null,null,null,null,null,null,null,"",0,0,""]
["",null,null,null,null,null,null,null,null,null,null,"",0,0,""]
["",null,null,null,null,null,null,null,null,null,null,"",0,0,""]
["",null,null,null,null,null,null,null,null,null,null,"",0,0,""]
["",null,null,null,null,null,null,null,null,null,null,"",0,0,""]
["",null,null,null,null,null,null,null,null,null,null,"",0,0,""]
["",null,null,null,null,null,null,null,null,null,null,"",0,0,""]
["",null,null,null,null,null,null,null,null,null,null,"",0,0,""]
["",null,null,null,null,null,null,null,null,null,null,"",0,0,""]
["",null,null,null,null,null,null,null,null,null,null,"",0,0,""]
["",null,null,null,null,null,null,null,null,null,null,"",0,0,""]
["",null,null,null,null,null,null,null,null,null,null,"",0,0,""]
["",null,null,null,null,null,null,null,null,null,null,"",0,0,""]
["",null,null,null,null,null,null,null,null,null,null,"",0,0,""]
["",null,null,null,null,null,null,null,null,null,null,"",0,0,""]
["",null,null,null,null,null,null,null,null,null,null,"",0,0,""]
["",null,null,null,null,null,null,null,null,null,null,"",0,0,""]
["",null,null,null,null,null,null,null,null,null,null,"",0,0,""]
["",null,null,null,null,null,null,null,null,null,null,"",0,0,""]
["",null,null,null,null,null,null,null,null,null,null,"",0,0,""]
["",null,null,null,null,null,null,null,null,null,null,"",0,0,""]
["",null,null,null,null,null,null,null,null,null,null,"",0,0,""]
["",null,null,null,null,null,null,null,null,null,null,"",0,0,""]
["",null,null,null,null,null,null,null,null,null,null,"",0,0,""]
["",null,null,null,null,null,null,null,null,null,null,"",0,0,""]
["",null,null,null,null,null,null,null,null,null,null,"",0,0,""]
["",null,null,null,null,null,null,null,null,null,null,"",0,0,""]
["",null,null,null,null,null,null,null,null,null,null,"",0,0,""]
["",null,null,null,null,null,null,null,null,null,null,"",0,0,""]
["",null,null,null,null,null,null,null,null,null,null,"",0,0,""]
["",null,null,null,null,null,null,null,null,null,null,"",0,0,""]
["",null,null,null,null,null,null,null,null,null,null,"",0,0,""]
["",null,null,null,null,null,null,null,null,null,null,"",0,0,""]
["",null,null,null,null,null,null,null,null,null,null,"",0,0,""]
["",null,null,null,null,null,null,null,null,null,null,"",0,0,""]
["",null,null,null,null,null,null,null,null,null,null,"",0,0,""]
["",null,null,null,null,null,null,null,null,null,null,"",0,0,""]
["",null,null,null,null,null,null,null,null,null,null,"",0,0,""]
[{"$f":"IF(AND(K5520<>0,$I$8=0,$I$9=\"OK \"),\"update_data\",\"\")","v":""},null,null,null,null,null,null,null,null,null,null,"",{"$f":"ROUND(K5520,2)","v":0},{"$f":"ROUND(K5520,2)","v":0},{"$f":"IF(AND(C5520=\"\",K5520<>0),\"Kombination INST/Proj felaktig\",IF(OR(C5520=LEFT(E5520,2),E5520=\"\"),\"\",\"Kombination INST/Proj felaktig\"))","v":""}]
["",null,null,null,null,null,null,null,null,null,null,"",0,0,""]
["",null,null,null,null,null,null,null,null,null,null,"",0,0,""]
["",null,null,null,null,null,null,null,null,null,null,"",0,0,""]
["",null,null,null,null,null,null,null,null,null,null,"",0,0,""]
["",null,null,null,null,null,null,null,null,null,null,"",0,0,""]
["",null,null,null,null,null,null,null,null,null,null,"",0,0,""]
["",null,null,null,null,null,null,null,null,null,null,"",0,0,""]
["",null,null,null,null,null,null,null,null,null,null,"",0,0,""]
["",null,null,null,null,null,null,null,null,null,null,"",0,0,""]
["",null,null,null,null,null,null,null,null,null,null,"",0,0,""]
["",null,null,null,null,null,null,null,null,null,null,"",0,0,""]
["",null,null,null,null,null,null,null,null,null,null,"",0,0,""]
["",null,null,null,null,null,null,null,null,null,null,"",0,0,""]
["",null,null,null,null,null,null,null,null,null,null,"",0,0,""]
["",null,null,null,null,null,null,null,null,null,null,"",0,0,""]
["",null,null,null,null,null,null,null,null,null,null,"",0,0,""]
["",null,null,null,null,null,null,null,null,null,null,"",0,0,""]
["",null,null,null,null,null,null,null,null,null,null,"",0,0,""]
["",null,null,null,null,null,null,null,null,null,null,"",0,0,""]
["",null,null,null,null,null,null,null,null,null,null,"",0,0,""]
["",null,null,null,null,null,null,null,null,null,null,"",0,0,""]
["",null,null,null,null,null,null,null,null,null,null,"",0,0,""]
["",null,null,null,null,null,null,null,null,null,null,"",0,0,""]
["",null,null,null,null,null,null,null,null,null,null,"",0,0,""]
["",null,null,null,null,null,null,null,null,null,null,"",0,0,""]
["",null,null,null,null,null,null,null,null,null,null,"",0,0,""]
["",null,null,null,null,null,null,null,null,null,null,"",0,0,""]
["",null,null,null,null,null,null,null,null,null,null,"",0,0,""]
["",null,null,null,null,null,null,null,null,null,null,"",0,0,""]
[{"$f":"IF(AND(K6480<>0,$I$8=0,$I$9=\"OK \"),\"update_data\",\"\")","v":""},null,null,null,null,null,null,null,null,null,null,"",{"$f":"ROUND(K6480,2)","v":0},{"$f":"ROUND(K6480,2)","v":0},{"$f":"IF(AND(C6480=\"\",K6480<>0),\"Kombination INST/Proj felaktig\",IF(OR(C6480=LEFT(E6480,2),E6480=\"\"),\"\",\"Kombination INST/Proj felaktig\"))","v":""}]
["",null,null,null,null,null,null,null,null,null,null,"",0,0,""]
["",null,null,null,null,null,null,null,null,null,null,"",0,0,""]
["",null,null,null,null,null,null,null,null,null,null,"",0,0,""]
["",null,null,null,null,null,null,null,null,null,null,"",0,0,""]
["",null,null,null,null,null,null,null,null,null,null,"",0,0,""]
["",null,null,null,null,null,null,null,null,null,null,"",0,0,""]
["",null,null,null,null,null,null,null,null,null,null,"",0,0,""]
["",null,null,null,null,null,null,null,null,null,null,"",0,0,""]
["",null,null,null,null,null,null,null,null,null,null,"",0,0,""]
["",null,null,null,null,null,null,null,null,null,null,"",0,0,""]
["",null,null,null,null,null,null,null,null,null,null,"",0,0,""]
["",null,null,null,null,null,null,null,null,null,null,"",0,0,""]
["",null,null,null,null,null,null,null,null,null,null,"",0,0,""]
["",null,null,null,null,null,null,null,null,null,null,"",0,0,""]
["",null,null,null,null,null,null,null,null,null,null,"",0,0,""]
["",null,null,null,null,null,null,null,null,null,null,"",0,0,""]
["",null,null,null,null,null,null,null,null,null,null,"",0,0,""]
["",null,null,null,null,null,null,null,null,null,null,"",0,0,""]
["",null,null,null,null,null,null,null,null,null,null,"",0,0,""]
["",null,null,null,null,null,null,null,null,null,null,"",0,0,""]
["",null,null,null,null,null,null,null,null,null,null,{"$f":"UPPER(IF(K7159<>0,valuta,\"\"))","v":""},0,0,""]
["",null,null,null,null,null,null,null,null,null,null,"",0,0,""]
["",null,null,null,null,null,null,null,null,null,null,"",0,0,""]
["",null,null,null,null,null,null,null,null,null,null,"",0,0,""]
["",null,null,null,null,null,null,null,null,null,null,"",0,0,""]
["",null,null,null,null,null,null,null,null,null,null,"",0,0,""]
["",null,null,null,null,null,null,null,null,null,null,"",0,0,""]
["",null,null,null,null,null,null,null,null,null,null,"",0,0,""]
["",null,null,null,null,null,null,null,null,null,null,"",0,0,""]
["",null,null,null,null,null,null,null,null,null,null,"",0,0,""]
["",null,null,null,null,null,null,null,null,null,null,"",0,0,""]
["",null,null,null,null,null,null,null,null,null,null,"",0,0,""]
["",null,null,null,null,null,null,null,null,null,null,"",0,0,""]
["",null,null,null,null,null,null,null,null,null,null,"",0,0,""]
["",null,null,null,null,null,null,null,null,null,null,"",0,0,""]
["",null,null,null,null,null,null,null,null,null,null,"",0,0,""]
["",null,null,null,null,null,null,null,null,null,null,"",0,0,""]
[{"$f":"IF(AND(K7696<>0,$I$8=0,$I$9=\"OK \"),\"update_data\",\"\")","v":""},null,null,null,null,null,null,null,null,null,null,"",{"$f":"ROUND(K7696,2)","v":0},{"$f":"ROUND(K7696,2)","v":0},{"$f":"IF(AND(C7696=\"\",K7696<>0),\"Kombination INST/Proj felaktig\",IF(OR(C7696=LEFT(E7696,2),E7696=\"\"),\"\",\"Kombination INST/Proj felaktig\"))","v":""}]
["",null,null,null,null,null,null,null,null,null,null,"",0,0,""]
["",null,null,null,null,null,null,null,null,null,null,"",0,0,""]
["",null,null,null,null,null,null,null,null,null,null,"",0,0,""]
["",null,null,null,null,null,null,null,null,null,null,"",0,0,""]
["",null,null,null,null,null,null,null,null,null,null,"",0,0,""]
["",null,null,null,null,null,null,null,null,null,null,"",0,0,""]
["",null,null,null,null,null,null,null,null,null,null,"",0,0,""]
["",null,null,null,null,null,null,null,null,null,null,"",0,0,""]
["",null,null,null,null,null,null,null,null,null,null,"",0,0,""]
["",null,null,null,null,null,null,null,null,null,null,"",0,0,""]
["",null,null,null,null,null,null,null,null,null,null,"",0,0,""]
["",null,null,null,null,null,null,null,null,null,null,"",0,0,""]
["",null,null,null,null,null,null,null,null,null,null,"",0,0,""]
["",null,null,null,null,null,null,null,null,null,null,"",0,0,""]
["",null,null,null,null,null,null,null,null,null,null,"",0,0,""]
["",null,null,null,null,null,null,null,null,null,null,"",0,0,""]
["",null,null,null,null,null,null,null,null,null,null,"",0,0,""]
["",null,null,null,null,null,null,null,null,null,null,"",0,0,""]
["",null,null,null,null,null,null,null,null,null,null,"",0,0,""]
["",null,null,null,null,null,null,null,null,null,null,"",0,0,""]
["",null,null,null,null,null,null,null,null,null,null,"",0,0,""]
["",null,null,null,null,null,null,null,null,null,null,"",0,0,""]
["",null,null,null,null,null,null,null,null,null,null,"",0,0,""]
["",null,null,null,null,null,null,null,null,null,null,"",0,0,""]
["",null,null,null,null,null,null,null,null,null,null,"",0,0,""]
["",null,null,null,null,null,null,null,null,null,null,"",0,0,""]
["",null,null,null,null,null,null,null,null,null,null,"",0,0,""]
["",null,null,null,null,null,null,null,null,null,null,"",0,0,""]
["",null,null,null,null,null,null,null,null,null,null,"",0,0,""]
["",null,null,null,null,null,null,null,null,null,null,"",0,0,""]
["",null,null,null,null,null,null,null,null,null,null,"",0,0,""]
["",null,null,null,null,null,null,null,null,null,null,"",0,0,""]
["",null,null,null,null,null,null,null,null,null,null,"",0,0,""]
["",null,null,null,null,null,null,null,null,null,null,"",0,0,""]
["",null,null,null,null,null,null,null,null,null,null,"",0,0,""]
["",null,null,null,null,null,null,null,null,null,null,"",0,0,""]
["",null,null,null,null,null,null,null,null,null,null,"",0,0,""]
["",null,null,null,null,null,null,null,null,null,null,"",0,0,""]
["",null,null,null,null,null,null,null,null,null,null,"",0,0,""]
["",null,null,null,null,null,null,null,null,null,null,"",0,0,""]
["",null,null,null,null,null,null,null,null,null,null,"",0,0,""]
["",null,null,null,null,null,null,null,null,null,null,"",0,0,""]
["",null,null,null,null,null,null,null,null,null,null,"",0,0,""]
["",null,null,null,null,null,null,null,null,null,null,"",0,0,""]
["",null,null,null,null,null,null,null,null,null,null,"",0,0,""]
["",null,null,null,null,null,null,null,null,null,null,"",0,0,""]
["",null,null,null,null,null,null,null,null,null,null,"",0,0,""]
["",null,null,null,null,null,null,null,null,null,null,"",0,0,""]
["",null,null,null,null,null,null,null,null,null,null,"",0,0,""]
[{"$f":"IF(AND(K9296<>0,$I$8=0,$I$9=\"OK \"),\"update_data\",\"\")","v":""},null,null,null,null,null,null,null,null,null,null,"",{"$f":"ROUND(K9296,2)","v":0},{"$f":"ROUND(K9296,2)","v":0},{"$f":"IF(AND(C9296=\"\",K9296<>0),\"Kombination INST/Proj felaktig\",IF(OR(C9296=LEFT(E9296,2),E9296=\"\"),\"\",\"Kombination INST/Proj felaktig\"))","v":""}]
["",null,null,null,null,null,null,null,null,null,null,"",0,0,""]
["",null,null,null,null,null,null,null,null,null,null,"",0,0,""]
["",null,null,null,null,null,null,null,null,null,null,"",0,0,""]
["",null,null,null,null,null,null,null,null,null,null,"",0,0,""]
["",null,null,null,null,null,null,null,null,null,null,"",0,0,""]
["",null,null,null,null,null,null,null,null,null,null,"",0,0,""]
["",null,null,null,null,null,null,null,null,null,null,"",0,0,""]
["",null,null,null,null,null,null,null,null,null,null,"",0,0,""]
["",null,null,null,null,null,null,null,null,null,null,"",0,0,""]
["",null,null,null,null,null,null,null,null,null,null,"",0,0,""]
["",null,null,null,null,null,null,null,null,null,null,"",0,0,""]
["",null,null,null,null,null,null,null,null,null,null,"",0,0,""]
["",null,null,null,null,null,null,null,null,null,null,"",0,0,""]
["",null,null,null,null,null,null,null,null,null,null,"",0,0,""]
["",null,null,null,null,null,null,null,null,null,null,"",0,0,""]
["",null,null,null,null,null,null,null,null,null,null,"",0,0,""]
["",null,null,null,null,null,null,null,null,null,null,"",0,0,""]
["",null,null,null,null,null,null,null,null,null,null,"",0,0,""]
["",null,null,null,null,null,null,null,null,null,null,"",0,0,""]
["",null,null,null,null,null,null,null,null,null,null,"",0,0,""]
["",null,null,null,null,null,null,null,null,null,null,"",0,0,""]
["",null,null,null,null,null,null,null,null,null,null,"",0,0,""]
["",null,null,null,null,null,null,null,null,null,null,"",0,0,""]
["",null,null,null,null,null,null,null,null,null,null,"",0,0,""]
["",null,null,null,null,null,null,null,null,null,null,"",0,0,""]
["",null,null,null,null,null,null,null,null,null,null,"",0,0,""]
["",null,null,null,null,null,null,null,null,null,null,"",0,0,""]
["",null,null,null,null,null,null,null,null,null,null,"",0,0,""]
["",null,null,null,null,null,null,null,null,null,null,"",0,0,""]
[{"$f":"IF(AND(K10256<>0,$I$8=0,$I$9=\"OK \"),\"update_data\",\"\")","v":""},null,null,null,null,null,null,null,null,null,null,"",{"$f":"ROUND(K10256,2)","v":0},{"$f":"ROUND(K10256,2)","v":0},{"$f":"IF(AND(C10256=\"\",K10256<>0),\"Kombination INST/Proj felaktig\",IF(OR(C10256=LEFT(E10256,2),E10256=\"\"),\"\",\"Kombination INST/Proj felaktig\"))","v":""}]
["",null,null,null,null,null,null,null,null,null,null,"",0,0,""]
["",null,null,null,null,null,null,null,null,null,null,"",0,0,""]
["",null,null,null,null,null,null,null,null,null,null,"",0,0,""]
["",null,null,null,null,null,null,null,null,null,null,"",0,0,""]
["",null,null,null,null,null,null,null,null,null,null,"",0,0,""]
["",null,null,null,null,null,null,null,null,null,null,"",0,0,""]
["",null,null,null,null,null,null,null,null,null,null,"",0,0,""]
["",null,null,null,null,null,null,null,null,null,null,"",0,0,""]
["",null,null,null,null,null,null,null,null,null,null,"",0,0,""]
["",null,null,null,null,null,null,null,null,null,null,"",0,0,""]
["",null,null,null,null,null,null,null,null,null,null,"",0,0,""]
["",null,null,null,null,null,null,null,null,null,null,"",0,0,""]
["",null,null,null,null,null,null,null,null,null,null,"",0,0,""]
["",null,null,null,null,null,null,null,null,null,null,"",0,0,""]
["",null,null,null,null,null,null,null,null,null,null,"",0,0,""]
["",null,null,null,null,null,null,null,null,null,null,"",0,0,""]
["",null,null,null,null,null,null,null,null,null,null,"",0,0,""]
["",null,null,null,null,null,null,null,null,null,null,"",0,0,""]
["",null,null,null,null,null,null,null,null,null,null,"",0,0,""]
["",null,null,null,null,null,null,null,null,null,null,"",0,0,""]
["",null,null,null,null,null,null,null,null,null,null,{"$f":"UPPER(IF(K10935<>0,valuta,\"\"))","v":""},0,0,""]
["",null,null,null,null,null,null,null,null,null,null,"",0,0,""]
["",null,null,null,null,null,null,null,null,null,null,"",0,0,""]
["",null,null,null,null,null,null,null,null,null,null,"",0,0,""]
["",null,null,null,null,null,null,null,null,null,null,"",0,0,""]
["",null,null,null,null,null,null,null,null,null,null,"",0,0,""]
["",null,null,null,null,null,null,null,null,null,null,"",0,0,""]
["",null,null,null,null,null,null,null,null,null,null,"",0,0,""]
["",null,null,null,null,null,null,null,null,null,null,"",0,0,""]
["",null,null,null,null,null,null,null,null,null,null,"",0,0,""]
["",null,null,null,null,null,null,null,null,null,null,"",0,0,""]
["",null,null,null,null,null,null,null,null,null,null,"",0,0,""]
["",null,null,null,null,null,null,null,null,null,null,"",0,0,""]
["",null,null,null,null,null,null,null,null,null,null,"",0,0,""]
["",null,null,null,null,null,null,null,null,null,null,"",0,0,""]
["",null,null,null,null,null,null,null,null,null,null,"",0,0,""]
["",null,null,null,null,null,null,null,null,null,null,"",0,0,""]
["",null,null,null,null,null,null,null,null,null,null,"",0,0,""]
["",null,null,null,null,null,null,null,null,null,null,"",0,0,""]
["",null,null,null,null,null,null,null,null,null,null,"",0,0,""]
["",null,null,null,null,null,null,null,null,null,null,"",0,0,""]
["",null,null,null,null,null,null,null,null,null,null,"",0,0,""]
["",null,null,null,null,null,null,null,null,null,null,"",0,0,""]
["",null,null,null,null,null,null,null,null,null,null,"",0,0,""]
["",null,null,null,null,null,null,null,null,null,null,"",0,0,""]
["",null,null,null,null,null,null,null,null,null,null,"",0,0,""]
["",null,null,null,null,null,null,null,null,null,null,"",0,0,""]
["",null,null,null,null,null,null,null,null,null,null,"",0,0,""]
["",null,null,null,null,null,null,null,null,null,null,"",0,0,""]
["",null,null,null,null,null,null,null,null,null,null,"",0,0,""]
["",null,null,null,null,null,null,null,null,null,null,"",0,0,""]
["",null,null,null,null,null,null,null,null,null,null,"",0,0,""]
["",null,null,null,null,null,null,null,null,null,null,"",0,0,""]
["",null,null,null,null,null,null,null,null,null,null,"",0,0,""]
["",null,null,null,null,null,null,null,null,null,null,"",0,0,""]
["",null,null,null,null,null,null,null,null,null,null,"",0,0,""]
["",null,null,null,null,null,null,null,null,null,null,"",0,0,""]
["",null,null,null,null,null,null,null,null,null,null,"",0,0,""]
["",null,null,null,null,null,null,null,null,null,null,"",0,0,""]
["",null,null,null,null,null,null,null,null,null,null,"",0,0,""]
["",null,null,null,null,null,null,null,null,null,null,"",0,0,""]
["",null,null,null,null,null,null,null,null,null,null,"",0,0,""]
["",null,null,null,null,null,null,null,null,null,null,"",0,0,""]
["",null,null,null,null,null,null,null,null,null,null,"",0,0,""]
["",null,null,null,null,null,null,null,null,null,null,"",0,0,""]
["",null,null,null,null,null,null,null,null,null,null,"",0,0,""]
["",null,null,null,null,null,null,null,null,null,null,"",0,0,""]
["",null,null,null,null,null,null,null,null,null,null,"",0,0,""]
["",null,null,null,null,null,null,null,null,null,null,"",0,0,""]
["",null,null,null,null,null,null,null,null,null,null,"",0,0,""]
["",null,null,null,null,null,null,null,null,null,null,"",0,0,""]
["",null,null,null,null,null,null,null,null,null,null,"",0,0,""]
["",null,null,null,null,null,null,null,null,null,null,"",0,0,""]
["",null,null,null,null,null,null,null,null,null,null,"",0,0,""]
["",null,null,null,null,null,null,null,null,null,null,"",0,0,""]
["",null,null,null,null,null,null,null,null,null,null,"",0,0,""]
["",null,null,null,null,null,null,null,null,null,null,"",0,0,""]
["",null,null,null,null,null,null,null,null,null,null,"",0,0,""]
["",null,null,null,null,null,null,null,null,null,null,"",0,0,""]
["",null,null,null,null,null,null,null,null,null,null,"",0,0,""]
["",null,null,null,null,null,null,null,null,null,null,"",0,0,""]
["",null,null,null,null,null,null,null,null,null,null,"",0,0,""]
["",null,null,null,null,null,null,null,null,null,null,"",0,0,""]
["",null,null,null,null,null,null,null,null,null,null,"",0,0,""]
["",null,null,null,null,null,null,null,null,null,null,"",0,0,""]
["",null,null,null,null,null,null,null,null,null,null,"",0,0,""]
["",null,null,null,null,null,null,null,null,null,null,"",0,0,""]
[{"$f":"IF(AND(K13072<>0,$I$8=0,$I$9=\"OK \"),\"update_data\",\"\")","v":""},null,null,null,null,null,null,null,null,null,null,"",{"$f":"ROUND(K13072,2)","v":0},{"$f":"ROUND(K13072,2)","v":0},{"$f":"IF(AND(C13072=\"\",K13072<>0),\"Kombination INST/Proj felaktig\",IF(OR(C13072=LEFT(E13072,2),E13072=\"\"),\"\",\"Kombination INST/Proj felaktig\"))","v":""}]
["",null,null,null,null,null,null,null,null,null,null,"",0,0,""]
["",null,null,null,null,null,null,null,null,null,null,"",0,0,""]
["",null,null,null,null,null,null,null,null,null,null,"",0,0,""]
["",null,null,null,null,null,null,null,null,null,null,"",0,0,""]
["",null,null,null,null,null,null,null,null,null,null,"",0,0,""]
["",null,null,null,null,null,null,null,null,null,null,"",0,0,""]
["",null,null,null,null,null,null,null,null,null,null,"",0,0,""]
["",null,null,null,null,null,null,null,null,null,null,"",0,0,""]
["",null,null,null,null,null,null,null,null,null,null,"",0,0,""]
["",null,null,null,null,null,null,null,null,null,null,"",0,0,""]
["",null,null,null,null,null,null,null,null,null,null,"",0,0,""]
["",null,null,null,null,null,null,null,null,null,null,"",0,0,""]
["",null,null,null,null,null,null,null,null,null,null,"",0,0,""]
["",null,null,null,null,null,null,null,null,null,null,"",0,0,""]
["",null,null,null,null,null,null,null,null,null,null,"",0,0,""]
["",null,null,null,null,null,null,null,null,null,null,"",0,0,""]
["",null,null,null,null,null,null,null,null,null,null,"",0,0,""]
["",null,null,null,null,null,null,null,null,null,null,"",0,0,""]
["",null,null,null,null,null,null,null,null,null,null,"",0,0,""]
["",null,null,null,null,null,null,null,null,null,null,"",0,0,""]
["",null,null,null,null,null,null,null,null,null,null,"",0,0,""]
["",null,null,null,null,null,null,null,null,null,null,"",0,0,""]
["",null,null,null,null,null,null,null,null,null,null,"",0,0,""]
["",null,null,null,null,null,null,null,null,null,null,"",0,0,""]
["",null,null,null,null,null,null,null,null,null,null,"",0,0,""]
["",null,null,null,null,null,null,null,null,null,null,"",0,0,""]
["",null,null,null,null,null,null,null,null,null,null,"",0,0,""]
["",null,null,null,null,null,null,null,null,null,null,"",0,0,""]
["",null,null,null,null,null,null,null,null,null,null,"",0,0,""]
[{"$f":"IF(AND(K14032<>0,$I$8=0,$I$9=\"OK \"),\"update_data\",\"\")","v":""},null,null,null,null,null,null,null,null,null,null,"",{"$f":"ROUND(K14032,2)","v":0},{"$f":"ROUND(K14032,2)","v":0},{"$f":"IF(AND(C14032=\"\",K14032<>0),\"Kombination INST/Proj felaktig\",IF(OR(C14032=LEFT(E14032,2),E14032=\"\"),\"\",\"Kombination INST/Proj felaktig\"))","v":""}]
["",null,null,null,null,null,null,null,null,null,null,"",0,0,""]
["",null,null,null,null,null,null,null,null,null,null,"",0,0,""]
["",null,null,null,null,null,null,null,null,null,null,"",0,0,""]
["",null,null,null,null,null,null,null,null,null,null,"",0,0,""]
["",null,null,null,null,null,null,null,null,null,null,"",0,0,""]
["",null,null,null,null,null,null,null,null,null,null,"",0,0,""]
["",null,null,null,null,null,null,null,null,null,null,"",0,0,""]
["",null,null,null,null,null,null,null,null,null,null,"",0,0,""]
["",null,null,null,null,null,null,null,null,null,null,"",0,0,""]
["",null,null,null,null,null,null,null,null,null,null,"",0,0,""]
["",null,null,null,null,null,null,null,null,null,null,"",0,0,""]
["",null,null,null,null,null,null,null,null,null,null,"",0,0,""]
["",null,null,null,null,null,null,null,null,null,null,"",0,0,""]
["",null,null,null,null,null,null,null,null,null,null,"",0,0,""]
["",null,null,null,null,null,null,null,null,null,null,"",0,0,""]
["",null,null,null,null,null,null,null,null,null,null,"",0,0,""]
["",null,null,null,null,null,null,null,null,null,null,"",0,0,""]
["",null,null,null,null,null,null,null,null,null,null,"",0,0,""]
["",null,null,null,null,null,null,null,null,null,null,"",0,0,""]
["",null,null,null,null,null,null,null,null,null,null,"",0,0,""]
["",null,null,null,null,null,null,null,null,null,null,{"$f":"UPPER(IF(K14711<>0,valuta,\"\"))","v":""},0,0,""]
["",null,null,null,null,null,null,null,null,null,null,"",0,0,""]
["",null,null,null,null,null,null,null,null,null,null,"",0,0,""]
["",null,null,null,null,null,null,null,null,null,null,"",0,0,""]
["",null,null,null,null,null,null,null,null,null,null,"",0,0,""]
["",null,null,null,null,null,null,null,null,null,null,"",0,0,""]
["",null,null,null,null,null,null,null,null,null,null,"",0,0,""]
["",null,null,null,null,null,null,null,null,null,null,"",0,0,""]
["",null,null,null,null,null,null,null,null,null,null,"",0,0,""]
["",null,null,null,null,null,null,null,null,null,null,"",0,0,""]
["",null,null,null,null,null,null,null,null,null,null,"",0,0,""]
["",null,null,null,null,null,null,null,null,null,null,"",0,0,""]
["",null,null,null,null,null,null,null,null,null,null,"",0,0,""]
["",null,null,null,null,null,null,null,null,null,null,"",0,0,""]
["",null,null,null,null,null,null,null,null,null,null,"",0,0,""]
["",null,null,null,null,null,null,null,null,null,null,"",0,0,""]
["",null,null,null,null,null,null,null,null,null,null,"",0,0,""]
["",null,null,null,null,null,null,null,null,null,null,"",0,0,""]
["",null,null,null,null,null,null,null,null,null,null,"",0,0,""]
["",null,null,null,null,null,null,null,null,null,null,"",0,0,""]
["",null,null,null,null,null,null,null,null,null,null,"",0,0,""]
["",null,null,null,null,null,null,null,null,null,null,"",0,0,""]
["",null,null,null,null,null,null,null,null,null,null,"",0,0,""]
["",null,null,null,null,null,null,null,null,null,null,"",0,0,""]
["",null,null,null,null,null,null,null,null,null,null,"",0,0,""]
["",null,null,null,null,null,null,null,null,null,null,"",0,0,""]
["",null,null,null,null,null,null,null,null,null,null,"",0,0,""]
["",null,null,null,null,null,null,null,null,null,null,"",0,0,""]
["",null,null,null,null,null,null,null,null,null,null,"",0,0,""]
["",null,null,null,null,null,null,null,null,null,null,"",0,0,""]
["",null,null,null,null,null,null,null,null,null,null,"",0,0,""]
["",null,null,null,null,null,null,null,null,null,null,"",0,0,""]
["",null,null,null,null,null,null,null,null,null,null,"",0,0,""]
["",null,null,null,null,null,null,null,null,null,null,"",0,0,""]
["",null,null,null,null,null,null,null,null,null,null,"",0,0,""]
["",null,null,null,null,null,null,null,null,null,null,"",0,0,""]
["",null,null,null,null,null,null,null,null,null,null,"",0,0,""]
["",null,null,null,null,null,null,null,null,null,null,"",0,0,""]
["",null,null,null,null,null,null,null,null,null,null,"",0,0,""]
["",null,null,null,null,null,null,null,null,null,null,"",0,0,""]
["",null,null,null,null,null,null,null,null,null,null,"",0,0,""]
["",null,null,null,null,null,null,null,null,null,null,"",0,0,""]
["",null,null,null,null,null,null,null,null,null,null,"",0,0,""]
["",null,null,null,null,null,null,null,null,null,null,"",0,0,""]
["",null,null,null,null,null,null,null,null,null,null,"",0,0,""]
["",null,null,null,null,null,null,null,null,null,null,"",0,0,""]
["",null,null,null,null,null,null,null,null,null,null,"",0,0,""]
["",null,null,null,null,null,null,null,null,null,null,"",0,0,""]
["",null,null,null,null,null,null,null,null,null,null,"",0,0,""]
["",null,null,null,null,null,null,null,null,null,null,"",0,0,""]
["",null,null,null,null,null,null,null,null,null,null,"",0,0,""]
["",null,null,null,null,null,null,null,null,null,null,"",0,0,""]
["",null,null,null,null,null,null,null,null,null,null,"",0,0,""]
["",null,null,null,null,null,null,null,null,null,null,"",0,0,""]
["",null,null,null,null,null,null,null,null,null,null,"",0,0,""]
["",null,null,null,null,null,null,null,null,null,null,"",0,0,""]
["",null,null,null,null,null,null,null,null,null,null,"",0,0,""]
["",null,null,null,null,null,null,null,null,null,null,"",0,0,""]
["",null,null,null,null,null,null,null,null,null,null,"",0,0,""]
["",null,null,null,null,null,null,null,null,null,null,"",0,0,""]
["",null,null,null,null,null,null,null,null,null,null,"",0,0,""]
["",null,null,null,null,null,null,null,null,null,null,"",0,0,""]
["",null,null,null,null,null,null,null,null,null,null,"",0,0,""]
["",null,null,null,null,null,null,null,null,null,null,"",0,0,""]
["",null,null,null,null,null,null,null,null,null,null,"",0,0,""]
["",null,null,null,null,null,null,null,null,null,null,"",0,0,""]
["",null,null,null,null,null,null,null,null,null,null,"",0,0,""]
["",null,null,null,null,null,null,null,null,null,null,"",0,0,""]
["",null,null,null,null,null,null,null,null,null,null,"",0,0,""]
["",null,null,null,null,null,null,null,null,null,null,"",0,0,""]
["",null,null,null,null,null,null,null,null,null,null,"",0,0,""]
["",null,null,null,null,null,null,null,null,null,null,"",0,0,""]
["",null,null,null,null,null,null,null,null,null,null,"",0,0,""]
["",null,null,null,null,null,null,null,null,null,null,"",0,0,""]
["",null,null,null,null,null,null,null,null,null,null,"",0,0,""]
["",null,null,null,null,null,null,null,null,null,null,"",0,0,""]
["",null,null,null,null,null,null,null,null,null,null,"",0,0,""]
["",null,null,null,null,null,null,null,null,null,null,"",0,0,""]
["",null,null,null,null,null,null,null,null,null,null,"",0,0,""]
["",null,null,null,null,null,null,null,null,null,null,"",0,0,""]
["",null,null,null,null,null,null,null,null,null,null,"",0,0,""]
["",null,null,null,null,null,null,null,null,null,null,"",0,0,""]
[{"$f":"IF(AND(K17360<>0,$I$8=0,$I$9=\"OK \"),\"update_data\",\"\")","v":""},null,null,null,null,null,null,null,null,null,null,"",{"$f":"ROUND(K17360,2)","v":0},{"$f":"ROUND(K17360,2)","v":0},{"$f":"IF(AND(C17360=\"\",K17360<>0),\"Kombination INST/Proj felaktig\",IF(OR(C17360=LEFT(E17360,2),E17360=\"\"),\"\",\"Kombination INST/Proj felaktig\"))","v":""}]
["",null,null,null,null,null,null,null,null,null,null,"",0,0,""]
["",null,null,null,null,null,null,null,null,null,null,"",0,0,""]
["",null,null,null,null,null,null,null,null,null,null,"",0,0,""]
["",null,null,null,null,null,null,null,null,null,null,"",0,0,""]
["",null,null,null,null,null,null,null,null,null,null,"",0,0,""]
["",null,null,null,null,null,null,null,null,null,null,"",0,0,""]
["",null,null,null,null,null,null,null,null,null,null,"",0,0,""]
["",null,null,null,null,null,null,null,null,null,null,"",0,0,""]
["",null,null,null,null,null,null,null,null,null,null,"",0,0,""]
["",null,null,null,null,null,null,null,null,null,null,"",0,0,""]
["",null,null,null,null,null,null,null,null,null,null,"",0,0,""]
["",null,null,null,null,null,null,null,null,null,null,"",0,0,""]
["",null,null,null,null,null,null,null,null,null,null,"",0,0,""]
["",null,null,null,null,null,null,null,null,null,null,"",0,0,""]
["",null,null,null,null,null,null,null,null,null,null,"",0,0,""]
["",null,null,null,null,null,null,null,null,null,null,"",0,0,""]
["",null,null,null,null,null,null,null,null,null,null,"",0,0,""]
["",null,null,null,null,null,null,null,null,null,null,"",0,0,""]
["",null,null,null,null,null,null,null,null,null,null,"",0,0,""]
["",null,null,null,null,null,null,null,null,null,null,"",0,0,""]
["",null,null,null,null,null,null,null,null,null,null,{"$f":"UPPER(IF(K18039<>0,valuta,\"\"))","v":""},0,0,""]
["",null,null,null,null,null,null,null,null,null,null,"",0,0,""]
["",null,null,null,null,null,null,null,null,null,null,"",0,0,""]
["",null,null,null,null,null,null,null,null,null,null,"",0,0,""]
["",null,null,null,null,null,null,null,null,null,null,"",0,0,""]
["",null,null,null,null,null,null,null,null,null,null,"",0,0,""]
["",null,null,null,null,null,null,null,null,null,null,"",0,0,""]
["",null,null,null,null,null,null,null,null,null,null,"",0,0,""]
["",null,null,null,null,null,null,null,null,null,null,"",0,0,""]
["",null,null,null,null,null,null,null,null,null,null,"",0,0,""]
["",null,null,null,null,null,null,null,null,null,null,"",0,0,""]
["",null,null,null,null,null,null,null,null,null,null,"",0,0,""]
["",null,null,null,null,null,null,null,null,null,null,"",0,0,""]
["",null,null,null,null,null,null,null,null,null,null,"",0,0,""]
["",null,null,null,null,null,null,null,null,null,null,"",0,0,""]
["",null,null,null,null,null,null,null,null,null,null,"",0,0,""]
["",null,null,null,null,null,null,null,null,null,null,"",0,0,""]
["",null,null,null,null,null,null,null,null,null,null,"",0,0,""]
["",null,null,null,null,null,null,null,null,null,null,"",0,0,""]
["",null,null,null,null,null,null,null,null,null,null,"",0,0,""]
["",null,null,null,null,null,null,null,null,null,null,"",0,0,""]
["",null,null,null,null,null,null,null,null,null,null,"",0,0,""]
["",null,null,null,null,null,null,null,null,null,null,"",0,0,""]
["",null,null,null,null,null,null,null,null,null,null,"",0,0,""]
["",null,null,null,null,null,null,null,null,null,null,"",0,0,""]
["",null,null,null,null,null,null,null,null,null,null,"",0,0,""]
["",null,null,null,null,null,null,null,null,null,null,"",0,0,""]
["",null,null,null,null,null,null,null,null,null,null,"",0,0,""]
["",null,null,null,null,null,null,null,null,null,null,"",0,0,""]
["",null,null,null,null,null,null,null,null,null,null,"",0,0,""]
["",null,null,null,null,null,null,null,null,null,null,{"$f":"UPPER(IF(K18999<>0,valuta,\"\"))","v":""},0,0,""]
["",null,null,null,null,null,null,null,null,null,null,"",0,0,""]
["",null,null,null,null,null,null,null,null,null,null,"",0,0,""]
["",null,null,null,null,null,null,null,null,null,null,"",0,0,""]
["",null,null,null,null,null,null,null,null,null,null,"",0,0,""]
["",null,null,null,null,null,null,null,null,null,null,"",0,0,""]
["",null,null,null,null,null,null,null,null,null,null,"",0,0,""]
["",null,null,null,null,null,null,null,null,null,null,"",0,0,""]
["",null,null,null,null,null,null,null,null,null,null,"",0,0,""]
["",null,null,null,null,null,null,null,null,null,null,"",0,0,""]
["",null,null,null,null,null,null,null,null,null,null,"",0,0,""]
["",null,null,null,null,null,null,null,null,null,null,"",0,0,""]
["",null,null,null,null,null,null,null,null,null,null,"",0,0,""]
["",null,null,null,null,null,null,null,null,null,null,"",0,0,""]
["",null,null,null,null,null,null,null,null,null,null,"",0,0,""]
["",null,null,null,null,null,null,null,null,null,null,"",0,0,""]
["",null,null,null,null,null,null,null,null,null,null,"",0,0,""]
["",null,null,null,null,null,null,null,null,null,null,"",0,0,""]
["",null,null,null,null,null,null,null,null,null,null,"",0,0,""]
["",null,null,null,null,null,null,null,null,null,null,"",0,0,""]
["",null,null,null,null,null,null,null,null,null,null,"",0,0,""]
["",null,null,null,null,null,null,null,null,null,null,"",0,0,""]
["",null,null,null,null,null,null,null,null,null,null,"",0,0,""]
["",null,null,null,null,null,null,null,null,null,null,"",0,0,""]
["",null,null,null,null,null,null,null,null,null,null,"",0,0,""]
["",null,null,null,null,null,null,null,null,null,null,"",0,0,""]
["",null,null,null,null,null,null,null,null,null,null,"",0,0,""]
["",null,null,null,null,null,null,null,null,null,null,"",0,0,""]
["",null,null,null,null,null,null,null,null,null,null,"",0,0,""]
["",null,null,null,null,null,null,null,null,null,null,"",0,0,""]
["",null,null,null,null,null,null,null,null,null,null,"",0,0,""]
["",null,null,null,null,null,null,null,null,null,null,"",0,0,""]
["",null,null,null,null,null,null,null,null,null,null,"",0,0,""]
["",null,null,null,null,null,null,null,null,null,null,"",0,0,""]
["",null,null,null,null,null,null,null,null,null,null,"",0,0,""]
["",null,null,null,null,null,null,null,null,null,null,"",0,0,""]
["",null,null,null,null,null,null,null,null,null,null,"",0,0,""]
["",null,null,null,null,null,null,null,null,null,null,"",0,0,""]
["",null,null,null,null,null,null,null,null,null,null,"",0,0,""]
["",null,null,null,null,null,null,null,null,null,null,"",0,0,""]
["",null,null,null,null,null,null,null,null,null,null,"",0,0,""]
["",null,null,null,null,null,null,null,null,null,null,"",0,0,""]
["",null,null,null,null,null,null,null,null,null,null,"",0,0,""]
["",null,null,null,null,null,null,null,null,null,null,"",0,0,""]
["",null,null,null,null,null,null,null,null,null,null,"",0,0,""]
["",null,null,null,null,null,null,null,null,null,null,"",0,0,""]
["",null,null,null,null,null,null,null,null,null,null,"",0,0,""]
["",null,null,null,null,null,null,null,null,null,null,"",0,0,""]
["",null,null,null,null,null,null,null,null,null,null,"",0,0,""]
["",null,null,null,null,null,null,null,null,null,null,"",0,0,""]
["",null,null,null,null,null,null,null,null,null,null,"",0,0,""]
["",null,null,null,null,null,null,null,null,null,null,"",0,0,""]
["",null,null,null,null,null,null,null,null,null,null,"",0,0,""]
["",null,null,null,null,null,null,null,null,null,null,"",0,0,""]
["",null,null,null,null,null,null,null,null,null,null,"",0,0,""]
["",null,null,null,null,null,null,null,null,null,null,"",0,0,""]
["",null,null,null,null,null,null,null,null,null,null,"",0,0,""]
["",null,null,null,null,null,null,null,null,null,null,"",0,0,""]
["",null,null,null,null,null,null,null,null,null,null,"",0,0,""]
["",null,null,null,null,null,null,null,null,null,null,"",0,0,""]
["",null,null,null,null,null,null,null,null,null,null,"",0,0,""]
["",null,null,null,null,null,null,null,null,null,null,"",0,0,""]
["",null,null,null,null,null,null,null,null,null,null,"",0,0,""]
["",null,null,null,null,null,null,null,null,null,null,"",0,0,""]
["",null,null,null,null,null,null,null,null,null,null,"",0,0,""]
["",null,null,null,null,null,null,null,null,null,null,"",0,0,""]
["",null,null,null,null,null,null,null,null,null,null,"",0,0,""]
[{"$f":"IF(AND(K21136<>0,$I$8=0,$I$9=\"OK \"),\"update_data\",\"\")","v":""},null,null,null,null,null,null,null,null,null,null,"",{"$f":"ROUND(K21136,2)","v":0},{"$f":"ROUND(K21136,2)","v":0},{"$f":"IF(AND(C21136=\"\",K21136<>0),\"Kombination INST/Proj felaktig\",IF(OR(C21136=LEFT(E21136,2),E21136=\"\"),\"\",\"Kombination INST/Proj felaktig\"))","v":""}]
["",null,null,null,null,null,null,null,null,null,null,"",0,0,""]
["",null,null,null,null,null,null,null,null,null,null,"",0,0,""]
["",null,null,null,null,null,null,null,null,null,null,"",0,0,""]
["",null,null,null,null,null,null,null,null,null,null,"",0,0,""]
["",null,null,null,null,null,null,null,null,null,null,"",0,0,""]
["",null,null,null,null,null,null,null,null,null,null,"",0,0,""]
["",null,null,null,null,null,null,null,null,null,null,"",0,0,""]
["",null,null,null,null,null,null,null,null,null,null,"",0,0,""]
["",null,null,null,null,null,null,null,null,null,null,"",0,0,""]
["",null,null,null,null,null,null,null,null,null,null,"",0,0,""]
["",null,null,null,null,null,null,null,null,null,null,"",0,0,""]
["",null,null,null,null,null,null,null,null,null,null,"",0,0,""]
["",null,null,null,null,null,null,null,null,null,null,"",0,0,""]
["",null,null,null,null,null,null,null,null,null,null,"",0,0,""]
["",null,null,null,null,null,null,null,null,null,null,"",0,0,""]
["",null,null,null,null,null,null,null,null,null,null,"",0,0,""]
["",null,null,null,null,null,null,null,null,null,null,"",0,0,""]
["",null,null,null,null,null,null,null,null,null,null,"",0,0,""]
["",null,null,null,null,null,null,null,null,null,null,"",0,0,""]
["",null,null,null,null,null,null,null,null,null,null,"",0,0,""]
["",null,null,null,null,null,null,null,null,null,null,{"$f":"UPPER(IF(K21815<>0,valuta,\"\"))","v":""},0,0,""]
["",null,null,null,null,null,null,null,null,null,null,"",0,0,""]
["",null,null,null,null,null,null,null,null,null,null,"",0,0,""]
["",null,null,null,null,null,null,null,null,null,null,"",0,0,""]
["",null,null,null,null,null,null,null,null,null,null,"",0,0,""]
["",null,null,null,null,null,null,null,null,null,null,"",0,0,""]
["",null,null,null,null,null,null,null,null,null,null,"",0,0,""]
["",null,null,null,null,null,null,null,null,null,null,"",0,0,""]
["",null,null,null,null,null,null,null,null,null,null,"",0,0,""]
[{"$f":"IF(AND(K22096<>0,$I$8=0,$I$9=\"OK \"),\"update_data\",\"\")","v":""},null,null,null,null,null,null,null,null,null,null,"",{"$f":"ROUND(K22096,2)","v":0},{"$f":"ROUND(K22096,2)","v":0},{"$f":"IF(AND(C22096=\"\",K22096<>0),\"Kombination INST/Proj felaktig\",IF(OR(C22096=LEFT(E22096,2),E22096=\"\"),\"\",\"Kombination INST/Proj felaktig\"))","v":""}]
["",null,null,null,null,null,null,null,null,null,null,"",0,0,""]
["",null,null,null,null,null,null,null,null,null,null,"",0,0,""]
["",null,null,null,null,null,null,null,null,null,null,"",0,0,""]
["",null,null,null,null,null,null,null,null,null,null,"",0,0,""]
["",null,null,null,null,null,null,null,null,null,null,"",0,0,""]
["",null,null,null,null,null,null,null,null,null,null,"",0,0,""]
["",null,null,null,null,null,null,null,null,null,null,"",0,0,""]
["",null,null,null,null,null,null,null,null,null,null,"",0,0,""]
["",null,null,null,null,null,null,null,null,null,null,"",0,0,""]
["",null,null,null,null,null,null,null,null,null,null,"",0,0,""]
["",null,null,null,null,null,null,null,null,null,null,"",0,0,""]
["",null,null,null,null,null,null,null,null,null,null,"",0,0,""]
["",null,null,null,null,null,null,null,null,null,null,"",0,0,""]
["",null,null,null,null,null,null,null,null,null,null,"",0,0,""]
["",null,null,null,null,null,null,null,null,null,null,"",0,0,""]
["",null,null,null,null,null,null,null,null,null,null,"",0,0,""]
["",null,null,null,null,null,null,null,null,null,null,"",0,0,""]
["",null,null,null,null,null,null,null,null,null,null,"",0,0,""]
["",null,null,null,null,null,null,null,null,null,null,"",0,0,""]
["",null,null,null,null,null,null,null,null,null,null,"",0,0,""]
["",null,null,null,null,null,null,null,null,null,null,"",0,0,""]
["",null,null,null,null,null,null,null,null,null,null,"",0,0,""]
["",null,null,null,null,null,null,null,null,null,null,"",0,0,""]
["",null,null,null,null,null,null,null,null,null,null,"",0,0,""]
["",null,null,null,null,null,null,null,null,null,null,"",0,0,""]
["",null,null,null,null,null,null,null,null,null,null,"",0,0,""]
["",null,null,null,null,null,null,null,null,null,null,"",0,0,""]
["",null,null,null,null,null,null,null,null,null,null,"",0,0,""]
["",null,null,null,null,null,null,null,null,null,null,"",0,0,""]
["",null,null,null,null,null,null,null,null,null,null,"",0,0,""]
["",null,null,null,null,null,null,null,null,null,null,"",0,0,""]
["",null,null,null,null,null,null,null,null,null,null,"",0,0,""]
["",null,null,null,null,null,null,null,null,null,null,"",0,0,""]
["",null,null,null,null,null,null,null,null,null,null,{"$f":"UPPER(IF(K23189<>0,valuta,\"\"))","v":""},0,0,""]
["",null,null,null,null,null,null,null,null,null,null,"",0,0,""]
["",null,null,null,null,null,null,null,null,null,null,"",0,0,""]
["",null,null,null,null,null,null,null,null,null,null,"",0,0,""]
["",null,null,null,null,null,null,null,null,null,null,"",0,0,""]
["",null,null,null,null,null,null,null,null,null,null,"",0,0,""]
["",null,null,null,null,null,null,null,null,null,null,"",0,0,""]
["",null,null,null,null,null,null,null,null,null,null,"",0,0,""]
["",null,null,null,null,null,null,null,null,null,null,"",0,0,""]
["",null,null,null,null,null,null,null,null,null,null,"",0,0,""]
["",null,null,null,null,null,null,null,null,null,null,"",0,0,""]
["",null,null,null,null,null,null,null,null,null,null,"",0,0,""]
["",null,null,null,null,null,null,null,null,null,null,"",0,0,""]
["",null,null,null,null,null,null,null,null,null,null,"",0,0,""]
["",null,null,null,null,null,null,null,null,null,null,"",0,0,""]
["",null,null,null,null,null,null,null,null,null,null,"",0,0,""]
["",null,null,null,null,null,null,null,null,null,null,"",0,0,""]
["",null,null,null,null,null,null,null,null,null,null,"",0,0,""]
["",null,null,null,null,null,null,null,null,null,null,"",0,0,""]
["",null,null,null,null,null,null,null,null,null,null,"",0,0,""]
["",null,null,null,null,null,null,null,null,null,null,"",0,0,""]
["",null,null,null,null,null,null,null,null,null,null,"",0,0,""]
["",null,null,null,null,null,null,null,null,null,null,"",0,0,""]
["",null,null,null,null,null,null,null,null,null,null,"",0,0,""]
["",null,null,null,null,null,null,null,null,null,null,"",0,0,""]
["",null,null,null,null,null,null,null,null,null,null,"",0,0,""]
["",null,null,null,null,null,null,null,null,null,null,"",0,0,""]
["",null,null,null,null,null,null,null,null,null,null,"",0,0,""]
["",null,null,null,null,null,null,null,null,null,null,"",0,0,""]
["",null,null,null,null,null,null,null,null,null,null,"",0,0,""]
["",null,null,null,null,null,null,null,null,null,null,"",0,0,""]
["",null,null,null,null,null,null,null,null,null,null,"",0,0,""]
["",null,null,null,null,null,null,null,null,null,null,"",0,0,""]
["",null,null,null,null,null,null,null,null,null,null,"",0,0,""]
["",null,null,null,null,null,null,null,null,null,null,"",0,0,""]
["",null,null,null,null,null,null,null,null,null,null,"",0,0,""]
["",null,null,null,null,null,null,null,null,null,null,"",0,0,""]
["",null,null,null,null,null,null,null,null,null,null,"",0,0,""]
["",null,null,null,null,null,null,null,null,null,null,"",0,0,""]
["",null,null,null,null,null,null,null,null,null,null,"",0,0,""]
["",null,null,null,null,null,null,null,null,null,null,"",0,0,""]
["",null,null,null,null,null,null,null,null,null,null,"",0,0,""]
["",null,null,null,null,null,null,null,null,null,null,"",0,0,""]
["",null,null,null,null,null,null,null,null,null,null,"",0,0,""]
["",null,null,null,null,null,null,null,null,null,null,"",0,0,""]
["",null,null,null,null,null,null,null,null,null,null,"",0,0,""]
["",null,null,null,null,null,null,null,null,null,null,"",0,0,""]
["",null,null,null,null,null,null,null,null,null,null,"",0,0,""]
["",null,null,null,null,null,null,null,null,null,null,"",0,0,""]
["",null,null,null,null,null,null,null,null,null,null,"",0,0,""]
["",null,null,null,null,null,null,null,null,null,null,"",0,0,""]
["",null,null,null,null,null,null,null,null,null,null,"",0,0,""]
["",null,null,null,null,null,null,null,null,null,null,"",0,0,""]
["",null,null,null,null,null,null,null,null,null,null,"",0,0,""]
[{"$f":"IF(AND(K24912<>0,$I$8=0,$I$9=\"OK \"),\"update_data\",\"\")","v":""},null,null,null,null,null,null,null,null,null,null,"",{"$f":"ROUND(K24912,2)","v":0},{"$f":"ROUND(K24912,2)","v":0},{"$f":"IF(AND(C24912=\"\",K24912<>0),\"Kombination INST/Proj felaktig\",IF(OR(C24912=LEFT(E24912,2),E24912=\"\"),\"\",\"Kombination INST/Proj felaktig\"))","v":""}]
["",null,null,null,null,null,null,null,null,null,null,"",0,0,""]
["",null,null,null,null,null,null,null,null,null,null,"",0,0,""]
["",null,null,null,null,null,null,null,null,null,null,"",0,0,""]
["",null,null,null,null,null,null,null,null,null,null,"",0,0,""]
["",null,null,null,null,null,null,null,null,null,null,"",0,0,""]
["",null,null,null,null,null,null,null,null,null,null,"",0,0,""]
["",null,null,null,null,null,null,null,null,null,null,"",0,0,""]
["",null,null,null,null,null,null,null,null,null,null,"",0,0,""]
["",null,null,null,null,null,null,null,null,null,null,"",0,0,""]
["",null,null,null,null,null,null,null,null,null,null,"",0,0,""]
["",null,null,null,null,null,null,null,null,null,null,"",0,0,""]
["",null,null,null,null,null,null,null,null,null,null,"",0,0,""]
["",null,null,null,null,null,null,null,null,null,null,"",0,0,""]
["",null,null,null,null,null,null,null,null,null,null,"",0,0,""]
["",null,null,null,null,null,null,null,null,null,null,"",0,0,""]
["",null,null,null,null,null,null,null,null,null,null,"",0,0,""]
["",null,null,null,null,null,null,null,null,null,null,"",0,0,""]
["",null,null,null,null,null,null,null,null,null,null,"",0,0,""]
["",null,null,null,null,null,null,null,null,null,null,"",0,0,""]
["",null,null,null,null,null,null,null,null,null,null,"",0,0,""]
["",null,null,null,null,null,null,null,null,null,null,"",0,0,""]
["",null,null,null,null,null,null,null,null,null,null,"",0,0,""]
["",null,null,null,null,null,null,null,null,null,null,"",0,0,""]
["",null,null,null,null,null,null,null,null,null,null,"",0,0,""]
["",null,null,null,null,null,null,null,null,null,null,"",0,0,""]
["",null,null,null,null,null,null,null,null,null,null,"",0,0,""]
["",null,null,null,null,null,null,null,null,null,null,"",0,0,""]
["",null,null,null,null,null,null,null,null,null,null,"",0,0,""]
["",null,null,null,null,null,null,null,null,null,null,"",0,0,""]
[{"$f":"IF(AND(K25872<>0,$I$8=0,$I$9=\"OK \"),\"update_data\",\"\")","v":""},null,null,null,null,null,null,null,null,null,null,"",{"$f":"ROUND(K25872,2)","v":0},{"$f":"ROUND(K25872,2)","v":0},{"$f":"IF(AND(C25872=\"\",K25872<>0),\"Kombination INST/Proj felaktig\",IF(OR(C25872=LEFT(E25872,2),E25872=\"\"),\"\",\"Kombination INST/Proj felaktig\"))","v":""}]
["",null,null,null,null,null,null,null,null,null,null,"",0,0,""]
["",null,null,null,null,null,null,null,null,null,null,"",0,0,""]
["",null,null,null,null,null,null,null,null,null,null,"",0,0,""]
["",null,null,null,null,null,null,null,null,null,null,{"$f":"UPPER(IF(K26005<>0,valuta,\"\"))","v":""},0,0,""]
["",null,null,null,null,null,null,null,null,null,null,"",0,0,""]
["",null,null,null,null,null,null,null,null,null,null,"",0,0,""]
["",null,null,null,null,null,null,null,null,null,null,"",0,0,""]
["",null,null,null,null,null,null,null,null,null,null,"",0,0,""]
["",null,null,null,null,null,null,null,null,null,null,"",0,0,""]
["",null,null,null,null,null,null,null,null,null,null,"",0,0,""]
["",null,null,null,null,null,null,null,null,null,null,"",0,0,""]
["",null,null,null,null,null,null,null,null,null,null,"",0,0,""]
["",null,null,null,null,null,null,null,null,null,null,"",0,0,""]
["",null,null,null,null,null,null,null,null,null,null,"",0,0,""]
["",null,null,null,null,null,null,null,null,null,null,"",0,0,""]
["",null,null,null,null,null,null,null,null,null,null,"",0,0,""]
["",null,null,null,null,null,null,null,null,null,null,"",0,0,""]
["",null,null,null,null,null,null,null,null,null,null,"",0,0,""]
["",null,null,null,null,null,null,null,null,null,null,"",0,0,""]
["",null,null,null,null,null,null,null,null,null,null,"",0,0,""]
["",null,null,null,null,null,null,null,null,null,null,"",0,0,""]
["",null,null,null,null,null,null,null,null,null,null,"",0,0,""]
["",null,null,null,null,null,null,null,null,null,null,"",0,0,""]
["",null,null,null,null,null,null,null,null,null,null,"",0,0,""]
["",null,null,null,null,null,null,null,null,null,null,"",0,0,""]
["",null,null,null,null,null,null,null,null,null,null,"",0,0,""]
["",null,null,null,null,null,null,null,null,null,null,"",0,0,""]
["",null,null,null,null,null,null,null,null,null,null,"",0,0,""]
["",null,null,null,null,null,null,null,null,null,null,"",0,0,""]
["",null,null,null,null,null,null,null,null,null,null,"",0,0,""]
["",null,null,null,null,null,null,null,null,null,null,"",0,0,""]
["",null,null,null,null,null,null,null,null,null,null,"",0,0,""]
["",null,null,null,null,null,null,null,null,null,null,"",0,0,""]
["",null,null,null,null,null,null,null,null,null,null,{"$f":"UPPER(IF(K26965<>0,valuta,\"\"))","v":""},0,0,""]
["",null,null,null,null,null,null,null,null,null,null,"",0,0,""]
["",null,null,null,null,null,null,null,null,null,null,"",0,0,""]
["",null,null,null,null,null,null,null,null,null,null,"",0,0,""]
["",null,null,null,null,null,null,null,null,null,null,"",0,0,""]
["",null,null,null,null,null,null,null,null,null,null,"",0,0,""]
["",null,null,null,null,null,null,null,null,null,null,"",0,0,""]
["",null,null,null,null,null,null,null,null,null,null,"",0,0,""]
["",null,null,null,null,null,null,null,null,null,null,"",0,0,""]
["",null,null,null,null,null,null,null,null,null,null,"",0,0,""]
["",null,null,null,null,null,null,null,null,null,null,"",0,0,""]
["",null,null,null,null,null,null,null,null,null,null,"",0,0,""]
["",null,null,null,null,null,null,null,null,null,null,"",0,0,""]
["",null,null,null,null,null,null,null,null,null,null,"",0,0,""]
["",null,null,null,null,null,null,null,null,null,null,"",0,0,""]
["",null,null,null,null,null,null,null,null,null,null,"",0,0,""]
["",null,null,null,null,null,null,null,null,null,null,"",0,0,""]
["",null,null,null,null,null,null,null,null,null,null,"",0,0,""]
["",null,null,null,null,null,null,null,null,null,null,"",0,0,""]
["",null,null,null,null,null,null,null,null,null,null,"",0,0,""]
["",null,null,null,null,null,null,null,null,null,null,"",0,0,""]
["",null,null,null,null,null,null,null,null,null,null,"",0,0,""]
["",null,null,null,null,null,null,null,null,null,null,"",0,0,""]
["",null,null,null,null,null,null,null,null,null,null,"",0,0,""]
["",null,null,null,null,null,null,null,null,null,null,"",0,0,""]
["",null,null,null,null,null,null,null,null,null,null,"",0,0,""]
["",null,null,null,null,null,null,null,null,null,null,"",0,0,""]
["",null,null,null,null,null,null,null,null,null,null,"",0,0,""]
["",null,null,null,null,null,null,null,null,null,null,"",0,0,""]
["",null,null,null,null,null,null,null,null,null,null,"",0,0,""]
["",null,null,null,null,null,null,null,null,null,null,"",0,0,""]
["",null,null,null,null,null,null,null,null,null,null,"",0,0,""]
["",null,null,null,null,null,null,null,null,null,null,"",0,0,""]
["",null,null,null,null,null,null,null,null,null,null,"",0,0,""]
["",null,null,null,null,null,null,null,null,null,null,"",0,0,""]
["",null,null,null,null,null,null,null,null,null,null,"",0,0,""]
["",null,null,null,null,null,null,null,null,null,null,"",0,0,""]
["",null,null,null,null,null,null,null,null,null,null,"",0,0,""]
["",null,null,null,null,null,null,null,null,null,null,"",0,0,""]
[{"$f":"IF(AND(K28240<>0,$I$8=0,$I$9=\"OK \"),\"update_data\",\"\")","v":""},null,null,null,null,null,null,null,null,null,null,"",{"$f":"ROUND(K28240,2)","v":0},{"$f":"ROUND(K28240,2)","v":0},{"$f":"IF(AND(C28240=\"\",K28240<>0),\"Kombination INST/Proj felaktig\",IF(OR(C28240=LEFT(E28240,2),E28240=\"\"),\"\",\"Kombination INST/Proj felaktig\"))","v":""}]
["",null,null,null,null,null,null,null,null,null,null,"",0,0,""]
["",null,null,null,null,null,null,null,null,null,null,"",0,0,""]
["",null,null,null,null,null,null,null,null,null,null,"",0,0,""]
["",null,null,null,null,null,null,null,null,null,null,"",0,0,""]
["",null,null,null,null,null,null,null,null,null,null,"",0,0,""]
["",null,null,null,null,null,null,null,null,null,null,"",0,0,""]
["",null,null,null,null,null,null,null,null,null,null,"",0,0,""]
["",null,null,null,null,null,null,null,null,null,null,"",0,0,""]
["",null,null,null,null,null,null,null,null,null,null,"",0,0,""]
["",null,null,null,null,null,null,null,null,null,null,"",0,0,""]
["",null,null,null,null,null,null,null,null,null,null,"",0,0,""]
["",null,null,null,null,null,null,null,null,null,null,"",0,0,""]
["",null,null,null,null,null,null,null,null,null,null,"",0,0,""]
["",null,null,null,null,null,null,null,null,null,null,"",0,0,""]
["",null,null,null,null,null,null,null,null,null,null,"",0,0,""]
["",null,null,null,null,null,null,null,null,null,null,"",0,0,""]
["",null,null,null,null,null,null,null,null,null,null,"",0,0,""]
["",null,null,null,null,null,null,null,null,null,null,"",0,0,""]
["",null,null,null,null,null,null,null,null,null,null,"",0,0,""]
["",null,null,null,null,null,null,null,null,null,null,"",0,0,""]
["",null,null,null,null,null,null,null,null,null,null,"",0,0,""]
["",null,null,null,null,null,null,null,null,null,null,"",0,0,""]
["",null,null,null,null,null,null,null,null,null,null,"",0,0,""]
["",null,null,null,null,null,null,null,null,null,null,"",0,0,""]
["",null,null,null,null,null,null,null,null,null,null,"",0,0,""]
["",null,null,null,null,null,null,null,null,null,null,"",0,0,""]
["",null,null,null,null,null,null,null,null,null,null,"",0,0,""]
["",null,null,null,null,null,null,null,null,null,null,"",0,0,""]
["",null,null,null,null,null,null,null,null,null,null,"",0,0,""]
[{"$f":"IF(AND(K29200<>0,$I$8=0,$I$9=\"OK \"),\"update_data\",\"\")","v":""},null,null,null,null,null,null,null,null,null,null,"",{"$f":"ROUND(K29200,2)","v":0},{"$f":"ROUND(K29200,2)","v":0},{"$f":"IF(AND(C29200=\"\",K29200<>0),\"Kombination INST/Proj felaktig\",IF(OR(C29200=LEFT(E29200,2),E29200=\"\"),\"\",\"Kombination INST/Proj felaktig\"))","v":""}]
["",null,null,null,null,null,null,null,null,null,null,"",0,0,""]
["",null,null,null,null,null,null,null,null,null,null,"",0,0,""]
["",null,null,null,null,null,null,null,null,null,null,"",0,0,""]
["",null,null,null,null,null,null,null,null,null,null,"",0,0,""]
["",null,null,null,null,null,null,null,null,null,null,"",0,0,""]
["",null,null,null,null,null,null,null,null,null,null,"",0,0,""]
["",null,null,null,null,null,null,null,null,null,null,"",0,0,""]
["",null,null,null,null,null,null,null,null,null,null,"",0,0,""]
["",null,null,null,null,null,null,null,null,null,null,"",0,0,""]
["",null,null,null,null,null,null,null,null,null,null,"",0,0,""]
["",null,null,null,null,null,null,null,null,null,null,"",0,0,""]
["",null,null,null,null,null,null,null,null,null,null,"",0,0,""]
["",null,null,null,null,null,null,null,null,null,null,"",0,0,""]
["",null,null,null,null,null,null,null,null,null,null,"",0,0,""]
["",null,null,null,null,null,null,null,null,null,null,"",0,0,""]
["",null,null,null,null,null,null,null,null,null,null,"",0,0,""]
["",null,null,null,null,null,null,null,null,null,null,"",0,0,""]
["",null,null,null,null,null,null,null,null,null,null,"",0,0,""]
["",null,null,null,null,null,null,null,null,null,null,"",0,0,""]
["",null,null,null,null,null,null,null,null,null,null,"",0,0,""]
["",null,null,null,null,null,null,null,null,null,null,"",0,0,""]
["",null,null,null,null,null,null,null,null,null,null,"",0,0,""]
["",null,null,null,null,null,null,null,null,null,null,"",0,0,""]
["",null,null,null,null,null,null,null,null,null,null,"",0,0,""]
["",null,null,null,null,null,null,null,null,null,null,"",0,0,""]
["",null,null,null,null,null,null,null,null,null,null,"",0,0,""]
["",null,null,null,null,null,null,null,null,null,null,"",0,0,""]
["",null,null,null,null,null,null,null,null,null,null,"",0,0,""]
["",null,null,null,null,null,null,null,null,null,null,"",0,0,""]
["",null,null,null,null,null,null,null,null,null,null,"",0,0,""]
["",null,null,null,null,null,null,null,null,null,null,"",0,0,""]
["",null,null,null,null,null,null,null,null,null,null,"",0,0,""]
["",null,null,null,null,null,null,null,null,null,null,"",0,0,""]
["",null,null,null,null,null,null,null,null,null,null,{"$f":"UPPER(IF(K30293<>0,valuta,\"\"))","v":""},0,0,""]
["",null,null,null,null,null,null,null,null,null,null,"",0,0,""]
["",null,null,null,null,null,null,null,null,null,null,"",0,0,""]
["",null,null,null,null,null,null,null,null,null,null,"",0,0,""]
["",null,null,null,null,null,null,null,null,null,null,"",0,0,""]
["",null,null,null,null,null,null,null,null,null,null,"",0,0,""]
["",null,null,null,null,null,null,null,null,null,null,"",0,0,""]
["",null,null,null,null,null,null,null,null,null,null,"",0,0,""]
["",null,null,null,null,null,null,null,null,null,null,"",0,0,""]
["",null,null,null,null,null,null,null,null,null,null,"",0,0,""]
["",null,null,null,null,null,null,null,null,null,null,"",0,0,""]
["",null,null,null,null,null,null,null,null,null,null,"",0,0,""]
["",null,null,null,null,null,null,null,null,null,null,"",0,0,""]
["",null,null,null,null,null,null,null,null,null,null,"",0,0,""]
["",null,null,null,null,null,null,null,null,null,null,"",0,0,""]
["",null,null,null,null,null,null,null,null,null,null,"",0,0,""]
["",null,null,null,null,null,null,null,null,null,null,"",0,0,""]
["",null,null,null,null,null,null,null,null,null,null,"",0,0,""]
["",null,null,null,null,null,null,null,null,null,null,"",0,0,""]
["",null,null,null,null,null,null,null,null,null,null,"",0,0,""]
["",null,null,null,null,null,null,null,null,null,null,"",0,0,""]
["",null,null,null,null,null,null,null,null,null,null,"",0,0,""]
["",null,null,null,null,null,null,null,null,null,null,"",0,0,""]
["",null,null,null,null,null,null,null,null,null,null,"",0,0,""]
["",null,null,null,null,null,null,null,null,null,null,"",0,0,""]
["",null,null,null,null,null,null,null,null,null,null,"",0,0,""]
["",null,null,null,null,null,null,null,null,null,null,"",0,0,""]
["",null,null,null,null,null,null,null,null,null,null,"",0,0,""]
["",null,null,null,null,null,null,null,null,null,null,"",0,0,""]
["",null,null,null,null,null,null,null,null,null,null,"",0,0,""]
["",null,null,null,null,null,null,null,null,null,null,"",0,0,""]
["",null,null,null,null,null,null,null,null,null,null,"",0,0,""]
["",null,null,null,null,null,null,null,null,null,null,"",0,0,""]
["",null,null,null,null,null,null,null,null,null,null,"",0,0,""]
["",null,null,null,null,null,null,null,null,null,null,"",0,0,""]
["",null,null,null,null,null,null,null,null,null,null,"",0,0,""]
["",null,null,null,null,null,null,null,null,null,null,"",0,0,""]
["",null,null,null,null,null,null,null,null,null,null,"",0,0,""]
["",null,null,null,null,null,null,null,null,null,null,"",0,0,""]
["",null,null,null,null,null,null,null,null,null,null,"",0,0,""]
["",null,null,null,null,null,null,null,null,null,null,"",0,0,""]
["",null,null,null,null,null,null,null,null,null,null,"",0,0,""]
["",null,null,null,null,null,null,null,null,null,null,{"$f":"UPPER(IF(K31637<>0,valuta,\"\"))","v":""},0,0,""]
["",null,null,null,null,null,null,null,null,null,null,"",0,0,""]
["",null,null,null,null,null,null,null,null,null,null,"",0,0,""]
["",null,null,null,null,null,null,null,null,null,null,"",0,0,""]
["",null,null,null,null,null,null,null,null,null,null,"",0,0,""]
["",null,null,null,null,null,null,null,null,null,null,"",0,0,""]
["",null,null,null,null,null,null,null,null,null,null,"",0,0,""]
["",null,null,null,null,null,null,null,null,null,null,"",0,0,""]
["",null,null,null,null,null,null,null,null,null,null,"",0,0,""]
["",null,null,null,null,null,null,null,null,null,null,"",0,0,""]
["",null,null,null,null,null,null,null,null,null,null,"",0,0,""]
["",null,null,null,null,null,null,null,null,null,null,"",0,0,""]
[{"$f":"IF(AND(K32016<>0,$I$8=0,$I$9=\"OK \"),\"update_data\",\"\")","v":""},null,null,null,null,null,null,null,null,null,null,"",{"$f":"ROUND(K32016,2)","v":0},{"$f":"ROUND(K32016,2)","v":0},{"$f":"IF(AND(C32016=\"\",K32016<>0),\"Kombination INST/Proj felaktig\",IF(OR(C32016=LEFT(E32016,2),E32016=\"\"),\"\",\"Kombination INST/Proj felaktig\"))","v":""}]
["",null,null,null,null,null,null,null,null,null,null,"",0,0,""]
["",null,null,null,null,null,null,null,null,null,null,"",0,0,""]
["",null,null,null,null,null,null,null,null,null,null,"",0,0,""]
["",null,null,null,null,null,null,null,null,null,null,"",0,0,""]
["",null,null,null,null,null,null,null,null,null,null,"",0,0,""]
["",null,null,null,null,null,null,null,null,null,null,"",0,0,""]
["",null,null,null,null,null,null,null,null,null,null,"",0,0,""]
["",null,null,null,null,null,null,null,null,null,null,"",0,0,""]
["",null,null,null,null,null,null,null,null,null,null,"",0,0,""]
["",null,null,null,null,null,null,null,null,null,null,"",0,0,""]
["",null,null,null,null,null,null,null,null,null,null,"",0,0,""]
["",null,null,null,null,null,null,null,null,null,null,"",0,0,""]
["",null,null,null,null,null,null,null,null,null,null,"",0,0,""]
["",null,null,null,null,null,null,null,null,null,null,"",0,0,""]
["",null,null,null,null,null,null,null,null,null,null,"",0,0,""]
["",null,null,null,null,null,null,null,null,null,null,"",0,0,""]
["",null,null,null,null,null,null,null,null,null,null,"",0,0,""]
["",null,null,null,null,null,null,null,null,null,null,"",0,0,""]
["",null,null,null,null,null,null,null,null,null,null,"",0,0,""]
["",null,null,null,null,null,null,null,null,null,null,"",0,0,""]
["",null,null,null,null,null,null,null,null,null,null,"",0,0,""]
["",null,null,null,null,null,null,null,null,null,null,"",0,0,""]
["",null,null,null,null,null,null,null,null,null,null,"",0,0,""]
["",null,null,null,null,null,null,null,null,null,null,"",0,0,""]
["",null,null,null,null,null,null,null,null,null,null,"",0,0,""]
["",null,null,null,null,null,null,null,null,null,null,"",0,0,""]
["",null,null,null,null,null,null,null,null,null,null,"",0,0,""]
["",null,null,null,null,null,null,null,null,null,null,"",0,0,""]
["",null,null,null,null,null,null,null,null,null,null,"",0,0,""]
[{"$f":"IF(AND(K32976<>0,$I$8=0,$I$9=\"OK \"),\"update_data\",\"\")","v":""},null,null,null,null,null,null,null,null,null,null,"",{"$f":"ROUND(K32976,2)","v":0},{"$f":"ROUND(K32976,2)","v":0},{"$f":"IF(AND(C32976=\"\",K32976<>0),\"Kombination INST/Proj felaktig\",IF(OR(C32976=LEFT(E32976,2),E32976=\"\"),\"\",\"Kombination INST/Proj felaktig\"))","v":""}]
["",null,null,null,null,null,null,null,null,null,null,"",0,0,""]
["",null,null,null,null,null,null,null,null,null,null,"",0,0,""]
["",null,null,null,null,null,null,null,null,null,null,"",0,0,""]
["",null,null,null,null,null,null,null,null,null,null,"",0,0,""]
["",null,null,null,null,null,null,null,null,null,null,"",0,0,""]
["",null,null,null,null,null,null,null,null,null,null,"",0,0,""]
["",null,null,null,null,null,null,null,null,null,null,"",0,0,""]
["",null,null,null,null,null,null,null,null,null,null,"",0,0,""]
["",null,null,null,null,null,null,null,null,null,null,"",0,0,""]
["",null,null,null,null,null,null,null,null,null,null,"",0,0,""]
["",null,null,null,null,null,null,null,null,null,null,"",0,0,""]
["",null,null,null,null,null,null,null,null,null,null,"",0,0,""]
["",null,null,null,null,null,null,null,null,null,null,"",0,0,""]
["",null,null,null,null,null,null,null,null,null,null,"",0,0,""]
["",null,null,null,null,null,null,null,null,null,null,"",0,0,""]
["",null,null,null,null,null,null,null,null,null,null,"",0,0,""]
["",null,null,null,null,null,null,null,null,null,null,"",0,0,""]
["",null,null,null,null,null,null,null,null,null,null,"",0,0,""]
["",null,null,null,null,null,null,null,null,null,null,"",0,0,""]
["",null,null,null,null,null,null,null,null,null,null,"",0,0,""]
["",null,null,null,null,null,null,null,null,null,null,"",0,0,""]
["",null,null,null,null,null,null,null,null,null,null,"",0,0,""]
["",null,null,null,null,null,null,null,null,null,null,"",0,0,""]
["",null,null,null,null,null,null,null,null,null,null,"",0,0,""]
["",null,null,null,null,null,null,null,null,null,null,"",0,0,""]
["",null,null,null,null,null,null,null,null,null,null,"",0,0,""]
["",null,null,null,null,null,null,null,null,null,null,"",0,0,""]
["",null,null,null,null,null,null,null,null,null,null,"",0,0,""]
["",null,null,null,null,null,null,null,null,null,null,"",0,0,""]
["",null,null,null,null,null,null,null,null,null,null,"",0,0,""]
["",null,null,null,null,null,null,null,null,null,null,"",0,0,""]
["",null,null,null,null,null,null,null,null,null,null,"",0,0,""]
["",null,null,null,null,null,null,null,null,null,null,"",0,0,""]
["",null,null,null,null,null,null,null,null,null,null,{"$f":"UPPER(IF(K34069<>0,valuta,\"\"))","v":""},0,0,""]
["",null,null,null,null,null,null,null,null,null,null,"",0,0,""]
["",null,null,null,null,null,null,null,null,null,null,"",0,0,""]
["",null,null,null,null,null,null,null,null,null,null,"",0,0,""]
["",null,null,null,null,null,null,null,null,null,null,"",0,0,""]
["",null,null,null,null,null,null,null,null,null,null,"",0,0,""]
["",null,null,null,null,null,null,null,null,null,null,"",0,0,""]
["",null,null,null,null,null,null,null,null,null,null,"",0,0,""]
["",null,null,null,null,null,null,null,null,null,null,"",0,0,""]
["",null,null,null,null,null,null,null,null,null,null,"",0,0,""]
["",null,null,null,null,null,null,null,null,null,null,"",0,0,""]
["",null,null,null,null,null,null,null,null,null,null,"",0,0,""]
["",null,null,null,null,null,null,null,null,null,null,"",0,0,""]
["",null,null,null,null,null,null,null,null,null,null,"",0,0,""]
["",null,null,null,null,null,null,null,null,null,null,"",0,0,""]
["",null,null,null,null,null,null,null,null,null,null,"",0,0,""]
["",null,null,null,null,null,null,null,null,null,null,"",0,0,""]
["",null,null,null,null,null,null,null,null,null,null,"",0,0,""]
["",null,null,null,null,null,null,null,null,null,null,"",0,0,""]
["",null,null,null,null,null,null,null,null,null,null,"",0,0,""]
["",null,null,null,null,null,null,null,null,null,null,"",0,0,""]
["",null,null,null,null,null,null,null,null,null,null,"",0,0,""]
["",null,null,null,null,null,null,null,null,null,null,"",0,0,""]
["",null,null,null,null,null,null,null,null,null,null,"",0,0,""]
["",null,null,null,null,null,null,null,null,null,null,"",0,0,""]
["",null,null,null,null,null,null,null,null,null,null,"",0,0,""]
["",null,null,null,null,null,null,null,null,null,null,"",0,0,""]
["",null,null,null,null,null,null,null,null,null,null,"",0,0,""]
["",null,null,null,null,null,null,null,null,null,null,"",0,0,""]
["",null,null,null,null,null,null,null,null,null,null,"",0,0,""]
["",null,null,null,null,null,null,null,null,null,null,"",0,0,""]
["",null,null,null,null,null,null,null,null,null,null,"",0,0,""]
["",null,null,null,null,null,null,null,null,null,null,"",0,0,""]
["",null,null,null,null,null,null,null,null,null,null,"",0,0,""]
["",null,null,null,null,null,null,null,null,null,null,"",0,0,""]
["",null,null,null,null,null,null,null,null,null,null,"",0,0,""]
["",null,null,null,null,null,null,null,null,null,null,"",0,0,""]
["",null,null,null,null,null,null,null,null,null,null,"",0,0,""]
["",null,null,null,null,null,null,null,null,null,null,"",0,0,""]
["",null,null,null,null,null,null,null,null,null,null,"",0,0,""]
["",null,null,null,null,null,null,null,null,null,null,"",0,0,""]
["",null,null,null,null,null,null,null,null,null,null,"",0,0,""]
["",null,null,null,null,null,null,null,null,null,null,"",0,0,""]
["",null,null,null,null,null,null,null,null,null,null,"",0,0,""]
["",null,null,null,null,null,null,null,null,null,null,"",0,0,""]
["",null,null,null,null,null,null,null,null,null,null,"",0,0,""]
["",null,null,null,null,null,null,null,null,null,null,"",0,0,""]
["",null,null,null,null,null,null,null,null,null,null,"",0,0,""]
["",null,null,null,null,null,null,null,null,null,null,"",0,0,""]
["",null,null,null,null,null,null,null,null,null,null,"",0,0,""]
["",null,null,null,null,null,null,null,null,null,null,"",0,0,""]
["",null,null,null,null,null,null,null,null,null,null,"",0,0,""]
["",null,null,null,null,null,null,null,null,null,null,"",0,0,""]
["",null,null,null,null,null,null,null,null,null,null,"",0,0,""]
["",null,null,null,null,null,null,null,null,null,null,"",0,0,""]
["",null,null,null,null,null,null,null,null,null,null,"",0,0,""]
["",null,null,null,null,null,null,null,null,null,null,"",0,0,""]
["",null,null,null,null,null,null,null,null,null,null,"",0,0,""]
["",null,null,null,null,null,null,null,null,null,null,"",0,0,""]
["",null,null,null,null,null,null,null,null,null,null,"",0,0,""]
["",null,null,null,null,null,null,null,null,null,null,"",0,0,""]
["",null,null,null,null,null,null,null,null,null,null,"",0,0,""]
["",null,null,null,null,null,null,null,null,null,null,"",0,0,""]
["",null,null,null,null,null,null,null,null,null,null,"",0,0,""]
["",null,null,null,null,null,null,null,null,null,null,"",0,0,""]
["",null,null,null,null,null,null,null,null,null,null,"",0,0,""]
["",null,null,null,null,null,null,null,null,null,null,"",0,0,""]
["",null,null,null,null,null,null,null,null,null,null,"",0,0,""]
["",null,null,null,null,null,null,null,null,null,null,"",0,0,""]
["",null,null,null,null,null,null,null,null,null,null,"",0,0,""]
["",null,null,null,null,null,null,null,null,null,null,"",0,0,""]
["",null,null,null,null,null,null,null,null,null,null,"",0,0,""]
["",null,null,null,null,null,null,null,null,null,null,"",0,0,""]
["",null,null,null,null,null,null,null,null,null,null,"",0,0,""]
["",null,null,null,null,null,null,null,null,null,null,"",0,0,""]
["",null,null,null,null,null,null,null,null,null,null,"",0,0,""]
["",null,null,null,null,null,null,null,null,null,null,"",0,0,""]
["",null,null,null,null,null,null,null,null,null,null,"",0,0,""]
["",null,null,null,null,null,null,null,null,null,null,"",0,0,""]
["",null,null,null,null,null,null,null,null,null,null,"",0,0,""]
["",null,null,null,null,null,null,null,null,null,null,"",0,0,""]
["",null,null,null,null,null,null,null,null,null,null,"",0,0,""]
["",null,null,null,null,null,null,null,null,null,null,"",0,0,""]
["",null,null,null,null,null,null,null,null,null,null,"",0,0,""]
[{"$f":"IF(AND(K36752<>0,$I$8=0,$I$9=\"OK \"),\"update_data\",\"\")","v":""},null,null,null,null,null,null,null,null,null,null,"",{"$f":"ROUND(K36752,2)","v":0},{"$f":"ROUND(K36752,2)","v":0},{"$f":"IF(AND(C36752=\"\",K36752<>0),\"Kombination INST/Proj felaktig\",IF(OR(C36752=LEFT(E36752,2),E36752=\"\"),\"\",\"Kombination INST/Proj felaktig\"))","v":""}]
["",null,null,null,null,null,null,null,null,null,null,"",0,0,""]
["",null,null,null,null,null,null,null,null,null,null,"",0,0,""]
["",null,null,null,null,null,null,null,null,null,null,"",0,0,""]
["",null,null,null,null,null,null,null,null,null,null,"",0,0,""]
["",null,null,null,null,null,null,null,null,null,null,"",0,0,""]
["",null,null,null,null,null,null,null,null,null,null,"",0,0,""]
["",null,null,null,null,null,null,null,null,null,null,"",0,0,""]
["",null,null,null,null,null,null,null,null,null,null,"",0,0,""]
["",null,null,null,null,null,null,null,null,null,null,"",0,0,""]
["",null,null,null,null,null,null,null,null,null,null,"",0,0,""]
["",null,null,null,null,null,null,null,null,null,null,"",0,0,""]
["",null,null,null,null,null,null,null,null,null,null,"",0,0,""]
["",null,null,null,null,null,null,null,null,null,null,"",0,0,""]
["",null,null,null,null,null,null,null,null,null,null,"",0,0,""]
["",null,null,null,null,null,null,null,null,null,null,"",0,0,""]
["",null,null,null,null,null,null,null,null,null,null,"",0,0,""]
["",null,null,null,null,null,null,null,null,null,null,"",0,0,""]
["",null,null,null,null,null,null,null,null,null,null,"",0,0,""]
["",null,null,null,null,null,null,null,null,null,null,"",0,0,""]
["",null,null,null,null,null,null,null,null,null,null,"",0,0,""]
["",null,null,null,null,null,null,null,null,null,null,"",0,0,""]
["",null,null,null,null,null,null,null,null,null,null,"",0,0,""]
["",null,null,null,null,null,null,null,null,null,null,"",0,0,""]
["",null,null,null,null,null,null,null,null,null,null,"",0,0,""]
["",null,null,null,null,null,null,null,null,null,null,"",0,0,""]
["",null,null,null,null,null,null,null,null,null,null,"",0,0,""]
["",null,null,null,null,null,null,null,null,null,null,"",0,0,""]
["",null,null,null,null,null,null,null,null,null,null,"",0,0,""]
["",null,null,null,null,null,null,null,null,null,null,"",0,0,""]
["",null,null,null,null,null,null,null,null,null,null,"",0,0,""]
["",null,null,null,null,null,null,null,null,null,null,"",0,0,""]
["",null,null,null,null,null,null,null,null,null,null,"",0,0,""]
["",null,null,null,null,null,null,null,null,null,null,"",0,0,""]
["",null,null,null,null,null,null,null,null,null,null,{"$f":"UPPER(IF(K37845<>0,valuta,\"\"))","v":""},0,0,""]
["",null,null,null,null,null,null,null,null,null,null,"",0,0,""]
["",null,null,null,null,null,null,null,null,null,null,"",0,0,""]
["",null,null,null,null,null,null,null,null,null,null,"",0,0,""]
["",null,null,null,null,null,null,null,null,null,null,"",0,0,""]
["",null,null,null,null,null,null,null,null,null,null,"",0,0,""]
["",null,null,null,null,null,null,null,null,null,null,"",0,0,""]
["",null,null,null,null,null,null,null,null,null,null,"",0,0,""]
["",null,null,null,null,null,null,null,null,null,null,"",0,0,""]
["",null,null,null,null,null,null,null,null,null,null,"",0,0,""]
["",null,null,null,null,null,null,null,null,null,null,"",0,0,""]
["",null,null,null,null,null,null,null,null,null,null,"",0,0,""]
["",null,null,null,null,null,null,null,null,null,null,"",0,0,""]
["",null,null,null,null,null,null,null,null,null,null,"",0,0,""]
["",null,null,null,null,null,null,null,null,null,null,"",0,0,""]
["",null,null,null,null,null,null,null,null,null,null,"",0,0,""]
["",null,null,null,null,null,null,null,null,null,null,"",0,0,""]
["",null,null,null,null,null,null,null,null,null,null,"",0,0,""]
["",null,null,null,null,null,null,null,null,null,null,"",0,0,""]
["",null,null,null,null,null,null,null,null,null,null,"",0,0,""]
["",null,null,null,null,null,null,null,null,null,null,"",0,0,""]
["",null,null,null,null,null,null,null,null,null,null,"",0,0,""]
["",null,null,null,null,null,null,null,null,null,null,"",0,0,""]
["",null,null,null,null,null,null,null,null,null,null,"",0,0,""]
["",null,null,null,null,null,null,null,null,null,null,"",0,0,""]
["",null,null,null,null,null,null,null,null,null,null,"",0,0,""]
["",null,null,null,null,null,null,null,null,null,null,"",0,0,""]
["",null,null,null,null,null,null,null,null,null,null,"",0,0,""]
["",null,null,null,null,null,null,null,null,null,null,"",0,0,""]
["",null,null,null,null,null,null,null,null,null,null,"",0,0,""]
["",null,null,null,null,null,null,null,null,null,null,"",0,0,""]
["",null,null,null,null,null,null,null,null,null,null,"",0,0,""]
["",null,null,null,null,null,null,null,null,null,null,"",0,0,""]
["",null,null,null,null,null,null,null,null,null,null,"",0,0,""]
["",null,null,null,null,null,null,null,null,null,null,"",0,0,""]
["",null,null,null,null,null,null,null,null,null,null,"",0,0,""]
["",null,null,null,null,null,null,null,null,null,null,"",0,0,""]
["",null,null,null,null,null,null,null,null,null,null,"",0,0,""]
["",null,null,null,null,null,null,null,null,null,null,"",0,0,""]
["",null,null,null,null,null,null,null,null,null,null,"",0,0,""]
["",null,null,null,null,null,null,null,null,null,null,"",0,0,""]
["",null,null,null,null,null,null,null,null,null,null,"",0,0,""]
["",null,null,null,null,null,null,null,null,null,null,"",0,0,""]
["",null,null,null,null,null,null,null,null,null,null,"",0,0,""]
["",null,null,null,null,null,null,null,null,null,null,"",0,0,""]
["",null,null,null,null,null,null,null,null,null,null,"",0,0,""]
["",null,null,null,null,null,null,null,null,null,null,"",0,0,""]
["",null,null,null,null,null,null,null,null,null,null,"",0,0,""]
["",null,null,null,null,null,null,null,null,null,null,"",0,0,""]
["",null,null,null,null,null,null,null,null,null,null,"",0,0,""]
["",null,null,null,null,null,null,null,null,null,null,"",0,0,""]
["",null,null,null,null,null,null,null,null,null,null,"",0,0,""]
["",null,null,null,null,null,null,null,null,null,null,"",0,0,""]
["",null,null,null,null,null,null,null,null,null,null,"",0,0,""]
["",null,null,null,null,null,null,null,null,null,null,"",0,0,""]
["",null,null,null,null,null,null,null,null,null,null,"",0,0,""]
["",null,null,null,null,null,null,null,null,null,null,"",0,0,""]
["",null,null,null,null,null,null,null,null,null,null,"",0,0,""]
["",null,null,null,null,null,null,null,null,null,null,"",0,0,""]
["",null,null,null,null,null,null,null,null,null,null,"",0,0,""]
["",null,null,null,null,null,null,null,null,null,null,"",0,0,""]
["",null,null,null,null,null,null,null,null,null,null,"",0,0,""]
["",null,null,null,null,null,null,null,null,null,null,"",0,0,""]
["",null,null,null,null,null,null,null,null,null,null,"",0,0,""]
["",null,null,null,null,null,null,null,null,null,null,"",0,0,""]
["",null,null,null,null,null,null,null,null,null,null,"",0,0,""]
["",null,null,null,null,null,null,null,null,null,null,"",0,0,""]
["",null,null,null,null,null,null,null,null,null,null,"",0,0,""]
["",null,null,null,null,null,null,null,null,null,null,"",0,0,""]
[{"$f":"IF(AND(K40080<>0,$I$8=0,$I$9=\"OK \"),\"update_data\",\"\")","v":""},null,null,null,null,null,null,null,null,null,null,"",{"$f":"ROUND(K40080,2)","v":0},{"$f":"ROUND(K40080,2)","v":0},{"$f":"IF(AND(C40080=\"\",K40080<>0),\"Kombination INST/Proj felaktig\",IF(OR(C40080=LEFT(E40080,2),E40080=\"\"),\"\",\"Kombination INST/Proj felaktig\"))","v":""}]
["",null,null,null,null,null,null,null,null,null,null,"",0,0,""]
["",null,null,null,null,null,null,null,null,null,null,"",0,0,""]
["",null,null,null,null,null,null,null,null,null,null,"",0,0,""]
["",null,null,null,null,null,null,null,null,null,null,"",0,0,""]
["",null,null,null,null,null,null,null,null,null,null,"",0,0,""]
["",null,null,null,null,null,null,null,null,null,null,"",0,0,""]
["",null,null,null,null,null,null,null,null,null,null,"",0,0,""]
["",null,null,null,null,null,null,null,null,null,null,"",0,0,""]
["",null,null,null,null,null,null,null,null,null,null,"",0,0,""]
["",null,null,null,null,null,null,null,null,null,null,"",0,0,""]
["",null,null,null,null,null,null,null,null,null,null,"",0,0,""]
["",null,null,null,null,null,null,null,null,null,null,"",0,0,""]
["",null,null,null,null,null,null,null,null,null,null,"",0,0,""]
["",null,null,null,null,null,null,null,null,null,null,"",0,0,""]
["",null,null,null,null,null,null,null,null,null,null,"",0,0,""]
["",null,null,null,null,null,null,null,null,null,null,"",0,0,""]
["",null,null,null,null,null,null,null,null,null,null,"",0,0,""]
["",null,null,null,null,null,null,null,null,null,null,"",0,0,""]
["",null,null,null,null,null,null,null,null,null,null,"",0,0,""]
["",null,null,null,null,null,null,null,null,null,null,"",0,0,""]
["",null,null,null,null,null,null,null,null,null,null,"",0,0,""]
["",null,null,null,null,null,null,null,null,null,null,"",0,0,""]
["",null,null,null,null,null,null,null,null,null,null,"",0,0,""]
["",null,null,null,null,null,null,null,null,null,null,"",0,0,""]
["",null,null,null,null,null,null,null,null,null,null,"",0,0,""]
["",null,null,null,null,null,null,null,null,null,null,"",0,0,""]
["",null,null,null,null,null,null,null,null,null,null,"",0,0,""]
["",null,null,null,null,null,null,null,null,null,null,"",0,0,""]
["",null,null,null,null,null,null,null,null,null,null,"",0,0,""]
[{"$f":"IF(AND(K41040<>0,$I$8=0,$I$9=\"OK \"),\"update_data\",\"\")","v":""},null,null,null,null,null,null,null,null,null,null,"",{"$f":"ROUND(K41040,2)","v":0},{"$f":"ROUND(K41040,2)","v":0},{"$f":"IF(AND(C41040=\"\",K41040<>0),\"Kombination INST/Proj felaktig\",IF(OR(C41040=LEFT(E41040,2),E41040=\"\"),\"\",\"Kombination INST/Proj felaktig\"))","v":""}]
["",null,null,null,null,null,null,null,null,null,null,"",0,0,""]
["",null,null,null,null,null,null,null,null,null,null,"",0,0,""]
["",null,null,null,null,null,null,null,null,null,null,"",0,0,""]
["",null,null,null,null,null,null,null,null,null,null,{"$f":"UPPER(IF(K41173<>0,valuta,\"\"))","v":""},0,0,""]
["",null,null,null,null,null,null,null,null,null,null,"",0,0,""]
["",null,null,null,null,null,null,null,null,null,null,"",0,0,""]
["",null,null,null,null,null,null,null,null,null,null,"",0,0,""]
["",null,null,null,null,null,null,null,null,null,null,"",0,0,""]
["",null,null,null,null,null,null,null,null,null,null,"",0,0,""]
["",null,null,null,null,null,null,null,null,null,null,"",0,0,""]
["",null,null,null,null,null,null,null,null,null,null,"",0,0,""]
["",null,null,null,null,null,null,null,null,null,null,"",0,0,""]
["",null,null,null,null,null,null,null,null,null,null,"",0,0,""]
["",null,null,null,null,null,null,null,null,null,null,"",0,0,""]
["",null,null,null,null,null,null,null,null,null,null,"",0,0,""]
["",null,null,null,null,null,null,null,null,null,null,"",0,0,""]
["",null,null,null,null,null,null,null,null,null,null,"",0,0,""]
["",null,null,null,null,null,null,null,null,null,null,"",0,0,""]
["",null,null,null,null,null,null,null,null,null,null,"",0,0,""]
["",null,null,null,null,null,null,null,null,null,null,"",0,0,""]
["",null,null,null,null,null,null,null,null,null,null,"",0,0,""]
["",null,null,null,null,null,null,null,null,null,null,"",0,0,""]
["",null,null,null,null,null,null,null,null,null,null,"",0,0,""]
["",null,null,null,null,null,null,null,null,null,null,"",0,0,""]
["",null,null,null,null,null,null,null,null,null,null,"",0,0,""]
["",null,null,null,null,null,null,null,null,null,null,"",0,0,""]
["",null,null,null,null,null,null,null,null,null,null,"",0,0,""]
["",null,null,null,null,null,null,null,null,null,null,"",0,0,""]
["",null,null,null,null,null,null,null,null,null,null,"",0,0,""]
["",null,null,null,null,null,null,null,null,null,null,"",0,0,""]
["",null,null,null,null,null,null,null,null,null,null,"",0,0,""]
["",null,null,null,null,null,null,null,null,null,null,"",0,0,""]
["",null,null,null,null,null,null,null,null,null,null,"",0,0,""]
["",null,null,null,null,null,null,null,null,null,null,{"$f":"UPPER(IF(K42133<>0,valuta,\"\"))","v":""},0,0,""]
["",null,null,null,null,null,null,null,null,null,null,"",0,0,""]
["",null,null,null,null,null,null,null,null,null,null,"",0,0,""]
["",null,null,null,null,null,null,null,null,null,null,"",0,0,""]
["",null,null,null,null,null,null,null,null,null,null,"",0,0,""]
["",null,null,null,null,null,null,null,null,null,null,"",0,0,""]
["",null,null,null,null,null,null,null,null,null,null,"",0,0,""]
["",null,null,null,null,null,null,null,null,null,null,"",0,0,""]
["",null,null,null,null,null,null,null,null,null,null,"",0,0,""]
["",null,null,null,null,null,null,null,null,null,null,"",0,0,""]
["",null,null,null,null,null,null,null,null,null,null,"",0,0,""]
["",null,null,null,null,null,null,null,null,null,null,"",0,0,""]
["",null,null,null,null,null,null,null,null,null,null,"",0,0,""]
["",null,null,null,null,null,null,null,null,null,null,"",0,0,""]
["",null,null,null,null,null,null,null,null,null,null,"",0,0,""]
["",null,null,null,null,null,null,null,null,null,null,"",0,0,""]
["",null,null,null,null,null,null,null,null,null,null,"",0,0,""]
["",null,null,null,null,null,null,null,null,null,null,"",0,0,""]
["",null,null,null,null,null,null,null,null,null,null,"",0,0,""]
["",null,null,null,null,null,null,null,null,null,null,"",0,0,""]
["",null,null,null,null,null,null,null,null,null,null,"",0,0,""]
["",null,null,null,null,null,null,null,null,null,null,"",0,0,""]
["",null,null,null,null,null,null,null,null,null,null,"",0,0,""]
["",null,null,null,null,null,null,null,null,null,null,"",0,0,""]
["",null,null,null,null,null,null,null,null,null,null,"",0,0,""]
["",null,null,null,null,null,null,null,null,null,null,"",0,0,""]
["",null,null,null,null,null,null,null,null,null,null,"",0,0,""]
["",null,null,null,null,null,null,null,null,null,null,"",0,0,""]
["",null,null,null,null,null,null,null,null,null,null,"",0,0,""]
["",null,null,null,null,null,null,null,null,null,null,"",0,0,""]
["",null,null,null,null,null,null,null,null,null,null,"",0,0,""]
["",null,null,null,null,null,null,null,null,null,null,"",0,0,""]
["",null,null,null,null,null,null,null,null,null,null,"",0,0,""]
["",null,null,null,null,null,null,null,null,null,null,"",0,0,""]
["",null,null,null,null,null,null,null,null,null,null,"",0,0,""]
["",null,null,null,null,null,null,null,null,null,null,"",0,0,""]
["",null,null,null,null,null,null,null,null,null,null,"",0,0,""]
["",null,null,null,null,null,null,null,null,null,null,"",0,0,""]
["",null,null,null,null,null,null,null,null,null,null,"",0,0,""]
["",null,null,null,null,null,null,null,null,null,null,"",0,0,""]
["",null,null,null,null,null,null,null,null,null,null,"",0,0,""]
["",null,null,null,null,null,null,null,null,null,null,"",0,0,""]
["",null,null,null,null,null,null,null,null,null,null,"",0,0,""]
["",null,null,null,null,null,null,null,null,null,null,"",0,0,""]
["",null,null,null,null,null,null,null,null,null,null,"",0,0,""]
["",null,null,null,null,null,null,null,null,null,null,"",0,0,""]
["",null,null,null,null,null,null,null,null,null,null,"",0,0,""]
["",null,null,null,null,null,null,null,null,null,null,"",0,0,""]
["",null,null,null,null,null,null,null,null,null,null,"",0,0,""]
["",null,null,null,null,null,null,null,null,null,null,"",0,0,""]
["",null,null,null,null,null,null,null,null,null,null,"",0,0,""]
["",null,null,null,null,null,null,null,null,null,null,"",0,0,""]
["",null,null,null,null,null,null,null,null,null,null,"",0,0,""]
["",null,null,null,null,null,null,null,null,null,null,"",0,0,""]
[{"$f":"IF(AND(K43856<>0,$I$8=0,$I$9=\"OK \"),\"update_data\",\"\")","v":""},null,null,null,null,null,null,null,null,null,null,"",{"$f":"ROUND(K43856,2)","v":0},{"$f":"ROUND(K43856,2)","v":0},{"$f":"IF(AND(C43856=\"\",K43856<>0),\"Kombination INST/Proj felaktig\",IF(OR(C43856=LEFT(E43856,2),E43856=\"\"),\"\",\"Kombination INST/Proj felaktig\"))","v":""}]
["",null,null,null,null,null,null,null,null,null,null,"",0,0,""]
["",null,null,null,null,null,null,null,null,null,null,"",0,0,""]
["",null,null,null,null,null,null,null,null,null,null,"",0,0,""]
["",null,null,null,null,null,null,null,null,null,null,"",0,0,""]
["",null,null,null,null,null,null,null,null,null,null,"",0,0,""]
["",null,null,null,null,null,null,null,null,null,null,"",0,0,""]
["",null,null,null,null,null,null,null,null,null,null,"",0,0,""]
["",null,null,null,null,null,null,null,null,null,null,"",0,0,""]
["",null,null,null,null,null,null,null,null,null,null,"",0,0,""]
["",null,null,null,null,null,null,null,null,null,null,"",0,0,""]
["",null,null,null,null,null,null,null,null,null,null,"",0,0,""]
["",null,null,null,null,null,null,null,null,null,null,"",0,0,""]
["",null,null,null,null,null,null,null,null,null,null,"",0,0,""]
["",null,null,null,null,null,null,null,null,null,null,"",0,0,""]
["",null,null,null,null,null,null,null,null,null,null,"",0,0,""]
["",null,null,null,null,null,null,null,null,null,null,"",0,0,""]
["",null,null,null,null,null,null,null,null,null,null,"",0,0,""]
["",null,null,null,null,null,null,null,null,null,null,"",0,0,""]
["",null,null,null,null,null,null,null,null,null,null,"",0,0,""]
["",null,null,null,null,null,null,null,null,null,null,"",0,0,""]
["",null,null,null,null,null,null,null,null,null,null,"",0,0,""]
["",null,null,null,null,null,null,null,null,null,null,"",0,0,""]
["",null,null,null,null,null,null,null,null,null,null,"",0,0,""]
["",null,null,null,null,null,null,null,null,null,null,"",0,0,""]
["",null,null,null,null,null,null,null,null,null,null,"",0,0,""]
["",null,null,null,null,null,null,null,null,null,null,"",0,0,""]
["",null,null,null,null,null,null,null,null,null,null,"",0,0,""]
["",null,null,null,null,null,null,null,null,null,null,"",0,0,""]
["",null,null,null,null,null,null,null,null,null,null,"",0,0,""]
[{"$f":"IF(AND(K44816<>0,$I$8=0,$I$9=\"OK \"),\"update_data\",\"\")","v":""},null,null,null,null,null,null,null,null,null,null,"",{"$f":"ROUND(K44816,2)","v":0},{"$f":"ROUND(K44816,2)","v":0},{"$f":"IF(AND(C44816=\"\",K44816<>0),\"Kombination INST/Proj felaktig\",IF(OR(C44816=LEFT(E44816,2),E44816=\"\"),\"\",\"Kombination INST/Proj felaktig\"))","v":""}]
["",null,null,null,null,null,null,null,null,null,null,"",0,0,""]
["",null,null,null,null,null,null,null,null,null,null,"",0,0,""]
["",null,null,null,null,null,null,null,null,null,null,"",0,0,""]
["",null,null,null,null,null,null,null,null,null,null,{"$f":"UPPER(IF(K44949<>0,valuta,\"\"))","v":""},0,0,""]
["",null,null,null,null,null,null,null,null,null,null,"",0,0,""]
["",null,null,null,null,null,null,null,null,null,null,"",0,0,""]
["",null,null,null,null,null,null,null,null,null,null,"",0,0,""]
["",null,null,null,null,null,null,null,null,null,null,"",0,0,""]
["",null,null,null,null,null,null,null,null,null,null,"",0,0,""]
["",null,null,null,null,null,null,null,null,null,null,"",0,0,""]
["",null,null,null,null,null,null,null,null,null,null,"",0,0,""]
["",null,null,null,null,null,null,null,null,null,null,"",0,0,""]
["",null,null,null,null,null,null,null,null,null,null,"",0,0,""]
["",null,null,null,null,null,null,null,null,null,null,"",0,0,""]
["",null,null,null,null,null,null,null,null,null,null,"",0,0,""]
["",null,null,null,null,null,null,null,null,null,null,"",0,0,""]
["",null,null,null,null,null,null,null,null,null,null,"",0,0,""]
["",null,null,null,null,null,null,null,null,null,null,"",0,0,""]
["",null,null,null,null,null,null,null,null,null,null,"",0,0,""]
["",null,null,null,null,null,null,null,null,null,null,"",0,0,""]
["",null,null,null,null,null,null,null,null,null,null,"",0,0,""]
["",null,null,null,null,null,null,null,null,null,null,"",0,0,""]
["",null,null,null,null,null,null,null,null,null,null,"",0,0,""]
["",null,null,null,null,null,null,null,null,null,null,"",0,0,""]
["",null,null,null,null,null,null,null,null,null,null,"",0,0,""]
[{"$f":"IF(AND(K45648<>0,$I$8=0,$I$9=\"OK \"),\"update_data\",\"\")","v":""},null,null,null,null,null,null,null,null,null,null,"",{"$f":"ROUND(K45648,2)","v":0},{"$f":"ROUND(K45648,2)","v":0},{"$f":"IF(AND(C45648=\"\",K45648<>0),\"Kombination INST/Proj felaktig\",IF(OR(C45648=LEFT(E45648,2),E45648=\"\"),\"\",\"Kombination INST/Proj felaktig\"))","v":""}]
["",null,null,null,null,null,null,null,null,null,null,"",0,0,""]
["",null,null,null,null,null,null,null,null,null,null,"",0,0,""]
["",null,null,null,null,null,null,null,null,null,null,"",0,0,""]
["",null,null,null,null,null,null,null,null,null,null,"",0,0,""]
["",null,null,null,null,null,null,null,null,null,null,"",0,0,""]
["",null,null,null,null,null,null,null,null,null,null,"",0,0,""]
["",null,null,null,null,null,null,null,null,null,null,"",0,0,""]
["",null,null,null,null,null,null,null,null,null,null,{"$f":"UPPER(IF(K45909<>0,valuta,\"\"))","v":""},0,0,""]
["",null,null,null,null,null,null,null,null,null,null,"",0,0,""]
["",null,null,null,null,null,null,null,null,null,null,"",0,0,""]
["",null,null,null,null,null,null,null,null,null,null,"",0,0,""]
["",null,null,null,null,null,null,null,null,null,null,"",0,0,""]
["",null,null,null,null,null,null,null,null,null,null,"",0,0,""]
["",null,null,null,null,null,null,null,null,null,null,"",0,0,""]
["",null,null,null,null,null,null,null,null,null,null,"",0,0,""]
["",null,null,null,null,null,null,null,null,null,null,"",0,0,""]
["",null,null,null,null,null,null,null,null,null,null,"",0,0,""]
["",null,null,null,null,null,null,null,null,null,null,"",0,0,""]
["",null,null,null,null,null,null,null,null,null,null,"",0,0,""]
["",null,null,null,null,null,null,null,null,null,null,"",0,0,""]
["",null,null,null,null,null,null,null,null,null,null,"",0,0,""]
["",null,null,null,null,null,null,null,null,null,null,"",0,0,""]
["",null,null,null,null,null,null,null,null,null,null,"",0,0,""]
["",null,null,null,null,null,null,null,null,null,null,"",0,0,""]
["",null,null,null,null,null,null,null,null,null,null,"",0,0,""]
["",null,null,null,null,null,null,null,null,null,null,"",0,0,""]
["",null,null,null,null,null,null,null,null,null,null,"",0,0,""]
["",null,null,null,null,null,null,null,null,null,null,"",0,0,""]
["",null,null,null,null,null,null,null,null,null,null,"",0,0,""]
["",null,null,null,null,null,null,null,null,null,null,"",0,0,""]
["",null,null,null,null,null,null,null,null,null,null,"",0,0,""]
["",null,null,null,null,null,null,null,null,null,null,"",0,0,""]
["",null,null,null,null,null,null,null,null,null,null,"",0,0,""]
["",null,null,null,null,null,null,null,null,null,null,"",0,0,""]
["",null,null,null,null,null,null,null,null,null,null,"",0,0,""]
["",null,null,null,null,null,null,null,null,null,null,"",0,0,""]
["",null,null,null,null,null,null,null,null,null,null,"",0,0,""]
["",null,null,null,null,null,null,null,null,null,null,{"$f":"UPPER(IF(K46870<>0,valuta,\"\"))","v":""},0,0,""]
["",null,null,null,null,null,null,null,null,null,null,"",0,0,""]
["",null,null,null,null,null,null,null,null,null,null,"",0,0,""]
["",null,null,null,null,null,null,null,null,null,null,"",0,0,""]
["",null,null,null,null,null,null,null,null,null,null,"",0,0,""]
["",null,null,null,null,null,null,null,null,null,null,"",0,0,""]
["",null,null,null,null,null,null,null,null,null,null,"",0,0,""]
["",null,null,null,null,null,null,null,null,null,null,"",0,0,""]
["",null,null,null,null,null,null,null,null,null,null,"",0,0,""]
["",null,null,null,null,null,null,null,null,null,null,"",0,0,""]
["",null,null,null,null,null,null,null,null,null,null,"",0,0,""]
["",null,null,null,null,null,null,null,null,null,null,"",0,0,""]
["",null,null,null,null,null,null,null,null,null,null,"",0,0,""]
["",null,null,null,null,null,null,null,null,null,null,"",0,0,""]
["",null,null,null,null,null,null,null,null,null,null,"",0,0,""]
["",null,null,null,null,null,null,null,null,null,null,"",0,0,""]
["",null,null,null,null,null,null,null,null,null,null,"",0,0,""]
["",null,null,null,null,null,null,null,null,null,null,"",0,0,""]
["",null,null,null,null,null,null,null,null,null,null,"",0,0,""]
["",null,null,null,null,null,null,null,null,null,null,"",0,0,""]
["",null,null,null,null,null,null,null,null,null,null,"",0,0,""]
["",null,null,null,null,null,null,null,null,null,null,"",0,0,""]
["",null,null,null,null,null,null,null,null,null,null,"",0,0,""]
["",null,null,null,null,null,null,null,null,null,null,"",0,0,""]
[{"$f":"IF(AND(K47632<>0,$I$8=0,$I$9=\"OK \"),\"update_data\",\"\")","v":""},null,null,null,null,null,null,null,null,null,null,"",{"$f":"ROUND(K47632,2)","v":0},{"$f":"ROUND(K47632,2)","v":0},{"$f":"IF(AND(C47632=\"\",K47632<>0),\"Kombination INST/Proj felaktig\",IF(OR(C47632=LEFT(E47632,2),E47632=\"\"),\"\",\"Kombination INST/Proj felaktig\"))","v":""}]
["",null,null,null,null,null,null,null,null,null,null,"",0,0,""]
["",null,null,null,null,null,null,null,null,null,null,"",0,0,""]
["",null,null,null,null,null,null,null,null,null,null,"",0,0,""]
["",null,null,null,null,null,null,null,null,null,null,"",0,0,""]
["",null,null,null,null,null,null,null,null,null,null,"",0,0,""]
["",null,null,null,null,null,null,null,null,null,null,{"$f":"UPPER(IF(K47830<>0,valuta,\"\"))","v":""},0,0,""]
["",null,null,null,null,null,null,null,null,null,null,"",0,0,""]
["",null,null,null,null,null,null,null,null,null,null,"",0,0,""]
["",null,null,null,null,null,null,null,null,null,null,"",0,0,""]
["",null,null,null,null,null,null,null,null,null,null,"",0,0,""]
["",null,null,null,null,null,null,null,null,null,null,"",0,0,""]
["",null,null,null,null,null,null,null,null,null,null,"",0,0,""]
["",null,null,null,null,null,null,null,null,null,null,"",0,0,""]
["",null,null,null,null,null,null,null,null,null,null,"",0,0,""]
["",null,null,null,null,null,null,null,null,null,null,"",0,0,""]
["",null,null,null,null,null,null,null,null,null,null,"",0,0,""]
["",null,null,null,null,null,null,null,null,null,null,"",0,0,""]
["",null,null,null,null,null,null,null,null,null,null,"",0,0,""]
["",null,null,null,null,null,null,null,null,null,null,"",0,0,""]
["",null,null,null,null,null,null,null,null,null,null,"",0,0,""]
["",null,null,null,null,null,null,null,null,null,null,"",0,0,""]
["",null,null,null,null,null,null,null,null,null,null,"",0,0,""]
["",null,null,null,null,null,null,null,null,null,null,"",0,0,""]
["",null,null,null,null,null,null,null,null,null,null,"",0,0,""]
["",null,null,null,null,null,null,null,null,null,null,"",0,0,""]
["",null,null,null,null,null,null,null,null,null,null,"",0,0,""]
["",null,null,null,null,null,null,null,null,null,null,"",0,0,""]
["",null,null,null,null,null,null,null,null,null,null,"",0,0,""]
["",null,null,null,null,null,null,null,null,null,null,"",0,0,""]
[{"$f":"IF(AND(K48592<>0,$I$8=0,$I$9=\"OK \"),\"update_data\",\"\")","v":""},null,null,null,null,null,null,null,null,null,null,"",{"$f":"ROUND(K48592,2)","v":0},{"$f":"ROUND(K48592,2)","v":0},{"$f":"IF(AND(C48592=\"\",K48592<>0),\"Kombination INST/Proj felaktig\",IF(OR(C48592=LEFT(E48592,2),E48592=\"\"),\"\",\"Kombination INST/Proj felaktig\"))","v":""}]
["",null,null,null,null,null,null,null,null,null,null,"",0,0,""]
["",null,null,null,null,null,null,null,null,null,null,"",0,0,""]
["",null,null,null,null,null,null,null,null,null,null,"",0,0,""]
["",null,null,null,null,null,null,null,null,null,null,"",0,0,""]
["",null,null,null,null,null,null,null,null,null,null,"",0,0,""]
["",null,null,null,null,null,null,null,null,null,null,"",0,0,""]
["",null,null,null,null,null,null,null,null,null,null,"",0,0,""]
["",null,null,null,null,null,null,null,null,null,null,"",0,0,""]
["",null,null,null,null,null,null,null,null,null,null,"",0,0,""]
["",null,null,null,null,null,null,null,null,null,null,"",0,0,""]
["",null,null,null,null,null,null,null,null,null,null,"",0,0,""]
["",null,null,null,null,null,null,null,null,null,null,"",0,0,""]
["",null,null,null,null,null,null,null,null,null,null,"",0,0,""]
["",null,null,null,null,null,null,null,null,null,null,"",0,0,""]
["",null,null,null,null,null,null,null,null,null,null,"",0,0,""]
["",null,null,null,null,null,null,null,null,null,null,"",0,0,""]
["",null,null,null,null,null,null,null,null,null,null,"",0,0,""]
["",null,null,null,null,null,null,null,null,null,null,"",0,0,""]
["",null,null,null,null,null,null,null,null,null,null,"",0,0,""]
["",null,null,null,null,null,null,null,null,null,null,"",0,0,""]
["",null,null,null,null,null,null,null,null,null,null,"",0,0,""]
["",null,null,null,null,null,null,null,null,null,null,"",0,0,""]
["",null,null,null,null,null,null,null,null,null,null,"",0,0,""]
["",null,null,null,null,null,null,null,null,null,null,"",0,0,""]
["",null,null,null,null,null,null,null,null,null,null,"",0,0,""]
["",null,null,null,null,null,null,null,null,null,null,"",0,0,""]
["",null,null,null,null,null,null,null,null,null,null,"",0,0,""]
["",null,null,null,null,null,null,null,null,null,null,"",0,0,""]
["",null,null,null,null,null,null,null,null,null,null,"",0,0,""]
["",null,null,null,null,null,null,null,null,null,null,"",0,0,""]
["",null,null,null,null,null,null,null,null,null,null,"",0,0,""]
["",null,null,null,null,null,null,null,null,null,null,"",0,0,""]
["",null,null,null,null,null,null,null,null,null,null,"",0,0,""]
["",null,null,null,null,null,null,null,null,null,null,"",0,0,""]
["",null,null,null,null,null,null,null,null,null,null,"",0,0,""]
["",null,null,null,null,null,null,null,null,null,null,"",0,0,""]
["",null,null,null,null,null,null,null,null,null,null,"",0,0,""]
["",null,null,null,null,null,null,null,null,null,null,"",0,0,""]
["",null,null,null,null,null,null,null,null,null,null,"",0,0,""]
["",null,null,null,null,null,null,null,null,null,null,"",0,0,""]
["",null,null,null,null,null,null,null,null,null,null,"",0,0,""]
["",null,null,null,null,null,null,null,null,null,null,"",0,0,""]
["",null,null,null,null,null,null,null,null,null,null,"",0,0,""]
["",null,null,null,null,null,null,null,null,null,null,"",0,0,""]
["",null,null,null,null,null,null,null,null,null,null,"",0,0,""]
["",null,null,null,null,null,null,null,null,null,null,"",0,0,""]
["",null,null,null,null,null,null,null,null,null,null,"",0,0,""]
["",null,null,null,null,null,null,null,null,null,null,"",0,0,""]
["",null,null,null,null,null,null,null,null,null,null,"",0,0,""]
["",null,null,null,null,null,null,null,null,null,null,"",0,0,""]
["",null,null,null,null,null,null,null,null,null,null,"",0,0,""]
["",null,null,null,null,null,null,null,null,null,null,"",0,0,""]
["",null,null,null,null,null,null,null,null,null,null,"",0,0,""]
["",null,null,null,null,null,null,null,null,null,null,"",0,0,""]
["",null,null,null,null,null,null,null,null,null,null,"",0,0,""]
["",null,null,null,null,null,null,null,null,null,null,"",0,0,""]
["",null,null,null,null,null,null,null,null,null,null,"",0,0,""]
["",null,null,null,null,null,null,null,null,null,null,"",0,0,""]
["",null,null,null,null,null,null,null,null,null,null,"",0,0,""]
["",null,null,null,null,null,null,null,null,null,null,"",0,0,""]
["",null,null,null,null,null,null,null,null,null,null,"",0,0,""]
["",null,null,null,null,null,null,null,null,null,null,"",0,0,""]
["",null,null,null,null,null,null,null,null,null,null,"",0,0,""]
["",null,null,null,null,null,null,null,null,null,null,{"$f":"UPPER(IF(K50646<>0,valuta,\"\"))","v":""},0,0,""]
["",null,null,null,null,null,null,null,null,null,null,"",0,0,""]
["",null,null,null,null,null,null,null,null,null,null,"",0,0,""]
["",null,null,null,null,null,null,null,null,null,null,"",0,0,""]
["",null,null,null,null,null,null,null,null,null,null,"",0,0,""]
["",null,null,null,null,null,null,null,null,null,null,"",0,0,""]
["",null,null,null,null,null,null,null,null,null,null,"",0,0,""]
["",null,null,null,null,null,null,null,null,null,null,"",0,0,""]
["",null,null,null,null,null,null,null,null,null,null,"",0,0,""]
["",null,null,null,null,null,null,null,null,null,null,"",0,0,""]
["",null,null,null,null,null,null,null,null,null,null,"",0,0,""]
["",null,null,null,null,null,null,null,null,null,null,"",0,0,""]
["",null,null,null,null,null,null,null,null,null,null,"",0,0,""]
["",null,null,null,null,null,null,null,null,null,null,"",0,0,""]
["",null,null,null,null,null,null,null,null,null,null,"",0,0,""]
["",null,null,null,null,null,null,null,null,null,null,"",0,0,""]
["",null,null,null,null,null,null,null,null,null,null,"",0,0,""]
["",null,null,null,null,null,null,null,null,null,null,"",0,0,""]
["",null,null,null,null,null,null,null,null,null,null,"",0,0,""]
["",null,null,null,null,null,null,null,null,null,null,"",0,0,""]
["",null,null,null,null,null,null,null,null,null,null,"",0,0,""]
["",null,null,null,null,null,null,null,null,null,null,"",0,0,""]
["",null,null,null,null,null,null,null,null,null,null,"",0,0,""]
["",null,null,null,null,null,null,null,null,null,null,"",0,0,""]
["",null,null,null,null,null,null,null,null,null,null,"",0,0,""]
["",null,null,null,null,null,null,null,null,null,null,"",0,0,""]
["",null,null,null,null,null,null,null,null,null,null,"",0,0,""]
["",null,null,null,null,null,null,null,null,null,null,"",0,0,""]
["",null,null,null,null,null,null,null,null,null,null,"",0,0,""]
["",null,null,null,null,null,null,null,null,null,null,"",0,0,""]
["",null,null,null,null,null,null,null,null,null,null,{"$f":"UPPER(IF(K51606<>0,valuta,\"\"))","v":""},0,0,""]
["",null,null,null,null,null,null,null,null,null,null,"",0,0,""]
["",null,null,null,null,null,null,null,null,null,null,"",0,0,""]
["",null,null,null,null,null,null,null,null,null,null,"",0,0,""]
["",null,null,null,null,null,null,null,null,null,null,"",0,0,""]
["",null,null,null,null,null,null,null,null,null,null,"",0,0,""]
["",null,null,null,null,null,null,null,null,null,null,"",0,0,""]
["",null,null,null,null,null,null,null,null,null,null,"",0,0,""]
["",null,null,null,null,null,null,null,null,null,null,"",0,0,""]
[{"$f":"IF(AND(K51920<>0,$I$8=0,$I$9=\"OK \"),\"update_data\",\"\")","v":""},null,null,null,null,null,null,null,null,null,null,"",{"$f":"ROUND(K51920,2)","v":0},{"$f":"ROUND(K51920,2)","v":0},{"$f":"IF(AND(C51920=\"\",K51920<>0),\"Kombination INST/Proj felaktig\",IF(OR(C51920=LEFT(E51920,2),E51920=\"\"),\"\",\"Kombination INST/Proj felaktig\"))","v":""}]
["",null,null,null,null,null,null,null,null,null,null,"",0,0,""]
["",null,null,null,null,null,null,null,null,null,null,"",0,0,""]
["",null,null,null,null,null,null,null,null,null,null,"",0,0,""]
["",null,null,null,null,null,null,null,null,null,null,"",0,0,""]
["",null,null,null,null,null,null,null,null,null,null,"",0,0,""]
["",null,null,null,null,null,null,null,null,null,null,"",0,0,""]
["",null,null,null,null,null,null,null,null,null,null,"",0,0,""]
["",null,null,null,null,null,null,null,null,null,null,"",0,0,""]
["",null,null,null,null,null,null,null,null,null,null,"",0,0,""]
["",null,null,null,null,null,null,null,null,null,null,"",0,0,""]
["",null,null,null,null,null,null,null,null,null,null,"",0,0,""]
["",null,null,null,null,null,null,null,null,null,null,"",0,0,""]
["",null,null,null,null,null,null,null,null,null,null,"",0,0,""]
["",null,null,null,null,null,null,null,null,null,null,"",0,0,""]
["",null,null,null,null,null,null,null,null,null,null,"",0,0,""]
["",null,null,null,null,null,null,null,null,null,null,"",0,0,""]
["",null,null,null,null,null,null,null,null,null,null,"",0,0,""]
["",null,null,null,null,null,null,null,null,null,null,"",0,0,""]
["",null,null,null,null,null,null,null,null,null,null,"",0,0,""]
["",null,null,null,null,null,null,null,null,null,null,"",0,0,""]
["",null,null,null,null,null,null,null,null,null,null,"",0,0,""]
["",null,null,null,null,null,null,null,null,null,null,"",0,0,""]
["",null,null,null,null,null,null,null,null,null,null,"",0,0,""]
["",null,null,null,null,null,null,null,null,null,null,"",0,0,""]
["",null,null,null,null,null,null,null,null,null,null,"",0,0,""]
["",null,null,null,null,null,null,null,null,null,null,"",0,0,""]
["",null,null,null,null,null,null,null,null,null,null,"",0,0,""]
["",null,null,null,null,null,null,null,null,null,null,"",0,0,""]
["",null,null,null,null,null,null,null,null,null,null,"",0,0,""]
["",null,null,null,null,null,null,null,null,null,null,"",0,0,""]
["",null,null,null,null,null,null,null,null,null,null,"",0,0,""]
["",null,null,null,null,null,null,null,null,null,null,"",0,0,""]
["",null,null,null,null,null,null,null,null,null,null,"",0,0,""]
["",null,null,null,null,null,null,null,null,null,null,"",0,0,""]
["",null,null,null,null,null,null,null,null,null,null,"",0,0,""]
["",null,null,null,null,null,null,null,null,null,null,"",0,0,""]
["",null,null,null,null,null,null,null,null,null,null,"",0,0,""]
["",null,null,null,null,null,null,null,null,null,null,"",0,0,""]
["",null,null,null,null,null,null,null,null,null,null,"",0,0,""]
["",null,null,null,null,null,null,null,null,null,null,"",0,0,""]
["",null,null,null,null,null,null,null,null,null,null,"",0,0,""]
["",null,null,null,null,null,null,null,null,null,null,"",0,0,""]
["",null,null,null,null,null,null,null,null,null,null,"",0,0,""]
["",null,null,null,null,null,null,null,null,null,null,"",0,0,""]
["",null,null,null,null,null,null,null,null,null,null,"",0,0,""]
["",null,null,null,null,null,null,null,null,null,null,"",0,0,""]
["",null,null,null,null,null,null,null,null,null,null,"",0,0,""]
["",null,null,null,null,null,null,null,null,null,null,"",0,0,""]
["",null,null,null,null,null,null,null,null,null,null,"",0,0,""]
["",null,null,null,null,null,null,null,null,null,null,"",0,0,""]
["",null,null,null,null,null,null,null,null,null,null,"",0,0,""]
["",null,null,null,null,null,null,null,null,null,null,"",0,0,""]
["",null,null,null,null,null,null,null,null,null,null,"",0,0,""]
["",null,null,null,null,null,null,null,null,null,null,"",0,0,""]
["",null,null,null,null,null,null,null,null,null,null,"",0,0,""]
["",null,null,null,null,null,null,null,null,null,null,"",0,0,""]
["",null,null,null,null,null,null,null,null,null,null,"",0,0,""]
["",null,null,null,null,null,null,null,null,null,null,"",0,0,""]
["",null,null,null,null,null,null,null,null,null,null,"",0,0,""]
["",null,null,null,null,null,null,null,null,null,null,"",0,0,""]
["",null,null,null,null,null,null,null,null,null,null,"",0,0,""]
["",null,null,null,null,null,null,null,null,null,null,"",0,0,""]
["",null,null,null,null,null,null,null,null,null,null,"",0,0,""]
["",null,null,null,null,null,null,null,null,null,null,"",0,0,""]
["",null,null,null,null,null,null,null,null,null,null,"",0,0,""]
["",null,null,null,null,null,null,null,null,null,null,"",0,0,""]
["",null,null,null,null,null,null,null,null,null,null,"",0,0,""]
["",null,null,null,null,null,null,null,null,null,null,{"$f":"UPPER(IF(K54074<>0,valuta,\"\"))","v":""},0,0,""]
["",null,null,null,null,null,null,null,null,null,null,"",0,0,""]
["",null,null,null,null,null,null,null,null,null,null,"",0,0,""]
["",null,null,null,null,null,null,null,null,null,null,"",0,0,""]
["",null,null,null,null,null,null,null,null,null,null,"",0,0,""]
["",null,null,null,null,null,null,null,null,null,null,"",0,0,""]
["",null,null,null,null,null,null,null,null,null,null,"",0,0,""]
["",null,null,null,null,null,null,null,null,null,null,"",0,0,""]
["",null,null,null,null,null,null,null,null,null,null,"",0,0,""]
["",null,null,null,null,null,null,null,null,null,null,"",0,0,""]
["",null,null,null,null,null,null,null,null,null,null,"",0,0,""]
["",null,null,null,null,null,null,null,null,null,null,"",0,0,""]
["",null,null,null,null,null,null,null,null,null,null,"",0,0,""]
["",null,null,null,null,null,null,null,null,null,null,"",0,0,""]
["",null,null,null,null,null,null,null,null,null,null,"",0,0,""]
["",null,null,null,null,null,null,null,null,null,null,{"$f":"UPPER(IF(K54586<>0,valuta,\"\"))","v":""},0,0,""]
["",null,null,null,null,null,null,null,null,null,null,"",0,0,""]
["",null,null,null,null,null,null,null,null,null,null,"",0,0,""]
["",null,null,null,null,null,null,null,null,null,null,"",0,0,""]
["",null,null,null,null,null,null,null,null,null,null,"",0,0,""]
["",null,null,null,null,null,null,null,null,null,null,"",0,0,""]
["",null,null,null,null,null,null,null,null,null,null,"",0,0,""]
["",null,null,null,null,null,null,null,null,null,null,"",0,0,""]
["",null,null,null,null,null,null,null,null,null,null,"",0,0,""]
["",null,null,null,null,null,null,null,null,null,null,"",0,0,""]
["",null,null,null,null,null,null,null,null,null,null,"",0,0,""]
["",null,null,null,null,null,null,null,null,null,null,"",0,0,""]
["",null,null,null,null,null,null,null,null,null,null,"",0,0,""]
["",null,null,null,null,null,null,null,null,null,null,"",0,0,""]
["",null,null,null,null,null,null,null,null,null,null,"",0,0,""]
["",null,null,null,null,null,null,null,null,null,null,"",0,0,""]
["",null,null,null,null,null,null,null,null,null,null,"",0,0,""]
["",null,null,null,null,null,null,null,null,null,null,"",0,0,""]
["",null,null,null,null,null,null,null,null,null,null,{"$f":"UPPER(IF(K55162<>0,valuta,\"\"))","v":""},0,0,""]
["",null,null,null,null,null,null,null,null,null,null,"",0,0,""]
["",null,null,null,null,null,null,null,null,null,null,"",0,0,""]
["",null,null,null,null,null,null,null,null,null,null,"",0,0,""]
["",null,null,null,null,null,null,null,null,null,null,"",0,0,""]
["",null,null,null,null,null,null,null,null,null,null,"",0,0,""]
["",null,null,null,null,null,null,null,null,null,null,"",0,0,""]
["",null,null,null,null,null,null,null,null,null,null,"",0,0,""]
["",null,null,null,null,null,null,null,null,null,null,"",0,0,""]
["",null,null,null,null,null,null,null,null,null,null,"",0,0,""]
["",null,null,null,null,null,null,null,null,null,null,"",0,0,""]
["",null,null,null,null,null,null,null,null,null,null,"",0,0,""]
["",null,null,null,null,null,null,null,null,null,null,"",0,0,""]
["",null,null,null,null,null,null,null,null,null,null,"",0,0,""]
["",null,null,null,null,null,null,null,null,null,null,"",0,0,""]
["",null,null,null,null,null,null,null,null,null,null,"",0,0,""]
["",null,null,null,null,null,null,null,null,null,null,"",0,0,""]
[{"$f":"IF(AND(K55696<>0,$I$8=0,$I$9=\"OK \"),\"update_data\",\"\")","v":""},null,null,null,null,null,null,null,null,null,null,"",{"$f":"ROUND(K55696,2)","v":0},{"$f":"ROUND(K55696,2)","v":0},{"$f":"IF(AND(C55696=\"\",K55696<>0),\"Kombination INST/Proj felaktig\",IF(OR(C55696=LEFT(E55696,2),E55696=\"\"),\"\",\"Kombination INST/Proj felaktig\"))","v":""}]
["",null,null,null,null,null,null,null,null,null,null,"",0,0,""]
["",null,null,null,null,null,null,null,null,null,null,"",0,0,""]
["",null,null,null,null,null,null,null,null,null,null,"",0,0,""]
["",null,null,null,null,null,null,null,null,null,null,"",0,0,""]
["",null,null,null,null,null,null,null,null,null,null,"",0,0,""]
["",null,null,null,null,null,null,null,null,null,null,"",0,0,""]
["",null,null,null,null,null,null,null,null,null,null,"",0,0,""]
["",null,null,null,null,null,null,null,null,null,null,"",0,0,""]
["",null,null,null,null,null,null,null,null,null,null,"",0,0,""]
["",null,null,null,null,null,null,null,null,null,null,"",0,0,""]
["",null,null,null,null,null,null,null,null,null,null,"",0,0,""]
["",null,null,null,null,null,null,null,null,null,null,"",0,0,""]
["",null,null,null,null,null,null,null,null,null,null,"",0,0,""]
["",null,null,null,null,null,null,null,null,null,null,"",0,0,""]
["",null,null,null,null,null,null,null,null,null,null,"",0,0,""]
["",null,null,null,null,null,null,null,null,null,null,"",0,0,""]
["",null,null,null,null,null,null,null,null,null,null,"",0,0,""]
["",null,null,null,null,null,null,null,null,null,null,"",0,0,""]
["",null,null,null,null,null,null,null,null,null,null,"",0,0,""]
["",null,null,null,null,null,null,null,null,null,null,"",0,0,""]
["",null,null,null,null,null,null,null,null,null,null,"",0,0,""]
["",null,null,null,null,null,null,null,null,null,null,"",0,0,""]
["",null,null,null,null,null,null,null,null,null,null,"",0,0,""]
["",null,null,null,null,null,null,null,null,null,null,"",0,0,""]
["",null,null,null,null,null,null,null,null,null,null,"",0,0,""]
["",null,null,null,null,null,null,null,null,null,null,"",0,0,""]
["",null,null,null,null,null,null,null,null,null,null,"",0,0,""]
["",null,null,null,null,null,null,null,null,null,null,"",0,0,""]
["",null,null,null,null,null,null,null,null,null,null,"",0,0,""]
[{"$f":"IF(AND(K56656<>0,$I$8=0,$I$9=\"OK \"),\"update_data\",\"\")","v":""},null,null,null,null,null,null,null,null,null,null,"",{"$f":"ROUND(K56656,2)","v":0},{"$f":"ROUND(K56656,2)","v":0},{"$f":"IF(AND(C56656=\"\",K56656<>0),\"Kombination INST/Proj felaktig\",IF(OR(C56656=LEFT(E56656,2),E56656=\"\"),\"\",\"Kombination INST/Proj felaktig\"))","v":""}]
["",null,null,null,null,null,null,null,null,null,null,"",0,0,""]
["",null,null,null,null,null,null,null,null,null,null,"",0,0,""]
["",null,null,null,null,null,null,null,null,null,null,"",0,0,""]
["",null,null,null,null,null,null,null,null,null,null,"",0,0,""]
["",null,null,null,null,null,null,null,null,null,null,"",0,0,""]
["",null,null,null,null,null,null,null,null,null,null,"",0,0,""]
["",null,null,null,null,null,null,null,null,null,null,"",0,0,""]
["",null,null,null,null,null,null,null,null,null,null,"",0,0,""]
["",null,null,null,null,null,null,null,null,null,null,"",0,0,""]
["",null,null,null,null,null,null,null,null,null,null,"",0,0,""]
["",null,null,null,null,null,null,null,null,null,null,"",0,0,""]
["",null,null,null,null,null,null,null,null,null,null,"",0,0,""]
["",null,null,null,null,null,null,null,null,null,null,"",0,0,""]
["",null,null,null,null,null,null,null,null,null,null,"",0,0,""]
["",null,null,null,null,null,null,null,null,null,null,"",0,0,""]
["",null,null,null,null,null,null,null,null,null,null,"",0,0,""]
["",null,null,null,null,null,null,null,null,null,null,"",0,0,""]
["",null,null,null,null,null,null,null,null,null,null,"",0,0,""]
["",null,null,null,null,null,null,null,null,null,null,"",0,0,""]
["",null,null,null,null,null,null,null,null,null,null,"",0,0,""]
["",null,null,null,null,null,null,null,null,null,null,"",0,0,""]
["",null,null,null,null,null,null,null,null,null,null,"",0,0,""]
["",null,null,null,null,null,null,null,null,null,null,"",0,0,""]
["",null,null,null,null,null,null,null,null,null,null,"",0,0,""]
["",null,null,null,null,null,null,null,null,null,null,"",0,0,""]
["",null,null,null,null,null,null,null,null,null,null,"",0,0,""]
["",null,null,null,null,null,null,null,null,null,null,"",0,0,""]
["",null,null,null,null,null,null,null,null,null,null,"",0,0,""]
["",null,null,null,null,null,null,null,null,null,null,"",0,0,""]
["",null,null,null,null,null,null,null,null,null,null,"",0,0,""]
["",null,null,null,null,null,null,null,null,null,null,"",0,0,""]
["",null,null,null,null,null,null,null,null,null,null,"",0,0,""]
["",null,null,null,null,null,null,null,null,null,null,"",0,0,""]
["",null,null,null,null,null,null,null,null,null,null,"",0,0,""]
["",null,null,null,null,null,null,null,null,null,null,"",0,0,""]
["",null,null,null,null,null,null,null,null,null,null,"",0,0,""]
["",null,null,null,null,null,null,null,null,null,null,"",0,0,""]
["",null,null,null,null,null,null,null,null,null,null,"",0,0,""]
["",null,null,null,null,null,null,null,null,null,null,"",0,0,""]
["",null,null,null,null,null,null,null,null,null,null,"",0,0,""]
["",null,null,null,null,null,null,null,null,null,null,"",0,0,""]
["",null,null,null,null,null,null,null,null,null,null,"",0,0,""]
["",null,null,null,null,null,null,null,null,null,null,"",0,0,""]
["",null,null,null,null,null,null,null,null,null,null,"",0,0,""]
["",null,null,null,null,null,null,null,null,null,null,"",0,0,""]
["",null,null,null,null,null,null,null,null,null,null,"",0,0,""]
["",null,null,null,null,null,null,null,null,null,null,"",0,0,""]
["",null,null,null,null,null,null,null,null,null,null,"",0,0,""]
["",null,null,null,null,null,null,null,null,null,null,"",0,0,""]
["",null,null,null,null,null,null,null,null,null,null,"",0,0,""]
["",null,null,null,null,null,null,null,null,null,null,"",0,0,""]
["",null,null,null,null,null,null,null,null,null,null,"",0,0,""]
["",null,null,null,null,null,null,null,null,null,null,{"$f":"UPPER(IF(K58362<>0,valuta,\"\"))","v":""},0,0,""]
["",null,null,null,null,null,null,null,null,null,null,"",0,0,""]
["",null,null,null,null,null,null,null,null,null,null,"",0,0,""]
["",null,null,null,null,null,null,null,null,null,null,"",0,0,""]
["",null,null,null,null,null,null,null,null,null,null,"",0,0,""]
["",null,null,null,null,null,null,null,null,null,null,"",0,0,""]
["",null,null,null,null,null,null,null,null,null,null,"",0,0,""]
[{"$f":"IF(AND(K58576<>0,$I$8=0,$I$9=\"OK \"),\"update_data\",\"\")","v":""},null,null,null,null,null,null,null,null,null,null,"",{"$f":"ROUND(K58576,2)","v":0},{"$f":"ROUND(K58576,2)","v":0},{"$f":"IF(AND(C58576=\"\",K58576<>0),\"Kombination INST/Proj felaktig\",IF(OR(C58576=LEFT(E58576,2),E58576=\"\"),\"\",\"Kombination INST/Proj felaktig\"))","v":""}]
["",null,null,null,null,null,null,null,null,null,null,"",0,0,""]
["",null,null,null,null,null,null,null,null,null,null,"",0,0,""]
["",null,null,null,null,null,null,null,null,null,null,"",0,0,""]
["",null,null,null,null,null,null,null,null,null,null,"",0,0,""]
["",null,null,null,null,null,null,null,null,null,null,"",0,0,""]
["",null,null,null,null,null,null,null,null,null,null,"",0,0,""]
["",null,null,null,null,null,null,null,null,null,null,"",0,0,""]
["",null,null,null,null,null,null,null,null,null,null,"",0,0,""]
["",null,null,null,null,null,null,null,null,null,null,"",0,0,""]
["",null,null,null,null,null,null,null,null,null,null,"",0,0,""]
["",null,null,null,null,null,null,null,null,null,null,"",0,0,""]
["",null,null,null,null,null,null,null,null,null,null,"",0,0,""]
["",null,null,null,null,null,null,null,null,null,null,"",0,0,""]
["",null,null,null,null,null,null,null,null,null,null,"",0,0,""]
["",null,null,null,null,null,null,null,null,null,null,"",0,0,""]
["",null,null,null,null,null,null,null,null,null,null,"",0,0,""]
["",null,null,null,null,null,null,null,null,null,null,"",0,0,""]
["",null,null,null,null,null,null,null,null,null,null,"",0,0,""]
["",null,null,null,null,null,null,null,null,null,null,"",0,0,""]
["",null,null,null,null,null,null,null,null,null,null,"",0,0,""]
["",null,null,null,null,null,null,null,null,null,null,"",0,0,""]
["",null,null,null,null,null,null,null,null,null,null,"",0,0,""]
["",null,null,null,null,null,null,null,null,null,null,"",0,0,""]
["",null,null,null,null,null,null,null,null,null,null,"",0,0,""]
["",null,null,null,null,null,null,null,null,null,null,"",0,0,""]
["",null,null,null,null,null,null,null,null,null,null,"",0,0,""]
["",null,null,null,null,null,null,null,null,null,null,"",0,0,""]
[{"$f":"IF(AND(K59472<>0,$I$8=0,$I$9=\"OK \"),\"update_data\",\"\")","v":""},null,null,null,null,null,null,null,null,null,null,"",{"$f":"ROUND(K59472,2)","v":0},{"$f":"ROUND(K59472,2)","v":0},{"$f":"IF(AND(C59472=\"\",K59472<>0),\"Kombination INST/Proj felaktig\",IF(OR(C59472=LEFT(E59472,2),E59472=\"\"),\"\",\"Kombination INST/Proj felaktig\"))","v":""}]
["",null,null,null,null,null,null,null,null,null,null,"",0,0,""]
["",null,null,null,null,null,null,null,null,null,null,"",0,0,""]
["",null,null,null,null,null,null,null,null,null,null,"",0,0,""]
["",null,null,null,null,null,null,null,null,null,null,"",0,0,""]
["",null,null,null,null,null,null,null,null,null,null,"",0,0,""]
["",null,null,null,null,null,null,null,null,null,null,"",0,0,""]
["",null,null,null,null,null,null,null,null,null,null,"",0,0,""]
["",null,null,null,null,null,null,null,null,null,null,"",0,0,""]
["",null,null,null,null,null,null,null,null,null,null,"",0,0,""]
["",null,null,null,null,null,null,null,null,null,null,"",0,0,""]
["",null,null,null,null,null,null,null,null,null,null,"",0,0,""]
["",null,null,null,null,null,null,null,null,null,null,"",0,0,""]
["",null,null,null,null,null,null,null,null,null,null,"",0,0,""]
["",null,null,null,null,null,null,null,null,null,null,"",0,0,""]
["",null,null,null,null,null,null,null,null,null,null,"",0,0,""]
["",null,null,null,null,null,null,null,null,null,null,"",0,0,""]
["",null,null,null,null,null,null,null,null,null,null,"",0,0,""]
["",null,null,null,null,null,null,null,null,null,null,"",0,0,""]
["",null,null,null,null,null,null,null,null,null,null,"",0,0,""]
["",null,null,null,null,null,null,null,null,null,null,"",0,0,""]
["",null,null,null,null,null,null,null,null,null,null,"",0,0,""]
["",null,null,null,null,null,null,null,null,null,null,"",0,0,""]
["",null,null,null,null,null,null,null,null,null,null,"",0,0,""]
["",null,null,null,null,null,null,null,null,null,null,"",0,0,""]
["",null,null,null,null,null,null,null,null,null,null,"",0,0,""]
["",null,null,null,null,null,null,null,null,null,null,"",0,0,""]
["",null,null,null,null,null,null,null,null,null,null,"",0,0,""]
["",null,null,null,null,null,null,null,null,null,null,"",0,0,""]
["",null,null,null,null,null,null,null,null,null,null,"",0,0,""]
[{"$f":"IF(AND(K60432<>0,$I$8=0,$I$9=\"OK \"),\"update_data\",\"\")","v":""},null,null,null,null,null,null,null,null,null,null,"",{"$f":"ROUND(K60432,2)","v":0},{"$f":"ROUND(K60432,2)","v":0},{"$f":"IF(AND(C60432=\"\",K60432<>0),\"Kombination INST/Proj felaktig\",IF(OR(C60432=LEFT(E60432,2),E60432=\"\"),\"\",\"Kombination INST/Proj felaktig\"))","v":""}]
["",null,null,null,null,null,null,null,null,null,null,"",0,0,""]
["",null,null,null,null,null,null,null,null,null,null,"",0,0,""]
["",null,null,null,null,null,null,null,null,null,null,"",0,0,""]
["",null,null,null,null,null,null,null,null,null,null,"",0,0,""]
["",null,null,null,null,null,null,null,null,null,null,"",0,0,""]
["",null,null,null,null,null,null,null,null,null,null,"",0,0,""]
["",null,null,null,null,null,null,null,null,null,null,"",0,0,""]
["",null,null,null,null,null,null,null,null,null,null,"",0,0,""]
["",null,null,null,null,null,null,null,null,null,null,"",0,0,""]
["",null,null,null,null,null,null,null,null,null,null,"",0,0,""]
["",null,null,null,null,null,null,null,null,null,null,"",0,0,""]
["",null,null,null,null,null,null,null,null,null,null,"",0,0,""]
["",null,null,null,null,null,null,null,null,null,null,"",0,0,""]
["",null,null,null,null,null,null,null,null,null,null,"",0,0,""]
["",null,null,null,null,null,null,null,null,null,null,"",0,0,""]
["",null,null,null,null,null,null,null,null,null,null,"",0,0,""]
["",null,null,null,null,null,null,null,null,null,null,"",0,0,""]
["",null,null,null,null,null,null,null,null,null,null,"",0,0,""]
["",null,null,null,null,null,null,null,null,null,null,"",0,0,""]
["",null,null,null,null,null,null,null,null,null,null,"",0,0,""]
["",null,null,null,null,null,null,null,null,null,null,"",0,0,""]
["",null,null,null,null,null,null,null,null,null,null,"",0,0,""]
["",null,null,null,null,null,null,null,null,null,null,"",0,0,""]
["",null,null,null,null,null,null,null,null,null,null,"",0,0,""]
["",null,null,null,null,null,null,null,null,null,null,"",0,0,""]
["",null,null,null,null,null,null,null,null,null,null,"",0,0,""]
["",null,null,null,null,null,null,null,null,null,null,"",0,0,""]
["",null,null,null,null,null,null,null,null,null,null,"",0,0,""]
["",null,null,null,null,null,null,null,null,null,null,"",0,0,""]
["",null,null,null,null,null,null,null,null,null,null,"",0,0,""]
["",null,null,null,null,null,null,null,null,null,null,"",0,0,""]
["",null,null,null,null,null,null,null,null,null,null,"",0,0,""]
["",null,null,null,null,null,null,null,null,null,null,"",0,0,""]
["",null,null,null,null,null,null,null,null,null,null,"",0,0,""]
["",null,null,null,null,null,null,null,null,null,null,"",0,0,""]
["",null,null,null,null,null,null,null,null,null,null,"",0,0,""]
["",null,null,null,null,null,null,null,null,null,null,"",0,0,""]
["",null,null,null,null,null,null,null,null,null,null,"",0,0,""]
["",null,null,null,null,null,null,null,null,null,null,"",0,0,""]
["",null,null,null,null,null,null,null,null,null,null,"",0,0,""]
["",null,null,null,null,null,null,null,null,null,null,"",0,0,""]
["",null,null,null,null,null,null,null,null,null,null,"",0,0,""]
["",null,null,null,null,null,null,null,null,null,null,"",0,0,""]
["",null,null,null,null,null,null,null,null,null,null,"",0,0,""]
["",null,null,null,null,null,null,null,null,null,null,"",0,0,""]
["",null,null,null,null,null,null,null,null,null,null,"",0,0,""]
["",null,null,null,null,null,null,null,null,null,null,"",0,0,""]
["",null,null,null,null,null,null,null,null,null,null,"",0,0,""]
["",null,null,null,null,null,null,null,null,null,null,"",0,0,""]
["",null,null,null,null,null,null,null,null,null,null,"",0,0,""]
["",null,null,null,null,null,null,null,null,null,null,"",0,0,""]
["",null,null,null,null,null,null,null,null,null,null,"",0,0,""]
["",null,null,null,null,null,null,null,null,null,null,{"$f":"UPPER(IF(K62138<>0,valuta,\"\"))","v":""},0,0,""]
["",null,null,null,null,null,null,null,null,null,null,"",0,0,""]
["",null,null,null,null,null,null,null,null,null,null,"",0,0,""]
["",null,null,null,null,null,null,null,null,null,null,"",0,0,""]
["",null,null,null,null,null,null,null,null,null,null,"",0,0,""]
["",null,null,null,null,null,null,null,null,null,null,"",0,0,""]
["",null,null,null,null,null,null,null,null,null,null,"",0,0,""]
["",null,null,null,null,null,null,null,null,null,null,"",0,0,""]
["",null,null,null,null,null,null,null,null,null,null,"",0,0,""]
["",null,null,null,null,null,null,null,null,null,null,"",0,0,""]
["",null,null,null,null,null,null,null,null,null,null,"",0,0,""]
["",null,null,null,null,null,null,null,null,null,null,"",0,0,""]
["",null,null,null,null,null,null,null,null,null,null,"",0,0,""]
["",null,null,null,null,null,null,null,null,null,null,"",0,0,""]
["",null,null,null,null,null,null,null,null,null,null,"",0,0,""]
["",null,null,null,null,null,null,null,null,null,null,"",0,0,""]
["",null,null,null,null,null,null,null,null,null,null,"",0,0,""]
["",null,null,null,null,null,null,null,null,null,null,"",0,0,""]
["",null,null,null,null,null,null,null,null,null,null,"",0,0,""]
["",null,null,null,null,null,null,null,null,null,null,"",0,0,""]
[{"$f":"IF(AND(K62800<>0,$I$8=0,$I$9=\"OK \"),\"update_data\",\"\")","v":""},null,null,null,null,null,null,null,null,null,null,"",{"$f":"ROUND(K62800,2)","v":0},{"$f":"ROUND(K62800,2)","v":0},{"$f":"IF(AND(C62800=\"\",K62800<>0),\"Kombination INST/Proj felaktig\",IF(OR(C62800=LEFT(E62800,2),E62800=\"\"),\"\",\"Kombination INST/Proj felaktig\"))","v":""}]
["",null,null,null,null,null,null,null,null,null,null,"",0,0,""]
["",null,null,null,null,null,null,null,null,null,null,"",0,0,""]
["",null,null,null,null,null,null,null,null,null,null,"",0,0,""]
["",null,null,null,null,null,null,null,null,null,null,"",0,0,""]
["",null,null,null,null,null,null,null,null,null,null,"",0,0,""]
["",null,null,null,null,null,null,null,null,null,null,"",0,0,""]
["",null,null,null,null,null,null,null,null,null,null,"",0,0,""]
["",null,null,null,null,null,null,null,null,null,null,"",0,0,""]
["",null,null,null,null,null,null,null,null,null,null,"",0,0,""]
["",null,null,null,null,null,null,null,null,null,null,{"$f":"UPPER(IF(K63098<>0,valuta,\"\"))","v":""},0,0,""]
["",null,null,null,null,null,null,null,null,null,null,"",0,0,""]
["",null,null,null,null,null,null,null,null,null,null,"",0,0,""]
["",null,null,null,null,null,null,null,null,null,null,"",0,0,""]
["",null,null,null,null,null,null,null,null,null,null,"",0,0,""]
["",null,null,null,null,null,null,null,null,null,null,"",0,0,""]
["",null,null,null,null,null,null,null,null,null,null,"",0,0,""]
["",null,null,null,null,null,null,null,null,null,null,"",0,0,""]
["",null,null,null,null,null,null,null,null,null,null,"",0,0,""]
["",null,null,null,null,null,null,null,null,null,null,"",0,0,""]
["",null,null,null,null,null,null,null,null,null,null,"",0,0,""]
["",null,null,null,null,null,null,null,null,null,null,"",0,0,""]
["",null,null,null,null,null,null,null,null,null,null,"",0,0,""]
["",null,null,null,null,null,null,null,null,null,null,"",0,0,""]
["",null,null,null,null,null,null,null,null,null,null,"",0,0,""]
["",null,null,null,null,null,null,null,null,null,null,"",0,0,""]
["",null,null,null,null,null,null,null,null,null,null,"",0,0,""]
["",null,null,null,null,null,null,null,null,null,null,"",0,0,""]
["",null,null,null,null,null,null,null,null,null,null,"",0,0,""]
["",null,null,null,null,null,null,null,null,null,null,"",0,0,""]
[{"$f":"IF(AND(K63760<>0,$I$8=0,$I$9=\"OK \"),\"update_data\",\"\")","v":""},null,null,null,null,null,null,null,null,null,null,"",{"$f":"ROUND(K63760,2)","v":0},{"$f":"ROUND(K63760,2)","v":0},{"$f":"IF(AND(C63760=\"\",K63760<>0),\"Kombination INST/Proj felaktig\",IF(OR(C63760=LEFT(E63760,2),E63760=\"\"),\"\",\"Kombination INST/Proj felaktig\"))","v":""}]
["",null,null,null,null,null,null,null,null,null,null,"",0,0,""]
["",null,null,null,null,null,null,null,null,null,null,"",0,0,""]
["",null,null,null,null,null,null,null,null,null,null,"",0,0,""]
["",null,null,null,null,null,null,null,null,null,null,"",0,0,""]
["",null,null,null,null,null,null,null,null,null,null,"",0,0,""]
["",null,null,null,null,null,null,null,null,null,null,"",0,0,""]
["",null,null,null,null,null,null,null,null,null,null,"",0,0,""]
["",null,null,null,null,null,null,null,null,null,null,"",0,0,""]
["",null,null,null,null,null,null,null,null,null,null,"",0,0,""]
["",null,null,null,null,null,null,null,null,null,null,"",0,0,""]
["",null,null,null,null,null,null,null,null,null,null,"",0,0,""]
["",null,null,null,null,null,null,null,null,null,null,"",0,0,""]
["",null,null,null,null,null,null,null,null,null,null,"",0,0,""]
["",null,null,null,null,null,null,null,null,null,null,"",0,0,""]
["",null,null,null,null,null,null,null,null,null,null,"",0,0,""]
["",null,null,null,null,null,null,null,null,null,null,"",0,0,""]
["",null,null,null,null,null,null,null,null,null,null,"",0,0,""]
["",null,null,null,null,null,null,null,null,null,null,"",0,0,""]
["",null,null,null,null,null,null,null,null,null,null,"",0,0,""]
["",null,null,null,null,null,null,null,null,null,null,"",0,0,""]
["",null,null,null,null,null,null,null,null,null,null,"",0,0,""]
["",null,null,null,null,null,null,null,null,null,null,"",0,0,""]
["",null,null,null,null,null,null,null,null,null,null,"",0,0,""]
["",null,null,null,null,null,null,null,null,null,null,"",0,0,""]
["",null,null,null,null,null,null,null,null,null,null,"",0,0,""]
["",null,null,null,null,null,null,null,null,null,null,"",0,0,""]
["",null,null,null,null,null,null,null,null,null,null,"",0,0,""]
["",null,null,null,null,null,null,null,null,null,null,"",0,0,""]
["",null,null,null,null,null,null,null,null,null,null,"",0,0,""]
["",null,null,null,null,null,null,null,null,null,null,"",0,0,""]
["",null,null,null,null,null,null,null,null,null,null,"",0,0,""]
["",null,null,null,null,null,null,null,null,null,null,"",0,0,""]
["",null,null,null,null,null,null,null,null,null,null,"",0,0,""]
["",null,null,null,null,null,null,null,null,null,null,"",0,0,""]
["",null,null,null,null,null,null,null,null,null,null,"",0,0,""]
["",null,null,null,null,null,null,null,null,null,null,"",0,0,""]
["",null,null,null,null,null,null,null,null,null,null,"",0,0,""]
["",null,null,null,null,null,null,null,null,null,null,"",0,0,""]
["",null,null,null,null,null,null,null,null,null,null,"",0,0,""]
["",null,null,null,null,null,null,null,null,null,null,"",0,0,""]
["",null,null,null,null,null,null,null,null,null,null,"",0,0,""]
["",null,null,null,null,null,null,null,null,null,null,"",0,0,""]
["",null,null,null,null,null,null,null,null,null,null,"",0,0,""]
["",null,null,null,null,null,null,null,null,null,null,"",0,0,""]
["",null,null,null,null,null,null,null,null,null,null,"",0,0,""]
["",null,null,null,null,null,null,null,null,null,null,"",0,0,""]
["",null,null,null,null,null,null,null,null,null,null,"",0,0,""]
["",null,null,null,null,null,null,null,null,null,null,"",0,0,""]
["",null,null,null,null,null,null,null,null,null,null,"",0,0,""]
["",null,null,null,null,null,null,null,null,null,null,"",0,0,""]
["",null,null,null,null,null,null,null,null,null,null,"",0,0,""]
["",null,null,null,null,null,null,null,null,null,null,"",0,0,""]
["",null,null,null,null,null,null,null,null,null,null,"",0,0,""]
["",null,null,null,null,null,null,null,null,null,null,"",0,0,""]
["",null,null,null,null,null,null,null,null,null,null,"",0,0,""]
["",null,null,null,null,null,null,null,null,null,null,"",0,0,""]
["",null,null,null,null,null,null,null,null,null,null,"",0,0,""]
["",null,null,null,null,null,null,null,null,null,null,"",0,0,""]
["",null,null,null,null,null,null,null,null,null,null,"",0,0,""]
["",null,null,null,null,null,null,null,null,null,null,"",0,0,""]
["",null,null,null,null,null,null,null,null,null,null,"",0,0,""]
["",null,null,null,null,null,null,null,null,null,null,"",0,0,""]
["",null,null,null,null,null,null,null,null,null,null,"",0,0,""]
["",null,null,null,null,null,null,null,null,null,null,"",0,0,""]
["",null,null,null,null,null,null,null,null,null,null,"",0,0,""]
["",null,null,null,null,null,null,null,null,null,null,"",0,0,""]
["",null,null,null,null,null,null,null,null,null,null,"",0,0,""]
["",null,null,null,null,null,null,null,null,null,null,{"$f":"UPPER(IF(K65914<>0,valuta,\"\"))","v":""},0,0,""]
["",null,null,null,null,null,null,null,null,null,null,"",0,0,""]
["",null,null,null,null,null,null,null,null,null,null,"",0,0,""]
["",null,null,null,null,null,null,null,null,null,null,"",0,0,""]
["",null,null,null,null,null,null,null,null,null,null,"",0,0,""]
["",null,null,null,null,null,null,null,null,null,null,"",0,0,""]
["",null,null,null,null,null,null,null,null,null,null,"",0,0,""]
["",null,null,null,null,null,null,null,null,null,null,"",0,0,""]
["",null,null,null,null,null,null,null,null,null,null,{"$f":"UPPER(IF(K66170<>0,valuta,\"\"))","v":""},0,0,""]
["",null,null,null,null,null,null,null,null,null,null,"",0,0,""]
["",null,null,null,null,null,null,null,null,null,null,"",0,0,""]
["",null,null,null,null,null,null,null,null,null,null,"",0,0,""]
["",null,null,null,null,null,null,null,null,null,null,"",0,0,""]
["",null,null,null,null,null,null,null,null,null,null,"",0,0,""]
["",null,null,null,null,null,null,null,null,null,null,"",0,0,""]
["",null,null,null,null,null,null,null,null,null,null,"",0,0,""]
["",null,null,null,null,null,null,null,null,null,null,"",0,0,""]
["",null,null,null,null,null,null,null,null,null,null,"",0,0,""]
["",null,null,null,null,null,null,null,null,null,null,"",0,0,""]
["",null,null,null,null,null,null,null,null,null,null,"",0,0,""]
["",null,null,null,null,null,null,null,null,null,null,"",0,0,""]
["",null,null,null,null,null,null,null,null,null,null,"",0,0,""]
["",null,null,null,null,null,null,null,null,null,null,"",0,0,""]
["",null,null,null,null,null,null,null,null,null,null,"",0,0,""]
["",null,null,null,null,null,null,null,null,null,null,"",0,0,""]
["",null,null,null,null,null,null,null,null,null,null,"",0,0,""]
["",null,null,null,null,null,null,null,null,null,null,"",0,0,""]
["",null,null,null,null,null,null,null,null,null,null,"",0,0,""]
["",null,null,null,null,null,null,null,null,null,null,"",0,0,""]
["",null,null,null,null,null,null,null,null,null,null,"",0,0,""]
[{"$f":"IF(AND(K66192<>0,$I$8=0,$I$9=\"OK \"),\"update_data\",\"\")","v":""},null,null,null,null,null,null,null,null,null,null,"",{"$f":"ROUND(K66192,2)","v":0},{"$f":"ROUND(K66192,2)","v":0},{"$f":"IF(AND(C66192=\"\",K66192<>0),\"Kombination INST/Proj felaktig\",IF(OR(C66192=LEFT(E66192,2),E66192=\"\"),\"\",\"Kombination INST/Proj felaktig\"))","v":""}]
["",null,null,null,null,null,null,null,null,null,null,"",0,0,""]
["",null,null,null,null,null,null,null,null,null,null,"",0,0,""]
["",null,null,null,null,null,null,null,null,null,null,"",0,0,""]
["",null,null,null,null,null,null,null,null,null,null,"",0,0,""]
["",null,null,null,null,null,null,null,null,null,null,"",0,0,""]
["",null,null,null,null,null,null,null,null,null,null,"",0,0,""]
["",null,null,null,null,null,null,null,null,null,null,"",0,0,""]
["",null,null,null,null,null,null,null,null,null,null,"",0,0,""]
["",null,null,null,null,null,null,null,null,null,null,"",0,0,""]
["",null,null,null,null,null,null,null,null,null,null,"",0,0,""]
["",null,null,null,null,null,null,null,null,null,null,"",0,0,""]
["",null,null,null,null,null,null,null,null,null,null,"",0,0,""]
["",null,null,null,null,null,null,null,null,null,null,"",0,0,""]
["",null,null,null,null,null,null,null,null,null,null,"",0,0,""]
["",null,null,null,null,null,null,null,null,null,null,"",0,0,""]
["",null,null,null,null,null,null,null,null,null,null,"",0,0,""]
["",null,null,null,null,null,null,null,null,null,null,"",0,0,""]
["",null,null,null,null,null,null,null,null,null,null,"",0,0,""]
["",null,null,null,null,null,null,null,null,null,null,"",0,0,""]
["",null,null,null,null,null,null,null,null,null,null,"",0,0,""]
["",null,null,null,null,null,null,null,null,null,null,"",0,0,""]
["",null,null,null,null,null,null,null,null,null,null,"",0,0,""]
["",null,null,null,null,null,null,null,null,null,null,"",0,0,""]
["",null,null,null,null,null,null,null,null,null,null,"",0,0,""]
["",null,null,null,null,null,null,null,null,null,null,"",0,0,""]
["",null,null,null,null,null,null,null,null,null,null,"",0,0,""]
["",null,null,null,null,null,null,null,null,null,null,"",0,0,""]
["",null,null,null,null,null,null,null,null,null,null,"",0,0,""]
["",null,null,null,null,null,null,null,null,null,null,"",0,0,""]
["",null,null,null,null,null,null,null,null,null,null,"",0,0,""]
["",null,null,null,null,null,null,null,null,null,null,"",0,0,""]
["",null,null,null,null,null,null,null,null,null,null,"",0,0,""]
["",null,null,null,null,null,null,null,null,null,null,"",0,0,""]
["",null,null,null,null,null,null,null,null,null,null,"",0,0,""]
["",null,null,null,null,null,null,null,null,null,null,"",0,0,""]
["",null,null,null,null,null,null,null,null,null,null,"",0,0,""]
["",null,null,null,null,null,null,null,null,null,null,"",0,0,""]
["",null,null,null,null,null,null,null,null,null,null,"",0,0,""]
["",null,null,null,null,null,null,null,null,null,null,"",0,0,""]
["",null,null,null,null,null,null,null,null,null,null,"",0,0,""]
["",null,null,null,null,null,null,null,null,null,null,"",0,0,""]
["",null,null,null,null,null,null,null,null,null,null,{"$f":"UPPER(IF(K66234<>0,valuta,\"\"))","v":""},0,0,""]
["",null,null,null,null,null,null,null,null,null,null,"",0,0,""]
["",null,null,null,null,null,null,null,null,null,null,"",0,0,""]
["",null,null,null,null,null,null,null,null,null,null,"",0,0,""]
["",null,null,null,null,null,null,null,null,null,null,"",0,0,""]
["",null,null,null,null,null,null,null,null,null,null,"",0,0,""]
["",null,null,null,null,null,null,null,null,null,null,"",0,0,""]
["",null,null,null,null,null,null,null,null,null,null,"",0,0,""]
["",null,null,null,null,null,null,null,null,null,null,"",0,0,""]
["",null,null,null,null,null,null,null,null,null,null,"",0,0,""]
["",null,null,null,null,null,null,null,null,null,null,"",0,0,""]
["",null,null,null,null,null,null,null,null,null,null,"",0,0,""]
["",null,null,null,null,null,null,null,null,null,null,"",0,0,""]
["",null,null,null,null,null,null,null,null,null,null,"",0,0,""]
["",null,null,null,null,null,null,null,null,null,null,"",0,0,""]
["",null,null,null,null,null,null,null,null,null,null,"",0,0,""]
["",null,null,null,null,null,null,null,null,null,null,"",0,0,""]
["",null,null,null,null,null,null,null,null,null,null,"",0,0,""]
["",null,null,null,null,null,null,null,null,null,null,"",0,0,""]
["",null,null,null,null,null,null,null,null,null,null,"",0,0,""]
["",null,null,null,null,null,null,null,null,null,null,"",0,0,""]
["",null,null,null,null,null,null,null,null,null,null,"",0,0,""]
[{"$f":"IF(AND(K66256<>0,$I$8=0,$I$9=\"OK \"),\"update_data\",\"\")","v":""},null,null,null,null,null,null,null,null,null,null,"",{"$f":"ROUND(K66256,2)","v":0},{"$f":"ROUND(K66256,2)","v":0},{"$f":"IF(AND(C66256=\"\",K66256<>0),\"Kombination INST/Proj felaktig\",IF(OR(C66256=LEFT(E66256,2),E66256=\"\"),\"\",\"Kombination INST/Proj felaktig\"))","v":""}]
["",null,null,null,null,null,null,null,null,null,null,"",0,0,""]
["",null,null,null,null,null,null,null,null,null,null,"",0,0,""]
["",null,null,null,null,null,null,null,null,null,null,"",0,0,""]
["",null,null,null,null,null,null,null,null,null,null,"",0,0,""]
["",null,null,null,null,null,null,null,null,null,null,"",0,0,""]
["",null,null,null,null,null,null,null,null,null,null,"",0,0,""]
["",null,null,null,null,null,null,null,null,null,null,"",0,0,""]
["",null,null,null,null,null,null,null,null,null,null,"",0,0,""]
["",null,null,null,null,null,null,null,null,null,null,"",0,0,""]
["",null,null,null,null,null,null,null,null,null,null,"",0,0,""]
["",null,null,null,null,null,null,null,null,null,null,"",0,0,""]
["",null,null,null,null,null,null,null,null,null,null,"",0,0,""]
["",null,null,null,null,null,null,null,null,null,null,"",0,0,""]
["",null,null,null,null,null,null,null,null,null,null,"",0,0,""]
["",null,null,null,null,null,null,null,null,null,null,"",0,0,""]
["",null,null,null,null,null,null,null,null,null,null,"",0,0,""]
["",null,null,null,null,null,null,null,null,null,null,"",0,0,""]
["",null,null,null,null,null,null,null,null,null,null,"",0,0,""]
["",null,null,null,null,null,null,null,null,null,null,"",0,0,""]
["",null,null,null,null,null,null,null,null,null,null,"",0,0,""]
["",null,null,null,null,null,null,null,null,null,null,"",0,0,""]
["",null,null,null,null,null,null,null,null,null,null,"",0,0,""]
["",null,null,null,null,null,null,null,null,null,null,"",0,0,""]
["",null,null,null,null,null,null,null,null,null,null,"",0,0,""]
["",null,null,null,null,null,null,null,null,null,null,"",0,0,""]
["",null,null,null,null,null,null,null,null,null,null,"",0,0,""]
["",null,null,null,null,null,null,null,null,null,null,"",0,0,""]
["",null,null,null,null,null,null,null,null,null,null,"",0,0,""]
["",null,null,null,null,null,null,null,null,null,null,"",0,0,""]
["",null,null,null,null,null,null,null,null,null,null,"",0,0,""]
["",null,null,null,null,null,null,null,null,null,null,"",0,0,""]
["",null,null,null,null,null,null,null,null,null,null,"",0,0,""]
["",null,null,null,null,null,null,null,null,null,null,"",0,0,""]
["",null,null,null,null,null,null,null,null,null,null,"",0,0,""]
["",null,null,null,null,null,null,null,null,null,null,"",0,0,""]
["",null,null,null,null,null,null,null,null,null,null,"",0,0,""]
["",null,null,null,null,null,null,null,null,null,null,"",0,0,""]
["",null,null,null,null,null,null,null,null,null,null,"",0,0,""]
["",null,null,null,null,null,null,null,null,null,null,"",0,0,""]
["",null,null,null,null,null,null,null,null,null,null,"",0,0,""]
["",null,null,null,null,null,null,null,null,null,null,"",0,0,""]
["",null,null,null,null,null,null,null,null,null,null,{"$f":"UPPER(IF(K66298<>0,valuta,\"\"))","v":""},0,0,""]
["",null,null,null,null,null,null,null,null,null,null,"",0,0,""]
["",null,null,null,null,null,null,null,null,null,null,"",0,0,""]
["",null,null,null,null,null,null,null,null,null,null,"",0,0,""]
["",null,null,null,null,null,null,null,null,null,null,"",0,0,""]
["",null,null,null,null,null,null,null,null,null,null,"",0,0,""]
["",null,null,null,null,null,null,null,null,null,null,"",0,0,""]
["",null,null,null,null,null,null,null,null,null,null,"",0,0,""]
["",null,null,null,null,null,null,null,null,null,null,"",0,0,""]
["",null,null,null,null,null,null,null,null,null,null,"",0,0,""]
["",null,null,null,null,null,null,null,null,null,null,"",0,0,""]
["",null,null,null,null,null,null,null,null,null,null,"",0,0,""]
["",null,null,null,null,null,null,null,null,null,null,"",0,0,""]
["",null,null,null,null,null,null,null,null,null,null,"",0,0,""]
["",null,null,null,null,null,null,null,null,null,null,"",0,0,""]
["",null,null,null,null,null,null,null,null,null,null,"",0,0,""]
["",null,null,null,null,null,null,null,null,null,null,"",0,0,""]
["",null,null,null,null,null,null,null,null,null,null,"",0,0,""]
["",null,null,null,null,null,null,null,null,null,null,"",0,0,""]
["",null,null,null,null,null,null,null,null,null,null,"",0,0,""]
["",null,null,null,null,null,null,null,null,null,null,"",0,0,""]
["",null,null,null,null,null,null,null,null,null,null,"",0,0,""]
[{"$f":"IF(AND(K66320<>0,$I$8=0,$I$9=\"OK \"),\"update_data\",\"\")","v":""},null,null,null,null,null,null,null,null,null,null,"",{"$f":"ROUND(K66320,2)","v":0},{"$f":"ROUND(K66320,2)","v":0},{"$f":"IF(AND(C66320=\"\",K66320<>0),\"Kombination INST/Proj felaktig\",IF(OR(C66320=LEFT(E66320,2),E66320=\"\"),\"\",\"Kombination INST/Proj felaktig\"))","v":""}]
["",null,null,null,null,null,null,null,null,null,null,"",0,0,""]
["",null,null,null,null,null,null,null,null,null,null,"",0,0,""]
["",null,null,null,null,null,null,null,null,null,null,"",0,0,""]
["",null,null,null,null,null,null,null,null,null,null,"",0,0,""]
["",null,null,null,null,null,null,null,null,null,null,"",0,0,""]
["",null,null,null,null,null,null,null,null,null,null,"",0,0,""]
["",null,null,null,null,null,null,null,null,null,null,"",0,0,""]
["",null,null,null,null,null,null,null,null,null,null,"",0,0,""]
["",null,null,null,null,null,null,null,null,null,null,"",0,0,""]
["",null,null,null,null,null,null,null,null,null,null,"",0,0,""]
["",null,null,null,null,null,null,null,null,null,null,"",0,0,""]
["",null,null,null,null,null,null,null,null,null,null,"",0,0,""]
["",null,null,null,null,null,null,null,null,null,null,"",0,0,""]
["",null,null,null,null,null,null,null,null,null,null,"",0,0,""]
["",null,null,null,null,null,null,null,null,null,null,"",0,0,""]
["",null,null,null,null,null,null,null,null,null,null,"",0,0,""]
["",null,null,null,null,null,null,null,null,null,null,"",0,0,""]
["",null,null,null,null,null,null,null,null,null,null,"",0,0,""]
["",null,null,null,null,null,null,null,null,null,null,"",0,0,""]
["",null,null,null,null,null,null,null,null,null,null,"",0,0,""]
["",null,null,null,null,null,null,null,null,null,null,"",0,0,""]
["",null,null,null,null,null,null,null,null,null,null,"",0,0,""]
["",null,null,null,null,null,null,null,null,null,null,"",0,0,""]
["",null,null,null,null,null,null,null,null,null,null,"",0,0,""]
["",null,null,null,null,null,null,null,null,null,null,"",0,0,""]
["",null,null,null,null,null,null,null,null,null,null,"",0,0,""]
["",null,null,null,null,null,null,null,null,null,null,"",0,0,""]
["",null,null,null,null,null,null,null,null,null,null,"",0,0,""]
["",null,null,null,null,null,null,null,null,null,null,"",0,0,""]
["",null,null,null,null,null,null,null,null,null,null,"",0,0,""]
["",null,null,null,null,null,null,null,null,null,null,"",0,0,""]
["",null,null,null,null,null,null,null,null,null,null,"",0,0,""]
["",null,null,null,null,null,null,null,null,null,null,"",0,0,""]
["",null,null,null,null,null,null,null,null,null,null,"",0,0,""]
["",null,null,null,null,null,null,null,null,null,null,"",0,0,""]
["",null,null,null,null,null,null,null,null,null,null,"",0,0,""]
["",null,null,null,null,null,null,null,null,null,null,"",0,0,""]
["",null,null,null,null,null,null,null,null,null,null,"",0,0,""]
["",null,null,null,null,null,null,null,null,null,null,"",0,0,""]
["",null,null,null,null,null,null,null,null,null,null,"",0,0,""]
["",null,null,null,null,null,null,null,null,null,null,"",0,0,""]
["",null,null,null,null,null,null,null,null,null,null,{"$f":"UPPER(IF(K66362<>0,valuta,\"\"))","v":""},0,0,""]
["",null,null,null,null,null,null,null,null,null,null,"",0,0,""]
["",null,null,null,null,null,null,null,null,null,null,"",0,0,""]
["",null,null,null,null,null,null,null,null,null,null,"",0,0,""]
["",null,null,null,null,null,null,null,null,null,null,"",0,0,""]
["",null,null,null,null,null,null,null,null,null,null,"",0,0,""]
["",null,null,null,null,null,null,null,null,null,null,"",0,0,""]
["",null,null,null,null,null,null,null,null,null,null,"",0,0,""]
["",null,null,null,null,null,null,null,null,null,null,"",0,0,""]
["",null,null,null,null,null,null,null,null,null,null,"",0,0,""]
["",null,null,null,null,null,null,null,null,null,null,"",0,0,""]
["",null,null,null,null,null,null,null,null,null,null,"",0,0,""]
["",null,null,null,null,null,null,null,null,null,null,"",0,0,""]
["",null,null,null,null,null,null,null,null,null,null,"",0,0,""]
["",null,null,null,null,null,null,null,null,null,null,"",0,0,""]
["",null,null,null,null,null,null,null,null,null,null,"",0,0,""]
["",null,null,null,null,null,null,null,null,null,null,"",0,0,""]
["",null,null,null,null,null,null,null,null,null,null,"",0,0,""]
["",null,null,null,null,null,null,null,null,null,null,"",0,0,""]
["",null,null,null,null,null,null,null,null,null,null,"",0,0,""]
["",null,null,null,null,null,null,null,null,null,null,"",0,0,""]
["",null,null,null,null,null,null,null,null,null,null,"",0,0,""]
[{"$f":"IF(AND(K66384<>0,$I$8=0,$I$9=\"OK \"),\"update_data\",\"\")","v":""},null,null,null,null,null,null,null,null,null,null,"",{"$f":"ROUND(K66384,2)","v":0},{"$f":"ROUND(K66384,2)","v":0},{"$f":"IF(AND(C66384=\"\",K66384<>0),\"Kombination INST/Proj felaktig\",IF(OR(C66384=LEFT(E66384,2),E66384=\"\"),\"\",\"Kombination INST/Proj felaktig\"))","v":""}]
["",null,null,null,null,null,null,null,null,null,null,"",0,0,""]
["",null,null,null,null,null,null,null,null,null,null,"",0,0,""]
["",null,null,null,null,null,null,null,null,null,null,"",0,0,""]
["",null,null,null,null,null,null,null,null,null,null,"",0,0,""]
["",null,null,null,null,null,null,null,null,null,null,"",0,0,""]
["",null,null,null,null,null,null,null,null,null,null,"",0,0,""]
["",null,null,null,null,null,null,null,null,null,null,"",0,0,""]
["",null,null,null,null,null,null,null,null,null,null,"",0,0,""]
["",null,null,null,null,null,null,null,null,null,null,"",0,0,""]
["",null,null,null,null,null,null,null,null,null,null,"",0,0,""]
["",null,null,null,null,null,null,null,null,null,null,"",0,0,""]
["",null,null,null,null,null,null,null,null,null,null,"",0,0,""]
["",null,null,null,null,null,null,null,null,null,null,"",0,0,""]
["",null,null,null,null,null,null,null,null,null,null,"",0,0,""]
["",null,null,null,null,null,null,null,null,null,null,"",0,0,""]
["",null,null,null,null,null,null,null,null,null,null,"",0,0,""]
["",null,null,null,null,null,null,null,null,null,null,"",0,0,""]
["",null,null,null,null,null,null,null,null,null,null,"",0,0,""]
["",null,null,null,null,null,null,null,null,null,null,"",0,0,""]
["",null,null,null,null,null,null,null,null,null,null,"",0,0,""]
["",null,null,null,null,null,null,null,null,null,null,"",0,0,""]
["",null,null,null,null,null,null,null,null,null,null,"",0,0,""]
["",null,null,null,null,null,null,null,null,null,null,"",0,0,""]
["",null,null,null,null,null,null,null,null,null,null,"",0,0,""]
["",null,null,null,null,null,null,null,null,null,null,"",0,0,""]
["",null,null,null,null,null,null,null,null,null,null,"",0,0,""]
["",null,null,null,null,null,null,null,null,null,null,"",0,0,""]
["",null,null,null,null,null,null,null,null,null,null,"",0,0,""]
["",null,null,null,null,null,null,null,null,null,null,"",0,0,""]
["",null,null,null,null,null,null,null,null,null,null,"",0,0,""]
["",null,null,null,null,null,null,null,null,null,null,"",0,0,""]
["",null,null,null,null,null,null,null,null,null,null,"",0,0,""]
["",null,null,null,null,null,null,null,null,null,null,"",0,0,""]
["",null,null,null,null,null,null,null,null,null,null,"",0,0,""]
["",null,null,null,null,null,null,null,null,null,null,"",0,0,""]
["",null,null,null,null,null,null,null,null,null,null,"",0,0,""]
["",null,null,null,null,null,null,null,null,null,null,"",0,0,""]
["",null,null,null,null,null,null,null,null,null,null,"",0,0,""]
["",null,null,null,null,null,null,null,null,null,null,"",0,0,""]
["",null,null,null,null,null,null,null,null,null,null,"",0,0,""]
["",null,null,null,null,null,null,null,null,null,null,"",0,0,""]
["",null,null,null,null,null,null,null,null,null,null,{"$f":"UPPER(IF(K66426<>0,valuta,\"\"))","v":""},0,0,""]
["",null,null,null,null,null,null,null,null,null,null,"",0,0,""]
["",null,null,null,null,null,null,null,null,null,null,"",0,0,""]
["",null,null,null,null,null,null,null,null,null,null,"",0,0,""]
["",null,null,null,null,null,null,null,null,null,null,"",0,0,""]
["",null,null,null,null,null,null,null,null,null,null,"",0,0,""]
["",null,null,null,null,null,null,null,null,null,null,"",0,0,""]
["",null,null,null,null,null,null,null,null,null,null,"",0,0,""]
["",null,null,null,null,null,null,null,null,null,null,"",0,0,""]
["",null,null,null,null,null,null,null,null,null,null,"",0,0,""]
["",null,null,null,null,null,null,null,null,null,null,"",0,0,""]
["",null,null,null,null,null,null,null,null,null,null,"",0,0,""]
["",null,null,null,null,null,null,null,null,null,null,"",0,0,""]
["",null,null,null,null,null,null,null,null,null,null,"",0,0,""]
["",null,null,null,null,null,null,null,null,null,null,"",0,0,""]
["",null,null,null,null,null,null,null,null,null,null,"",0,0,""]
["",null,null,null,null,null,null,null,null,null,null,"",0,0,""]
["",null,null,null,null,null,null,null,null,null,null,"",0,0,""]
["",null,null,null,null,null,null,null,null,null,null,"",0,0,""]
["",null,null,null,null,null,null,null,null,null,null,"",0,0,""]
["",null,null,null,null,null,null,null,null,null,null,"",0,0,""]
["",null,null,null,null,null,null,null,null,null,null,"",0,0,""]
[{"$f":"IF(AND(K66448<>0,$I$8=0,$I$9=\"OK \"),\"update_data\",\"\")","v":""},null,null,null,null,null,null,null,null,null,null,"",{"$f":"ROUND(K66448,2)","v":0},{"$f":"ROUND(K66448,2)","v":0},{"$f":"IF(AND(C66448=\"\",K66448<>0),\"Kombination INST/Proj felaktig\",IF(OR(C66448=LEFT(E66448,2),E66448=\"\"),\"\",\"Kombination INST/Proj felaktig\"))","v":""}]
["",null,null,null,null,null,null,null,null,null,null,"",0,0,""]
["",null,null,null,null,null,null,null,null,null,null,"",0,0,""]
["",null,null,null,null,null,null,null,null,null,null,"",0,0,""]
["",null,null,null,null,null,null,null,null,null,null,"",0,0,""]
["",null,null,null,null,null,null,null,null,null,null,"",0,0,""]
["",null,null,null,null,null,null,null,null,null,null,"",0,0,""]
["",null,null,null,null,null,null,null,null,null,null,"",0,0,""]
["",null,null,null,null,null,null,null,null,null,null,"",0,0,""]
["",null,null,null,null,null,null,null,null,null,null,"",0,0,""]
["",null,null,null,null,null,null,null,null,null,null,"",0,0,""]
["",null,null,null,null,null,null,null,null,null,null,"",0,0,""]
["",null,null,null,null,null,null,null,null,null,null,"",0,0,""]
["",null,null,null,null,null,null,null,null,null,null,"",0,0,""]
["",null,null,null,null,null,null,null,null,null,null,"",0,0,""]
["",null,null,null,null,null,null,null,null,null,null,"",0,0,""]
["",null,null,null,null,null,null,null,null,null,null,"",0,0,""]
["",null,null,null,null,null,null,null,null,null,null,"",0,0,""]
["",null,null,null,null,null,null,null,null,null,null,"",0,0,""]
["",null,null,null,null,null,null,null,null,null,null,"",0,0,""]
["",null,null,null,null,null,null,null,null,null,null,"",0,0,""]
["",null,null,null,null,null,null,null,null,null,null,"",0,0,""]
["",null,null,null,null,null,null,null,null,null,null,"",0,0,""]
["",null,null,null,null,null,null,null,null,null,null,"",0,0,""]
["",null,null,null,null,null,null,null,null,null,null,"",0,0,""]
["",null,null,null,null,null,null,null,null,null,null,"",0,0,""]
["",null,null,null,null,null,null,null,null,null,null,"",0,0,""]
["",null,null,null,null,null,null,null,null,null,null,"",0,0,""]
["",null,null,null,null,null,null,null,null,null,null,"",0,0,""]
["",null,null,null,null,null,null,null,null,null,null,"",0,0,""]
["",null,null,null,null,null,null,null,null,null,null,"",0,0,""]
["",null,null,null,null,null,null,null,null,null,null,"",0,0,""]
["",null,null,null,null,null,null,null,null,null,null,"",0,0,""]
["",null,null,null,null,null,null,null,null,null,null,"",0,0,""]
["",null,null,null,null,null,null,null,null,null,null,"",0,0,""]
["",null,null,null,null,null,null,null,null,null,null,"",0,0,""]
["",null,null,null,null,null,null,null,null,null,null,"",0,0,""]
["",null,null,null,null,null,null,null,null,null,null,"",0,0,""]
["",null,null,null,null,null,null,null,null,null,null,"",0,0,""]
["",null,null,null,null,null,null,null,null,null,null,"",0,0,""]
["",null,null,null,null,null,null,null,null,null,null,"",0,0,""]
["",null,null,null,null,null,null,null,null,null,null,"",0,0,""]
["",null,null,null,null,null,null,null,null,null,null,{"$f":"UPPER(IF(K66490<>0,valuta,\"\"))","v":""},0,0,""]
["",null,null,null,null,null,null,null,null,null,null,"",0,0,""]
["",null,null,null,null,null,null,null,null,null,null,"",0,0,""]
["",null,null,null,null,null,null,null,null,null,null,"",0,0,""]
["",null,null,null,null,null,null,null,null,null,null,"",0,0,""]
["",null,null,null,null,null,null,null,null,null,null,"",0,0,""]
["",null,null,null,null,null,null,null,null,null,null,"",0,0,""]
["",null,null,null,null,null,null,null,null,null,null,"",0,0,""]
["",null,null,null,null,null,null,null,null,null,null,"",0,0,""]
["",null,null,null,null,null,null,null,null,null,null,"",0,0,""]
["",null,null,null,null,null,null,null,null,null,null,"",0,0,""]
["",null,null,null,null,null,null,null,null,null,null,"",0,0,""]
["",null,null,null,null,null,null,null,null,null,null,"",0,0,""]
["",null,null,null,null,null,null,null,null,null,null,"",0,0,""]
["",null,null,null,null,null,null,null,null,null,null,"",0,0,""]
["",null,null,null,null,null,null,null,null,null,null,"",0,0,""]
["",null,null,null,null,null,null,null,null,null,null,"",0,0,""]
["",null,null,null,null,null,null,null,null,null,null,"",0,0,""]
["",null,null,null,null,null,null,null,null,null,null,"",0,0,""]
["",null,null,null,null,null,null,null,null,null,null,"",0,0,""]
["",null,null,null,null,null,null,null,null,null,null,"",0,0,""]
["",null,null,null,null,null,null,null,null,null,null,"",0,0,""]
[{"$f":"IF(AND(K66512<>0,$I$8=0,$I$9=\"OK \"),\"update_data\",\"\")","v":""},null,null,null,null,null,null,null,null,null,null,"",{"$f":"ROUND(K66512,2)","v":0},{"$f":"ROUND(K66512,2)","v":0},{"$f":"IF(AND(C66512=\"\",K66512<>0),\"Kombination INST/Proj felaktig\",IF(OR(C66512=LEFT(E66512,2),E66512=\"\"),\"\",\"Kombination INST/Proj felaktig\"))","v":""}]
["",null,null,null,null,null,null,null,null,null,null,"",0,0,""]
["",null,null,null,null,null,null,null,null,null,null,"",0,0,""]
["",null,null,null,null,null,null,null,null,null,null,"",0,0,""]
["",null,null,null,null,null,null,null,null,null,null,"",0,0,""]
["",null,null,null,null,null,null,null,null,null,null,"",0,0,""]
["",null,null,null,null,null,null,null,null,null,null,"",0,0,""]
["",null,null,null,null,null,null,null,null,null,null,"",0,0,""]
["",null,null,null,null,null,null,null,null,null,null,"",0,0,""]
["",null,null,null,null,null,null,null,null,null,null,"",0,0,""]
["",null,null,null,null,null,null,null,null,null,null,"",0,0,""]
["",null,null,null,null,null,null,null,null,null,null,"",0,0,""]
["",null,null,null,null,null,null,null,null,null,null,"",0,0,""]
["",null,null,null,null,null,null,null,null,null,null,"",0,0,""]
["",null,null,null,null,null,null,null,null,null,null,"",0,0,""]
["",null,null,null,null,null,null,null,null,null,null,"",0,0,""]
["",null,null,null,null,null,null,null,null,null,null,"",0,0,""]
["",null,null,null,null,null,null,null,null,null,null,"",0,0,""]
["",null,null,null,null,null,null,null,null,null,null,"",0,0,""]
["",null,null,null,null,null,null,null,null,null,null,"",0,0,""]
["",null,null,null,null,null,null,null,null,null,null,"",0,0,""]
["",null,null,null,null,null,null,null,null,null,null,"",0,0,""]
["",null,null,null,null,null,null,null,null,null,null,"",0,0,""]
["",null,null,null,null,null,null,null,null,null,null,"",0,0,""]
["",null,null,null,null,null,null,null,null,null,null,"",0,0,""]
["",null,null,null,null,null,null,null,null,null,null,"",0,0,""]
["",null,null,null,null,null,null,null,null,null,null,"",0,0,""]
["",null,null,null,null,null,null,null,null,null,null,"",0,0,""]
["",null,null,null,null,null,null,null,null,null,null,"",0,0,""]
["",null,null,null,null,null,null,null,null,null,null,"",0,0,""]
["",null,null,null,null,null,null,null,null,null,null,"",0,0,""]
["",null,null,null,null,null,null,null,null,null,null,"",0,0,""]
["",null,null,null,null,null,null,null,null,null,null,"",0,0,""]
["",null,null,null,null,null,null,null,null,null,null,"",0,0,""]
["",null,null,null,null,null,null,null,null,null,null,"",0,0,""]
["",null,null,null,null,null,null,null,null,null,null,"",0,0,""]
["",null,null,null,null,null,null,null,null,null,null,"",0,0,""]
["",null,null,null,null,null,null,null,null,null,null,"",0,0,""]
["",null,null,null,null,null,null,null,null,null,null,"",0,0,""]
["",null,null,null,null,null,null,null,null,null,null,"",0,0,""]
["",null,null,null,null,null,null,null,null,null,null,"",0,0,""]
["",null,null,null,null,null,null,null,null,null,null,"",0,0,""]
["",null,null,null,null,null,null,null,null,null,null,{"$f":"UPPER(IF(K66554<>0,valuta,\"\"))","v":""},0,0,""]
["",null,null,null,null,null,null,null,null,null,null,"",0,0,""]
["",null,null,null,null,null,null,null,null,null,null,"",0,0,""]
["",null,null,null,null,null,null,null,null,null,null,"",0,0,""]
["",null,null,null,null,null,null,null,null,null,null,"",0,0,""]
["",null,null,null,null,null,null,null,null,null,null,"",0,0,""]
["",null,null,null,null,null,null,null,null,null,null,"",0,0,""]
["",null,null,null,null,null,null,null,null,null,null,"",0,0,""]
["",null,null,null,null,null,null,null,null,null,null,"",0,0,""]
["",null,null,null,null,null,null,null,null,null,null,"",0,0,""]
["",null,null,null,null,null,null,null,null,null,null,"",0,0,""]
["",null,null,null,null,null,null,null,null,null,null,"",0,0,""]
["",null,null,null,null,null,null,null,null,null,null,"",0,0,""]
["",null,null,null,null,null,null,null,null,null,null,"",0,0,""]
["",null,null,null,null,null,null,null,null,null,null,"",0,0,""]
["",null,null,null,null,null,null,null,null,null,null,"",0,0,""]
["",null,null,null,null,null,null,null,null,null,null,"",0,0,""]
["",null,null,null,null,null,null,null,null,null,null,"",0,0,""]
["",null,null,null,null,null,null,null,null,null,null,"",0,0,""]
["",null,null,null,null,null,null,null,null,null,null,"",0,0,""]
["",null,null,null,null,null,null,null,null,null,null,"",0,0,""]
["",null,null,null,null,null,null,null,null,null,null,"",0,0,""]
[{"$f":"IF(AND(K66576<>0,$I$8=0,$I$9=\"OK \"),\"update_data\",\"\")","v":""},null,null,null,null,null,null,null,null,null,null,"",{"$f":"ROUND(K66576,2)","v":0},{"$f":"ROUND(K66576,2)","v":0},{"$f":"IF(AND(C66576=\"\",K66576<>0),\"Kombination INST/Proj felaktig\",IF(OR(C66576=LEFT(E66576,2),E66576=\"\"),\"\",\"Kombination INST/Proj felaktig\"))","v":""}]
["",null,null,null,null,null,null,null,null,null,null,"",0,0,""]
["",null,null,null,null,null,null,null,null,null,null,"",0,0,""]
["",null,null,null,null,null,null,null,null,null,null,"",0,0,""]
["",null,null,null,null,null,null,null,null,null,null,"",0,0,""]
["",null,null,null,null,null,null,null,null,null,null,"",0,0,""]
["",null,null,null,null,null,null,null,null,null,null,"",0,0,""]
["",null,null,null,null,null,null,null,null,null,null,"",0,0,""]
["",null,null,null,null,null,null,null,null,null,null,"",0,0,""]
["",null,null,null,null,null,null,null,null,null,null,"",0,0,""]
["",null,null,null,null,null,null,null,null,null,null,"",0,0,""]
["",null,null,null,null,null,null,null,null,null,null,"",0,0,""]
["",null,null,null,null,null,null,null,null,null,null,"",0,0,""]
["",null,null,null,null,null,null,null,null,null,null,"",0,0,""]
["",null,null,null,null,null,null,null,null,null,null,"",0,0,""]
["",null,null,null,null,null,null,null,null,null,null,"",0,0,""]
["",null,null,null,null,null,null,null,null,null,null,"",0,0,""]
["",null,null,null,null,null,null,null,null,null,null,"",0,0,""]
["",null,null,null,null,null,null,null,null,null,null,"",0,0,""]
["",null,null,null,null,null,null,null,null,null,null,"",0,0,""]
["",null,null,null,null,null,null,null,null,null,null,"",0,0,""]
["",null,null,null,null,null,null,null,null,null,null,"",0,0,""]
["",null,null,null,null,null,null,null,null,null,null,"",0,0,""]
["",null,null,null,null,null,null,null,null,null,null,"",0,0,""]
["",null,null,null,null,null,null,null,null,null,null,"",0,0,""]
["",null,null,null,null,null,null,null,null,null,null,"",0,0,""]
["",null,null,null,null,null,null,null,null,null,null,"",0,0,""]
["",null,null,null,null,null,null,null,null,null,null,"",0,0,""]
["",null,null,null,null,null,null,null,null,null,null,"",0,0,""]
["",null,null,null,null,null,null,null,null,null,null,"",0,0,""]
["",null,null,null,null,null,null,null,null,null,null,"",0,0,""]
["",null,null,null,null,null,null,null,null,null,null,"",0,0,""]
["",null,null,null,null,null,null,null,null,null,null,"",0,0,""]
["",null,null,null,null,null,null,null,null,null,null,"",0,0,""]
["",null,null,null,null,null,null,null,null,null,null,"",0,0,""]
["",null,null,null,null,null,null,null,null,null,null,"",0,0,""]
["",null,null,null,null,null,null,null,null,null,null,"",0,0,""]
["",null,null,null,null,null,null,null,null,null,null,"",0,0,""]
["",null,null,null,null,null,null,null,null,null,null,"",0,0,""]
["",null,null,null,null,null,null,null,null,null,null,"",0,0,""]
["",null,null,null,null,null,null,null,null,null,null,"",0,0,""]
["",null,null,null,null,null,null,null,null,null,null,"",0,0,""]
["",null,null,null,null,null,null,null,null,null,null,{"$f":"UPPER(IF(K66618<>0,valuta,\"\"))","v":""},0,0,""]
["",null,null,null,null,null,null,null,null,null,null,"",0,0,""]
["",null,null,null,null,null,null,null,null,null,null,"",0,0,""]
["",null,null,null,null,null,null,null,null,null,null,"",0,0,""]
["",null,null,null,null,null,null,null,null,null,null,"",0,0,""]
["",null,null,null,null,null,null,null,null,null,null,"",0,0,""]
["",null,null,null,null,null,null,null,null,null,null,"",0,0,""]
["",null,null,null,null,null,null,null,null,null,null,"",0,0,""]
["",null,null,null,null,null,null,null,null,null,null,"",0,0,""]
["",null,null,null,null,null,null,null,null,null,null,"",0,0,""]
["",null,null,null,null,null,null,null,null,null,null,"",0,0,""]
["",null,null,null,null,null,null,null,null,null,null,"",0,0,""]
["",null,null,null,null,null,null,null,null,null,null,"",0,0,""]
["",null,null,null,null,null,null,null,null,null,null,"",0,0,""]
["",null,null,null,null,null,null,null,null,null,null,"",0,0,""]
["",null,null,null,null,null,null,null,null,null,null,"",0,0,""]
["",null,null,null,null,null,null,null,null,null,null,"",0,0,""]
["",null,null,null,null,null,null,null,null,null,null,"",0,0,""]
["",null,null,null,null,null,null,null,null,null,null,"",0,0,""]
["",null,null,null,null,null,null,null,null,null,null,"",0,0,""]
["",null,null,null,null,null,null,null,null,null,null,"",0,0,""]
["",null,null,null,null,null,null,null,null,null,null,"",0,0,""]
[{"$f":"IF(AND(K66640<>0,$I$8=0,$I$9=\"OK \"),\"update_data\",\"\")","v":""},null,null,null,null,null,null,null,null,null,null,"",{"$f":"ROUND(K66640,2)","v":0},{"$f":"ROUND(K66640,2)","v":0},{"$f":"IF(AND(C66640=\"\",K66640<>0),\"Kombination INST/Proj felaktig\",IF(OR(C66640=LEFT(E66640,2),E66640=\"\"),\"\",\"Kombination INST/Proj felaktig\"))","v":""}]
["",null,null,null,null,null,null,null,null,null,null,"",0,0,""]
["",null,null,null,null,null,null,null,null,null,null,"",0,0,""]
["",null,null,null,null,null,null,null,null,null,null,"",0,0,""]
["",null,null,null,null,null,null,null,null,null,null,"",0,0,""]
["",null,null,null,null,null,null,null,null,null,null,"",0,0,""]
["",null,null,null,null,null,null,null,null,null,null,"",0,0,""]
["",null,null,null,null,null,null,null,null,null,null,"",0,0,""]
["",null,null,null,null,null,null,null,null,null,null,"",0,0,""]
["",null,null,null,null,null,null,null,null,null,null,"",0,0,""]
["",null,null,null,null,null,null,null,null,null,null,"",0,0,""]
["",null,null,null,null,null,null,null,null,null,null,"",0,0,""]
["",null,null,null,null,null,null,null,null,null,null,"",0,0,""]
["",null,null,null,null,null,null,null,null,null,null,"",0,0,""]
["",null,null,null,null,null,null,null,null,null,null,"",0,0,""]
["",null,null,null,null,null,null,null,null,null,null,"",0,0,""]
["",null,null,null,null,null,null,null,null,null,null,"",0,0,""]
["",null,null,null,null,null,null,null,null,null,null,"",0,0,""]
["",null,null,null,null,null,null,null,null,null,null,"",0,0,""]
["",null,null,null,null,null,null,null,null,null,null,"",0,0,""]
["",null,null,null,null,null,null,null,null,null,null,"",0,0,""]
["",null,null,null,null,null,null,null,null,null,null,"",0,0,""]
["",null,null,null,null,null,null,null,null,null,null,"",0,0,""]
["",null,null,null,null,null,null,null,null,null,null,"",0,0,""]
["",null,null,null,null,null,null,null,null,null,null,"",0,0,""]
["",null,null,null,null,null,null,null,null,null,null,"",0,0,""]
["",null,null,null,null,null,null,null,null,null,null,"",0,0,""]
["",null,null,null,null,null,null,null,null,null,null,"",0,0,""]
["",null,null,null,null,null,null,null,null,null,null,"",0,0,""]
["",null,null,null,null,null,null,null,null,null,null,{"$f":"UPPER(IF(K66669<>0,valuta,\"\"))","v":""},0,0,""]

{"sheet":"Öresdiffar","index":2,"n_rows":18,"n_cols":13,"rows_kept":18,"cut":false,"hidden":false,"merged":[[0,1,0,10]]}
[null,"Det är möjligt att verifikationen som helhet går i noll men att det finns öresdiffar på konton som inte tillåts. Nedan ser ni om ni har sådana och på vilka konton. Rätta till dessa innan inläsning."]
[null,"Enskilda konton = 0","Summa","Tillsammans nedan konton = 0","Summa","Tillsammans nedan konton = 0","Summa","Tillsammans nedan konton = 0","Summa","Tillsammans nedan konton = 0","Summa"]
[null,39499,{"$f":"ROUND(SUMIFS(OmföringNy!$M$15:$M$30000,OmföringNy!$B$15:$B$30000,Öresdiffar!B3),2)","v":0},34119,{"$f":"ROUND(SUMIFS(OmföringNy!$M$15:$M$30000,OmföringNy!$B$15:$B$30000,Öresdiffar!D3),2)","v":0},34118,{"$f":"ROUND(SUMIFS(OmföringNy!$M$15:$M$30000,OmföringNy!$B$15:$B$30000,Öresdiffar!F3),2)","v":0},39498,{"$f":"ROUND(SUMIFS(OmföringNy!$M$15:$M$30000,OmföringNy!$B$15:$B$30000,Öresdiffar!H3),2)","v":0},34219,{"$f":"ROUND(SUMIFS(OmföringNy!$M$15:$M$30000,OmföringNy!$B$15:$B$30000,Öresdiffar!J3),2)","v":0}]
[null,49989,{"$f":"ROUND(SUMIFS(OmföringNy!$M$15:$M$30000,OmföringNy!$B$15:$B$30000,Öresdiffar!B4),2)","v":0},57219,{"$f":"ROUND(SUMIFS(OmföringNy!$M$15:$M$30000,OmföringNy!$B$15:$B$30000,Öresdiffar!D4),2)","v":0},50218,{"$f":"ROUND(SUMIFS(OmföringNy!$M$15:$M$30000,OmföringNy!$B$15:$B$30000,Öresdiffar!F4),2)","v":0},49988,{"$f":"ROUND(SUMIFS(OmföringNy!$M$15:$M$30000,OmföringNy!$B$15:$B$30000,Öresdiffar!H4),2)","v":0},50219,{"$f":"ROUND(SUMIFS(OmföringNy!$M$15:$M$30000,OmföringNy!$B$15:$B$30000,Öresdiffar!J4),2)","v":0}]
[null,39489,{"$f":"ROUND(SUMIFS(OmföringNy!$M$15:$M$30000,OmföringNy!$B$15:$B$30000,Öresdiffar!B5),2)","v":0},57269,{"$f":"ROUND(SUMIFS(OmföringNy!$M$15:$M$30000,OmföringNy!$B$15:$B$30000,Öresdiffar!D5),2)","v":0},57848,{"$f":"ROUND(SUMIFS(OmföringNy!$M$15:$M$30000,OmföringNy!$B$15:$B$30000,Öresdiffar!F5),2)","v":0}]
[null,39498,{"$f":"ROUND(SUMIFS(OmföringNy!$M$15:$M$30000,OmföringNy!$B$15:$B$30000,Öresdiffar!B6),2)","v":0},57279,{"$f":"ROUND(SUMIFS(OmföringNy!$M$15:$M$30000,OmföringNy!$B$15:$B$30000,Öresdiffar!D6),2)","v":0},57918,{"$f":"ROUND(SUMIFS(OmföringNy!$M$15:$M$30000,OmföringNy!$B$15:$B$30000,Öresdiffar!F6),2)","v":0}]
[null,49498,{"$f":"ROUND(SUMIFS(OmföringNy!$M$15:$M$30000,OmföringNy!$B$15:$B$30000,Öresdiffar!B7),2)","v":0},57519,{"$f":"ROUND(SUMIFS(OmföringNy!$M$15:$M$30000,OmföringNy!$B$15:$B$30000,Öresdiffar!D7),2)","v":0}]
[null,40111,{"$f":"ROUND(SUMIFS(OmföringNy!$M$15:$M$30000,OmföringNy!$B$15:$B$30000,Öresdiffar!B8),2)","v":0},57819,{"$f":"ROUND(SUMIFS(OmföringNy!$M$15:$M$30000,OmföringNy!$B$15:$B$30000,Öresdiffar!D8),2)","v":0}]
[null,50111,{"$f":"ROUND(SUMIFS(OmföringNy!$M$15:$M$30000,OmföringNy!$B$15:$B$30000,Öresdiffar!B9),2)","v":0},57849,{"$f":"ROUND(SUMIFS(OmföringNy!$M$15:$M$30000,OmföringNy!$B$15:$B$30000,Öresdiffar!D9),2)","v":0}]
[null,56991,{"$f":"ROUND(SUMIFS(OmföringNy!$M$15:$M$30000,OmföringNy!$B$15:$B$30000,Öresdiffar!B10),2)","v":0},57919,{"$f":"ROUND(SUMIFS(OmföringNy!$M$15:$M$30000,OmföringNy!$B$15:$B$30000,Öresdiffar!D10),2)","v":0}]
[null,57991,{"$f":"ROUND(SUMIFS(OmföringNy!$M$15:$M$30000,OmföringNy!$B$15:$B$30000,Öresdiffar!B11),2)","v":0}]
[null,69901,{"$f":"ROUND(SUMIFS(OmföringNy!$M$15:$M$30000,OmföringNy!$B$15:$B$30000,Öresdiffar!B12),2)","v":0}]
[null,3364,{"$f":"ROUND(SUMIFS(OmföringNy!$M$15:$M$30000,OmföringNy!$B$15:$B$30000,Öresdiffar!B13),2)","v":0}]
[null,3365,{"$f":"ROUND(SUMIFS(OmföringNy!$M$15:$M$30000,OmföringNy!$B$15:$B$30000,Öresdiffar!B14),2)","v":0},null,null,null,null,null,null,null,null,null,{"$f":"_xlfn.IFS(COUNTIF(Öresdiffar!C3:C18,\"<>0\")>0,\"Enskilda\",SUM(Öresdiffar!$E$3:$E$10)<>0,\"Tillsammans1\",SUM(Öresdiffar!$G$3:$G$6)<>0,\"Tillsammans2\",SUM(Öresdiffar!I2:I3)<>0,\"Tillsammans3\",SUM(K3:K4)<>0,\"Tillsammans4\",TRUE,\"\")","v":""}]
[null,3367,{"$f":"ROUND(SUMIFS(OmföringNy!$M$15:$M$30000,OmföringNy!$B$15:$B$30000,Öresdiffar!B15),2)","v":0}]
[null,3564,{"$f":"ROUND(SUMIFS(OmföringNy!$M$15:$M$30000,OmföringNy!$B$15:$B$30000,Öresdiffar!B16),2)","v":0}]
[null,3565,{"$f":"ROUND(SUMIFS(OmföringNy!$M$15:$M$30000,OmföringNy!$B$15:$B$30000,Öresdiffar!B17),2)","v":0}]
[null,3566,{"$f":"ROUND(SUMIFS(OmföringNy!$M$15:$M$30000,OmföringNy!$B$15:$B$30000,Öresdiffar!B18),2)","v":0}]

{"sheet":"Bilaga","index":3,"n_rows":0,"n_cols":0,"rows_kept":0,"cut":false,"hidden":true,"merged":[]}